{"text_format":"1","workbook":"xlsx","n_sheets":7,"sheets":["CONFIGURATOR","BILL OF MATERIAL","PRINTED PARTS","VERIFIED KITS","FUNSSOR","FABREEKO","FUSHI"],"not_rendered":{"charts":0,"images":23,"macros":1,"external_links":0,"defined_names":0,"comments":1,"pivot_tables":0},"unopened":[],"bounds":{"document_bytes":16777216,"sheet_cells":100000,"rows_first":2000,"rows_last":500,"rows_between":2000,"halvings":0,"cell_chars":16384,"cell_head_chars":4096},"cells_cut":0,"cells_raw":0,"read":"whole","date_system":"1900"}

{"sheet":"CONFIGURATOR","index":0,"n_rows":54,"n_cols":33,"rows_kept":54,"cut":false,"hidden":false,"merged":[[50,1,50,7],[52,1,52,7],[53,1,53,7],[0,2,0,6],[1,3,1,5],[2,3,2,5],[48,1,48,7],[49,1,49,7],[1,10,1,11],[4,10,4,11],[16,10,16,11],[24,10,24,11],[2,10,2,11],[25,10,25,11],[26,10,26,11],[28,10,28,11],[29,10,29,11],[34,10,34,11],[42,10,42,11],[43,10,43,11],[44,10,44,11],[35,10,35,11],[36,10,36,11],[37,10,37,11],[39,10,39,11],[41,10,41,11]]}
[null,null,"2024/10/25 – RH3D"]
[null,null,null,"ENDER 3 NG",null,null,null,null,null,null,"CONFIGURATOR GUIDE"]
[null,null,null,"BILL OF MATERIAL and PRINTED PARTS configurator",null,null,null,null,null,null,"Before setting your configuration, please read through the configurator guide first to understand all the options."]
[]
[null,null,null,"BASE BUILD",null,null,null,null,null,null,"IMPORTANT LINKS"]
[null,null,null,"BASE PRINTER","Creality Ender 3 Pro",null,null,null,null,null,"RH3D.xyz","The main site for the project, where you will find all the information you need."]
[null,null,null,"ENCLOSURE","None",null,null,null,null,null,"CONFIGURATOR","Check for the latest updated version before shopping or starting the build."]
[null,null,null,"FRAME","2040 extrusion upgrade",null,null,null,null,null,"PRINTABLES","The main site for hosting STL files."]
[null,null,null,"Z AXIS RODS","3x12 mm rod",null,null,null,null,null,"BUILD MANUAL","Build instructions."]
[null,null,null,"BED CARRIAGE","Stock E3 bed carriage",null,null,null,null,null,"REMIXES","User mods on printables for the version 1.2."]
[null,null,null,"Z WOBBLE COMPENSATION","Flexi joint",null,null,null,null,null,"REMIXES beta","User mods for the beta version - most of them are still be compatible."]
[null,null,null,"Z AXIS DRIVE","1 stepper - 1140 mm belt",null,null,null,null,null,"FEEDBACK","Any feedback can be given in the form here."]
[null,null,null,"LEADSCREW PULLEYS","Aluminium",null,null,null,null,null,"PRINTING GUIDE","Recommended guidance to help with setting the printer before printing parts."]
[null,null,null,"PSU THICKNESS","30 mm",null,null,null,null,null,"SOURCING GUIDE","Basic walkthrough to help with sourcing parts."]
[null,null,null,"BOARD MOUNT","BTT Octopus v1.1"]
[]
[null,null,null,"TOOLHEAD",null,null,null,null,null,null,"OTHER LINKS"]
[null,null,null,"HOTEND","Phaetus Rapido UHF",null,null,null,null,null,"DISCORD invite","Join the awesome community on Discord, browse user builds or mods.",null,"BambuLab","Creality MK8","Creality Spider V3","Creality Spider V3 Volcano","DropEffect neXtG HF","DropEffect neXtG UHF","Goliath AIR","Phaetus BMS Dragonfly","Phaetus Dragon 1 SF/HF","Phaetus Dragon 2 HF","Phaetus Dragon 2 UHF","Phaetus Rapido HF","Phaetus Rapido UHF","Revo Voron","TriangleLab Dragon ACE","TriangleLab Dragon ACE+","E3D V6","E3D V6 Volcano","CHC","CHC Pro"]
[null,null,null,"EXTRUDER","Integrated Sherpa micro",null,null,null,null,null,"DISCORD server","Link to the discord server.",null,"Bowden","BMG LGX","VzHextrudort","Hummingbird","Orbiter 2.0","ProtoXtruder","ProtoXtruder 2.0","Sherpa mini","Sherpa micro","Integrated VzHextrudort low","Integrated VzHextrudort helical","Integrated Hummingbird","Integrated ProtoXtruder","Integrated ProtoXtruder 2.0","Integrated Sherpa mini","Integrated Sherpa micro"]
[null,null,null,"BOWDEN COUPLING","M6 thread"]
[null,null,null,"PART COOLING","2x 4010",null,null,null,null,null,"YOUTUBE","Visit the main YouTube channel.",null,"2x 4010","2x 4020","2x 5015","CPAP","AUX only"]
[null,null,null,"BED PROBE","BDsensor",null,null,null,null,null,"INSTAGRAM","Visit the main Instagram channel.",null,"BDsensor","Beacon scanner","BIQU Microprobe","BLTouch","BTT Eddy","CR Touch","Klicky probe","KlickyPCB","P.I.N.D.A. / SuperPINDA","No probe"]
[null,null,null,"ACCESSORIES","Accel + cable",null,null,null,null,null,"DONATE","If you would like to further support the project, keep it alive and growing. Thank you! ❤︎",null,"Accelerometer","Breakout board","Cable guide","Accel + cable","Breakout + cable","None"]
[]
[null,null,null,"MODS / UPGRADES",null,null,null,null,null,null,"DISCLAIMER"]
[null,null,null,"STEPPER COOLING","AB stepper cooling",null,null,null,null,null,"The configurator is released as is and even after thorough testing it may still contain mistakes."]
[null,null,null,"FRAME BRACES","No",null,null,null,null,null,"If you find any issues, miscalculations, faulty links or products out of stock, please let me know through the"]
[null,null,null,"HORIZONTAL STABILISER","Yes"]
[null,null,null,"HANDLES","Yes",null,null,null,null,null,"FEEDBACK link above so I can fix it."]
[null,null,null,"LED LIGHTS","Frame LED"]
[null,null,null,"INTERNAL SPOOL ROLLER","No"]
[null,null,null,"INTERNAL AIR FILTRATION","No"]
[null,null,null,"VORON M4 EXTRUDER","No"]
[null,null,null,"ELECTRONICS COVERING","2mm sheet"]
[null,null,null,"AUX COOLING","No",null,null,null,null,null,"Most of the links in the BOM are Affiliate, that means a small commision is shared with the creator or his team while"]
[null,null,null,"BED WIRING - WAGO 221","No - stock cables",null,null,null,null,null,"adding no cost to the end user. All the product links were chosen as a best known or verified and tested product"]
[null,null,null,"UNDER BED FAN","No",null,null,null,null,null,"offer and in no way any of the products have been chosen only to prefer higher commision over the quality."]
[null,null,null,"AUTO Z - VORON","No"]
[]
[null,null,null,null,null,null,null,null,null,null,"Income from the affiliate links will be used to cover the cost of the development, testing and maintenance of the"]
[null,null,null,"TOTAL PRICE LOW *",null,"XXX $"]
[null,null,null,"TOTAL PRICE *",null,{"$f":"'BILL OF MATERIAL'!K5+'BILL OF MATERIAL'!K54+'BILL OF MATERIAL'!K71+'BILL OF MATERIAL'!K86+'BILL OF MATERIAL'!K107","v":274.56268484848482},null,null,null,null,"project and to support further development of new upgrades or other projects."]
[null,null,null,null,null,null,null,null,null,null,"If you decide to further support the project, you can find donate link on the main project website."]
[null,null,null,"TOTAL FILAMENT WEIGHT – MAIN COLOR **",null,{"$f":"'PRINTED PARTS'!I5+'PRINTED PARTS'!I33+'PRINTED PARTS'!I46+'PRINTED PARTS'!I72+'PRINTED PARTS'!I77+'PRINTED PARTS'!I157+'PRINTED PARTS'!I203+'PRINTED PARTS'!I235","v":898.19000000000017}]
[null,null,null,"TOTAL FILAMENT WEIGHT – ACCENT COLOR **",null,{"$f":"'PRINTED PARTS'!J5+'PRINTED PARTS'!J33+'PRINTED PARTS'!J46+'PRINTED PARTS'!J72+'PRINTED PARTS'!J77+'PRINTED PARTS'!J157+'PRINTED PARTS'!J203+'PRINTED PARTS'!J235","v":703.92000000000007}]
[]
[]
[null,null,null,"READY? CONTINUE TO:"]
[null,"* Price includes only parts in the official BOM, it doesn’t include filament price, the base printer or upgrades like hotend, board etc."]
[null,"* Price is only a rough estimate – it will vary in time but also according to your location, currency, shipping conditions,"]
[null,"total ordered amount and other things."]
[]
[null,"** Weight is calculated with recommended print settings and can differ based on your settings like extrusion multiplier,"]
[null,"purge lines, brim etc. Always have more filament than is required and expect possibility of failed prints."]

{"sheet":"BILL OF MATERIAL","index":1,"n_rows":249,"n_cols":190,"rows_kept":249,"cut":false,"hidden":false,"merged":[[69,6,69,7],[61,6,61,7],[0,189,0,193],[1,1,1,11],[1,12,3,12],[1,20,1,37],[1,38,1,43],[1,44,1,52],[1,53,1,55],[1,56,1,57],[1,58,1,69],[1,70,1,85],[1,86,1,91],[1,92,1,94],[1,95,1,97],[1,98,1,99],[1,179,1,181],[2,2,3,3],[2,4,3,4],[2,5,3,5],[2,9,3,9],[2,10,3,10],[1,107,1,109],[1,110,1,111],[1,112,1,113],[1,114,1,134],[1,135,1,154],[1,100,1,103],[1,104,1,106],[1,155,1,159],[1,160,1,169],[1,170,1,175],[2,188,3,188],[2,189,3,189],[4,2,4,4],[5,2,5,4],[7,2,7,4],[2,8,3,8],[2,6,3,7],[35,2,35,4],[38,2,38,4],[40,2,40,4],[43,2,43,4],[10,2,10,4],[20,2,20,4],[24,2,24,4],[26,2,26,4],[30,2,30,4],[45,2,45,4],[48,2,48,4],[51,2,51,4],[53,2,53,4],[70,2,70,4],[85,2,85,4],[106,2,106,4],[112,2,112,4],[113,2,113,10],[114,2,114,10],[110,6,110,7],[240,2,240,4],[204,2,204,4],[218,2,218,4],[115,2,115,10],[117,2,117,4],[145,2,145,4],[156,2,156,4],[191,2,191,4],[150,2,150,4],[150,8,150,10],[236,2,236,10],[237,2,237,10],[238,2,238,10]]}
[null,null,null,"BACK TO:",null,null,null,"GO TO:",null,null,null,null,null,null,null,null,null,null,null,null,null,null,null,null,null,null,null,null,null,null,null,null,null,null,null,null,null,null,null,null,null,null,null,null,null,null,null,null,null,null,null,null,null,null,null,null,null,null,null,null,null,null,null,null,null,null,null,null,null,null,null,null,null,null,null,null,null,null,null,null,null,null,null,null,null,null,null,null,null,null,null,null,null,null,null,null,null,null,null,null,null,null,null,null,null,null,null,null,null,null,null,null,null,null,null,null,null,null,null,null,null,null,null,null,null,null,null,null,null,null,null,null,null,null,null,null,null,null,null,null,null,null,null,null,null,null,null,null,null,null,null,null,null,null,null,null,null,null,null,null,null,null,null,null,null,null,null,null,null,null,null,null,null,null,null,null,null,null,null,null,null,null,null,null,null,null,null,null,null,"2024/10/25 – RH3D"]
[null,null,null,null,null,null,null,null,null,null,null,null,"HIDE",null,null,null,null,null,null,null,"FRAME BOTTOM",null,null,null,null,null,null,null,null,null,null,null,null,null,null,null,null,null,"TOP FRAME",null,null,null,null,null,"FRAME",null,null,null,null,null,null,null,null,"XY MOTION",null,null,"ENCLOSURE",null,"BED",null,null,null,null,null,null,null,null,null,null,null,"ELECTRONICS",null,null,null,null,null,null,null,null,null,null,null,null,null,null,null,"BASE PRINTER",null,null,null,null,null,"ENCLOSURE",null,null,2040,null,null,"Z RODS",null,"BED CARRIAGE",null,null,null,"Z WOBBLE",null,null,"Z DRIVE",null,null,"PULLEY",null,"PSU",null,"HOTEND",null,null,null,null,null,null,null,null,null,null,null,null,null,null,null,null,null,null,null,null,"EXTRUDER",null,null,null,null,null,null,null,null,null,null,null,null,null,null,null,null,null,null,null,"PART COOLING",null,null,null,null,"BED PROBE",null,null,null,null,null,null,null,null,null,"ACCESSORY",null,null,null,null,null,"BRACES","HORIZ","HANDL","LED",null,null,"SPOOL","FILTER","VorM4","ELE.sh","RSCS"]
[null,null,"NAME",null,"PCS","NOTE","MAIN LINK",null,"ALT. LINK","$/1PC","PRICE",null,null,"FRAME","BED","ELECTRONICS","XY MOTION","TOOLHEAD","OTHER","ENCL","fr right","fr left","fr bottom","re left","re right","re L 2040","re R 2040","left ulti","right ulti","LS1140","LS1040","LS1140_3","LS1040_3","belt idler","N17","3Z N17","E3 fit","4040 fix","fr right","fr left","re right","re left","re mid","re mid 3Z","BARE","+ print",{"$f":"\"+ 2040\"","v":"+ 2040"},"+ ulti",{"$f":"\"+ E3\"","v":"+ E3"},{"$f":"\"+ E3v2\"","v":"+ E3v2"},"+ TRIPPLE","+ 3Z N17","+ PR 40T","Y left","Y right","TH base","V1","V2","METAL","+ FAN","Stock-FX","Stock-WX","Stock-SD","+ FAN","PRINTED","+ FAN","TRIPPLE Z","Wago-DC","Wago-AC","SEXBOLT","PANEL","COOLING","grill+AC","XY stop","30PSU","50PSU","RPI4","skr3ez","expm","octo","miniv2","rs15","ssr","LT933","LT623","other","E3pro","E3","E3V2","Nept2","AquX2","None","V1","V2","None","No",350,"Ulti","3x","2x","E3bed","Print","Laser","Z tilt","Flexi","WobX","None",1140,1040,"3xN17","Alu","Print",30,50,"Bamb","MK8","SPV3","SPV3V","nXG_H","nXG_U","CHC","CHCV","V6","V6_V","Goliat","revor","Dfly","Drag1","Dr2HF","Dr2U","rapHF","raUH","Mosq","ACE","ACE+","Shmin","=int","Shmic","=int","LGX","LGXlit","BMG","ORB1","ORB2","Hextr","=int","=heli","Proto","=int","Proto","=int","Hum","=int","Titan","BOW",4010,4020,5015,"CPAP","RSCS","Klicky","=PCB","Beac","Bdsen","BLTou","CRTo","Biqu","Pinda","EDDY","None","JST","adxl","BB+C","AD+C","cable","none","Yes","Yes","Yes","FRM","ENC","ALL","Yes","Yes","Yes","Cut","Yes",null,null,"PERSONAL NOTES"]
[null,null,null,null,null,null,null,null,null,null,null,null,null,null,null,null,null,null,null,null,null,null,null,null,null,null,null,null,null,null,null,null,null,null,null,null,null,null,null,null,null,null,null,null,1,{"$f":"IF(CONFIGURATOR!$E$8=\"Printed verticals\",1,0)","v":0},{"$f":"IF(CONFIGURATOR!$E$8=\"2040 extrusion upgrade\",1,0)","v":1},{"$f":"IF(CONFIGURATOR!$E$8=\"Ultimate frame\",1,0)","v":0},{"$f":"IF(CONFIGURATOR!$E$6=\"Creality Ender 3\",1,0)","v":0},{"$f":"IF(CONFIGURATOR!$E$6=\"Creality Ender 3 V2\",1,0)","v":0},{"$f":"IF(CONFIGURATOR!$E$9=\"3x12 mm rod\",1,0)","v":1},{"$f":"IF(CONFIGURATOR!$E$12=\"3 independent steppers\",1,0)","v":0},{"$f":"IF(CONFIGURATOR!$E$13=\"Printed\",1,0)","v":0},1,1,1,{"$f":"IF(CONFIGURATOR!$E$7=\"Yes - V1\",1,0)","v":0},{"$f":"IF(CONFIGURATOR!$E$7=\"Yes - V2\",1,0)","v":0},{"$f":"IF(CONFIGURATOR!$E$10=\"Custom metal bed carriage\",1,0)","v":0},{"$f":"IF(CONFIGURATOR!$E$10=\"Custom metal bed carriage\",IF(CONFIGURATOR!$E$37=\"Yes\",1,0),0)","v":0},{"$f":"IF(CONFIGURATOR!$E$10=\"Stock E3 bed carriage\",IF(CONFIGURATOR!$E$11=\"Flexi joint\",1,0),IF(CONFIGURATOR!$E$10=\"All printed\",IF(CONFIGURATOR!$E$11=\"Flexi joint\",1,0),0))","v":1},{"$f":"IF(CONFIGURATOR!$E$10=\"Stock E3 bed carriage\",IF(CONFIGURATOR!$E$11=\"WobbleX\",1,0),IF(CONFIGURATOR!$E$10=\"All printed\",IF(CONFIGURATOR!$E$11=\"WobbleX\",1,0),0))","v":0},{"$f":"IF(CONFIGURATOR!$E$10=\"Stock E3 bed carriage\",IF(CONFIGURATOR!$E$11=\"None\",1,0),IF(CONFIGURATOR!$E$10=\"All printed\",IF(CONFIGURATOR!$E$11=\"None\",1,0),0))","v":0},{"$f":"IF((CONFIGURATOR!$E$10=\"Stock E3 bed carriage\"),IF(CONFIGURATOR!$E$37=\"Yes\",1,0),0)","v":0},{"$f":"IF((CONFIGURATOR!$E$10=\"All printed\"),1,0)","v":0},{"$f":"IF((CONFIGURATOR!$E$10=\"All printed\"),IF(CONFIGURATOR!$E$37=\"Yes\",1,0),0)","v":0},{"$f":"IF(CONFIGURATOR!$E$9=\"3x12 mm rod\",IF(CONFIGURATOR!$E$10=\"Custom metal bed carriage\",0,1),0)","v":1},{"$f":"IF(CONFIGURATOR!$E$36=\"Yes - DC bed heater\",1,0)","v":0},{"$f":"IF(CONFIGURATOR!$E$36=\"Yes - AC bed heater\",1,0)","v":0},{"$f":"IF(CONFIGURATOR!$E$38=\"Yes\",IF(CONFIGURATOR!$E$10=\"Custom metal bed carriage\",0,1),0)","v":0},1,{"$f":"IF(CONFIGURATOR!$E$26=\"AB stepper cooling\",1,0)","v":1},1,1,{"$f":"IF(CONFIGURATOR!$E$14=\"30 mm\",1,0)","v":1},{"$f":"IF(CONFIGURATOR!$E$14=\"50 mm\",1,0)","v":0},0,{"$f":"IF(CONFIGURATOR!$E$15=\"BTT SKR3EZ\",1,0)","v":0},0,{"$f":"IF(CONFIGURATOR!$E$15=\"BTT Octopus v1.1\",1,0)","v":1},{"$f":"IF(CONFIGURATOR!$E$15=\"BTT SKR mini E3 v2\",1,0)","v":0},0,0,0,0,{"$f":"IF(CONFIGURATOR!$E$15=\"Other\",1,0)","v":0},{"$f":"IF(CONFIGURATOR!$E$6=\"Creality Ender 3 Pro\",1,0)","v":1},{"$f":"IF(CONFIGURATOR!$E$6=\"Creality Ender 3\",1,0)","v":0},{"$f":"IF(CONFIGURATOR!$E$6=\"Creality Ender 3 V2\",1,0)","v":0},{"$f":"IF(CONFIGURATOR!$E$6=\"Elegoo Neptune 2\",1,0)","v":0},{"$f":"IF(CONFIGURATOR!$E$6=\"Aquila X2\",1,0)","v":0},{"$f":"IF(CONFIGURATOR!$E$6=\"Other / Custom\",1,0)","v":0},{"$f":"IF(CONFIGURATOR!$E$7=\"Yes - V1\",1,0)","v":0},{"$f":"IF(CONFIGURATOR!$E$7=\"Yes - V2\",1,0)","v":0},{"$f":"IF(CONFIGURATOR!$E$7=\"None\",1,0)","v":1},{"$f":"IF(CONFIGURATOR!$E$8=\"Printed verticals\",1,0)","v":0},{"$f":"IF(CONFIGURATOR!$E$8=\"2040 extrusion upgrade\",1,0)","v":1},{"$f":"IF(CONFIGURATOR!$E$8=\"Ultimate frame\",1,0)","v":0},{"$f":"IF(CONFIGURATOR!$E$9=\"3x12 mm rod\",1,0)","v":1},{"$f":"IF(CONFIGURATOR!$E$9=\"2x12 mm rod\",1,0)","v":0},{"$f":"IF(CONFIGURATOR!$E$10=\"Stock E3 bed carriage\",1,0)","v":1},{"$f":"IF(CONFIGURATOR!$E$10=\"All printed\",1,0)","v":0},{"$f":"IF(CONFIGURATOR!$E$10=\"Custom metal bed carriage\",1,0)","v":0},{"$f":"IF(CONFIGURATOR!$E$10=\"Z Tilt bed\",1,0)","v":0},{"$f":"IF(CONFIGURATOR!$E$11=\"Flexi joint\",1,0)","v":1},{"$f":"IF(CONFIGURATOR!$E$11=\"WobbleX\",1,0)","v":0},{"$f":"IF(CONFIGURATOR!$E$11=\"None\",1,0)","v":0},{"$f":"IF(CONFIGURATOR!$E$12=\"1 stepper - 1140 mm belt\",1,0)","v":1},{"$f":"IF(CONFIGURATOR!$E$12=\"1 stepper - 1040 mm belt\",1,0)","v":0},{"$f":"IF(CONFIGURATOR!$E$12=\"3 independent steppers\",1,0)","v":0},{"$f":"IF(CONFIGURATOR!$E$13=\"Aluminium\",1,0)","v":1},{"$f":"IF(CONFIGURATOR!$E$13=\"Printed\",1,0)","v":0},{"$f":"IF(CONFIGURATOR!$E$14=\"30 mm\",1,0)","v":1},{"$f":"IF(CONFIGURATOR!$E$14=\"50 mm\",1,0)","v":0},{"$f":"IF(CONFIGURATOR!$E$18=\"BambuLab\",1,0)","v":0},{"$f":"IF(CONFIGURATOR!$E$18=\"Creality MK8\",1,0)","v":0},{"$f":"IF(CONFIGURATOR!$E$18=\"Creality Spider V3\",1,0)","v":0},{"$f":"IF(CONFIGURATOR!$E$18=\"Creality Spider V3 Volcano\",1,0)","v":0},{"$f":"IF(CONFIGURATOR!$E$18=\"DropEffect neXtG HF\",1,0)","v":0},{"$f":"IF(CONFIGURATOR!$E$18=\"DropEffect neXtG UHF\",1,0)","v":0},{"$f":"IF(CONFIGURATOR!$E$18=\"CHC\",1,0)","v":0},{"$f":"IF(CONFIGURATOR!$E$18=\"CHC Pro\",1,0)","v":0},{"$f":"IF(CONFIGURATOR!$E$18=\"E3D V6\",1,0)","v":0},{"$f":"IF(CONFIGURATOR!$E$18=\"E3D V6 Volcano\",1,0)","v":0},{"$f":"IF(CONFIGURATOR!$E$18=\"Goliath AIR\",1,0)","v":0},{"$f":"IF(CONFIGURATOR!$E$18=\"Revo Voron\",1,0)","v":0},{"$f":"IF(CONFIGURATOR!$E$18=\"Phaetus BMS Dragonfly\",1,0)","v":0},{"$f":"IF(CONFIGURATOR!$E$18=\"Phaetus Dragon 1 SF/HF\",1,0)","v":0},{"$f":"IF(CONFIGURATOR!$E$18=\"Phaetus Dragon 2 HF\",1,0)","v":0},{"$f":"IF(CONFIGURATOR!$E$18=\"Phaetus Dragon 2 UHF\",1,0)","v":0},{"$f":"IF(CONFIGURATOR!$E$18=\"Phaetus Rapido HF\",1,0)","v":0},{"$f":"IF(CONFIGURATOR!$E$18=\"Phaetus Rapido UHF\",1,0)","v":1},{"$f":"IF(CONFIGURATOR!$E$18=\"SliceEngineering Mosquito\",1,0)","v":0},{"$f":"IF(CONFIGURATOR!$E$18=\"TriangleLab ACE\",1,0)","v":0},{"$f":"IF(CONFIGURATOR!$E$18=\"TriangleLab ACE+\",1,0)","v":0},{"$f":"IF(CONFIGURATOR!$E$19=\"Sherpa mini\",1,0)","v":0},{"$f":"IF(CONFIGURATOR!$E$19=\"Integrated Sherpa mini\",1,0)","v":0},{"$f":"IF(CONFIGURATOR!$E$19=\"Sherpa micro\",1,0)","v":0},{"$f":"IF(CONFIGURATOR!$E$19=\"Integrated Sherpa micro\",1,0)","v":1},{"$f":"IF(CONFIGURATOR!$E$19=\"BMG LGX\",1,0)","v":0},{"$f":"IF(CONFIGURATOR!$E$19=\"BMG LGX Lite\",1,0)","v":0},{"$f":"IF(CONFIGURATOR!$E$19=\"BMG Dualgear\",1,0)","v":0},{"$f":"IF(CONFIGURATOR!$E$19=\"Orbiter 1.0\",1,0)","v":0},{"$f":"IF(CONFIGURATOR!$E$19=\"Orbiter 2.0\",1,0)","v":0},{"$f":"IF(CONFIGURATOR!$E$19=\"VzHextrudort\",1,0)","v":0},{"$f":"IF(CONFIGURATOR!$E$19=\"Integrated VzHextrudort low\",1,0)","v":0},{"$f":"IF(CONFIGURATOR!$E$19=\"Integrated VzHextrudort helical\",1,0)","v":0},{"$f":"IF(CONFIGURATOR!$E$19=\"ProtoXtruder\",1,0)","v":0},{"$f":"IF(CONFIGURATOR!$E$19=\"Integrated ProtoXtruder\",1,0)","v":0},{"$f":"IF(CONFIGURATOR!$E$19=\"ProtoXtruder 2.0\",1,0)","v":0},{"$f":"IF(CONFIGURATOR!$E$19=\"Integrated ProtoXtruder 2.0\",1,0)","v":0},{"$f":"IF(CONFIGURATOR!$E$19=\"Hummingbird\",1,0)","v":0},{"$f":"IF(CONFIGURATOR!$E$19=\"Integrated Hummingbird\",1,0)","v":0},{"$f":"IF(CONFIGURATOR!$E$19=\"E3D Titan Extruder\",1,0)","v":0},{"$f":"IF(CONFIGURATOR!$E$19=\"Bowden\",1,0)","v":0},{"$f":"IF(CONFIGURATOR!$E$21=\"2x 4010\",1,0)","v":1},{"$f":"IF(CONFIGURATOR!$E$21=\"2x 4020\",1,0)","v":0},{"$f":"IF(CONFIGURATOR!$E$21=\"2x 5015\",1,0)","v":0},{"$f":"IF(CONFIGURATOR!$E$21=\"CPAP\",1,0)","v":0},{"$f":"IF(CONFIGURATOR!$E$21=\"RSCS only\",1,0)","v":0},{"$f":"IF(CONFIGURATOR!$E$22=\"Klicky probe\",1,0)","v":0},{"$f":"IF(CONFIGURATOR!$E$22=\"KlickyPCB\",1,0)","v":0},{"$f":"IF(CONFIGURATOR!$E$22=\"Beacon scanner\",1,0)","v":0},{"$f":"IF(CONFIGURATOR!$E$22=\"BDsensor\",1,0)","v":1},{"$f":"IF(CONFIGURATOR!$E$22=\"BLTouch\",1,0)","v":0},{"$f":"IF(CONFIGURATOR!$E$22=\"CR Touch\",1,0)","v":0},{"$f":"IF(CONFIGURATOR!$E$22=\"Biqu MicroProbe\",1,0)","v":0},{"$f":"IF(CONFIGURATOR!$E$22=\"P.I.N.D.A. / SuperPINDA\",1,0)","v":0},{"$f":"IF(CONFIGURATOR!$E$22=\"BTT EDDY\",1,0)","v":0},{"$f":"IF(CONFIGURATOR!$E$22=\"No probe\",1,0)","v":0},{"$f":"IF(CONFIGURATOR!$E$23=\"Breakout Board\",1,0)","v":0},{"$f":"IF(CONFIGURATOR!$E$23=\"Accelerometer\",1,0)","v":0},{"$f":"IF(CONFIGURATOR!$E$23=\"Breakout + cable\",1,0)","v":0},{"$f":"IF(CONFIGURATOR!$E$23=\"Accel + cable\",1,0)","v":1},{"$f":"IF(CONFIGURATOR!$E$23=\"Cable guide\",1,0)","v":0},{"$f":"IF(CONFIGURATOR!$E$23=\"n\",1,0)","v":0},{"$f":"IF(CONFIGURATOR!$E$27=\"Yes\",1,0)","v":0},{"$f":"IF(CONFIGURATOR!$E$28=\"Yes\",1,0)","v":1},{"$f":"IF(CONFIGURATOR!$E$29=\"Yes\",1,0)","v":1},{"$f":"IF(CONFIGURATOR!$E$30=\"Frame LED\",1,0)","v":1},{"$f":"IF(CONFIGURATOR!$E$30=\"Enclosure LED\",1,0)","v":0},{"$f":"IF(CONFIGURATOR!$E$30=\"Both LEDs\",1,0)","v":0},{"$f":"IF(CONFIGURATOR!$E$31=\"Yes\",1,0)","v":0},{"$f":"IF(CONFIGURATOR!$E$32=\"Yes\",1,0)","v":0},{"$f":"IF(CONFIGURATOR!$E$33=\"Yes\",1,0)","v":0},{"$f":"IF(CONFIGURATOR!$E$34=\"2mm sheet\",1,0)","v":1},{"$f":"IF(CONFIGURATOR!$E$35=\"Yes\",1,0)","v":0}]
[null,null,"HARDWARE",null,null,"Minimal amount is calculated here – always buy some extra.",null,null,null,null,{"$f":"SUM(K6:K53)","v":36.790184848484856},null,0,{"$f":"AS$4*AS5+AT$4*AT5+AU$4*AU5+AV$4*AV5+AW$4*AW5+AX$4*AX5+AY$4*AY5+AZ$4*AZ5+BA$4*BA5","v":0},{"$f":"BG$4*BG5+BH$4*BH5+BI$4*BI5+BJ$4*BJ5+BK$4*BK5+BL$4*BL5+BM$4*BM5+BN$4*BN5+BO$4*BO5+BP$4*BP5+BQ$4*BQ5+BR$4*BR5","v":0},{"$f":"BS$4*BS5+BT$4*BT5+BU$4*BU5+BV$4*BV5+BW$4*BW5+BX$4*BX5+BY$4*BY5+BZ$4*BZ5+CA$4*CA5+CB$4*CB5+CC$4*CC5+CD$4*CD5+CE$4*CE5+CF$4*CF5+CG$4*CG5+CH$4*CH5","v":0},{"$f":"BB$4*BB5+BC$4*BC5+BD$4*BD5","v":0},{"$f":"DK$4*DK5+DL$4*DL5+DM$4*DM5+DN$4*DN5+DO$4*DO5+DP$4*DP5+DQ$4*DQ5+DR$4*DR5+DS$4*DS5+DT$4*DT5+DU$4*DU5+DV$4*DV5+DW$4*DW5+DX$4*DX5+DY$4*DY5+DZ$4*DZ5+EA$4*EA5+EB$4*EB5+EC$4*EC5+ED$4*ED5+EE$4*EE5+EF$4*EF5+EG$4*EG5+EH$4*EH5+EI$4*EI5+EJ$4*EJ5+EK$4*EK5+EL$4*EL5+EM$4*EM5+EN$4*EN5+EO$4*EO5+EP$4*EP5+EQ$4*EQ5+ER$4*ER5+ES$4*ES5+ET$4*ET5+EU$4*EU5+EV$4*EV5+EW$4*EW5+EX$4*EX5+EY$4*EY5+EZ$4*EZ5+FA$4*FA5+FB$4*FB5+FC$4*FC5+FD$4*FD5+FE$4*FE5+FF$4*FF5+FG$4*FG5+FH$4*FH5+FI$4*FI5+FJ$4*FJ5+FK$4*FK5+FL$4*FL5+FM$4*FM5+FN$4*FN5+FO$4*FO5+FP$4*FP5+FQ$4*FQ5+FR$4*FR5+FS$4*FS5+FT$4*FT5","v":3},{"$f":"FU$4*FU5+FV$4*FV5+FW$4*FW5+FX$4*FX5+FY$4*FY5+FZ$4*FZ5+GA$4*GA5+GB$4*GB5+GC$4*GC5+GD$4*GD5+GE$4*GE5","v":0},{"$f":"BF$4*BF5","v":0},null,null,null,null,null,null,null,null,null,null,null,null,null,null,null,null,null,null,null,null,null,null,null,null,{"$f":"U5+V5+W5+AD5+AH5+AI5+AM5+AN5+AO5+AP5+AQ5","v":0},{"$f":"X5+Y5","v":0},{"$f":"Z5+AA5","v":0},{"$f":"AB5+AC5","v":0},{"$f":"AK5","v":0},{"$f":"AL5","v":0},{"$f":"AF5+AR5","v":0},{"$f":"AJ5","v":0},null,null,null,null,null,null,null,null,null,null,null,null,null,null,null,null,null,null,null,null,null,null,null,null,null,null,null,null,null,null,null,null,null,null,null,null,null,null,null,null,null,null,null,null,null,null,null,null,null,null,null,null,null,null,null,null,null,null,null,null,null,null,1,1,1,2,1,2,1,3,1,3,3,1,1,1,2,3,2,3,1,2,3,null,null,null,null,null,null,null,null,null,null,null,null,null,null,null,null,null,null,null,null,null,null,null,null,null,null,null,null,null,null,null,null,null,null,null,null,null,null,null,null,null,null,null,null,null,null,null,null,null,null,null,null,null,null,{"$f":"C5","v":"HARDWARE"}]
[null,null,"M2 SCREWS – SOCKET HEAD",null,null,null,null,null,null,null,null,null,{"$f":"M7","v":0},0,0,0,0,{"$f":"DK$4*DK6+DL$4*DL6+DM$4*DM6+DN$4*DN6+DO$4*DO6+DP$4*DP6+DQ$4*DQ6+DR$4*DR6+DS$4*DS6+DT$4*DT6+DU$4*DU6+DV$4*DV6+DW$4*DW6+DX$4*DX6+DY$4*DY6+DZ$4*DZ6+EA$4*EA6+EB$4*EB6+EC$4*EC6+ED$4*ED6+EE$4*EE6+EF$4*EF6+EG$4*EG6+EH$4*EH6+EI$4*EI6+EJ$4*EJ6+EK$4*EK6+EL$4*EL6+EM$4*EM6+EN$4*EN6+EO$4*EO6+EP$4*EP6+EQ$4*EQ6+ER$4*ER6+ES$4*ES6+ET$4*ET6+EU$4*EU6+EV$4*EV6+EW$4*EW6+EX$4*EX6+EY$4*EY6+EZ$4*EZ6+FA$4*FA6+FB$4*FB6+FC$4*FC6+FD$4*FD6+FE$4*FE6+FF$4*FF6+FG$4*FG6+FH$4*FH6+FI$4*FI6+FJ$4*FJ6+FK$4*FK6+FL$4*FL6+FM$4*FM6+FN$4*FN6+FO$4*FO6+FP$4*FP6+FQ$4*FQ6+FR$4*FR6+FS$4*FS6+FT$4*FT6","v":0},0,0,null,null,null,null,null,null,null,null,null,null,null,null,null,null,null,null,null,null,null,null,null,null,null,null,0,0,0,0,0,0,0,0,null,null,null,null,null,null,null,null,null,null,null,null,null,null,null,null,null,null,null,null,null,null,null,null,null,null,null,null,null,null,null,null,null,null,null,null,null,null,null,null,null,null,null,null,null,null,null,null,null,null,null,null,null,null,null,null,null,null,null,null,null,null,null,null,null,null,null,null,null,null,null,null,null,null,null,null,null,null,null,null,null,null,null,null,null,null,null,null,null,null,null,null,null,null,null,null,null,null,null,null,null,null,null,null,null,null,null,null,null,null,null,null,null,null,null,null,null,null,null,null,null,null,null,null,null,null,null,null,null,null,null,null,null,null,null,null,null,{"$f":"C6","v":"M2 SCREWS – SOCKET HEAD"}]
[null,null,null,"M2x10",{"$f":"SUM(N7:T7)","v":4},null,"[ AliExpress ]",null,null,{"$f":"1.26/55","v":2.290909090909091E-2},{"$f":"E7*J7","v":9.1636363636363641E-2},null,{"$f":"IF(E7=0,IF(E7=\"\",0,1),0)","v":0},0,0,4,0,0,0,0,null,null,null,null,null,null,null,null,null,null,null,null,null,null,null,null,null,null,null,null,null,null,null,null,0,0,0,0,0,0,0,0,null,null,null,null,null,null,null,null,null,null,null,null,null,null,null,null,null,null,null,null,null,4]
[null,null,"M2,5 SCREWS – SOCKET HEAD",null,null,null,null,null,null,null,null,null,{"$f":"M9*M10","v":0},0,0,0,0,0,0,0,null,null,null,null,null,null,null,null,null,null,null,null,null,null,null,null,null,null,null,null,null,null,null,null,0,0,0,0,0,0,0,0,null,null,null,null,null,null,null,null,null,null,null,null,null,null,null,null,null,null,null,null,null,null,null,null,null,null,null,null,null,null,null,null,null,null,null,null,null,null,null,null,null,null,null,null,null,null,null,null,null,null,null,null,null,null,null,null,null,null,null,null,null,null,null,null,null,null,null,null,null,null,null,null,null,null,null,null,null,null,null,null,null,null,null,null,null,null,null,null,null,null,null,null,null,null,null,null,null,null,null,null,null,null,null,null,null,null,null,null,null,null,null,null,null,null,null,null,null,null,null,null,null,null,null,null,null,null,null,null,null,null,null,null,null,null,null,null,null,{"$f":"C8","v":"M2,5 SCREWS – SOCKET HEAD"}]
[null,null,null,"M2,5x6",{"$f":"SUM(N9:T9)","v":1},"May be included with your hotend.","[ AliExpress ]",null,null,{"$f":"1.16/55","v":2.1090909090909091E-2},{"$f":"E9*J9","v":2.1090909090909091E-2},null,{"$f":"IF(E9=0,IF(E9=\"\",0,1),0)","v":0},0,0,0,0,1,0,0,null,null,null,null,null,null,null,null,null,null,null,null,null,null,null,null,null,null,null,null,null,null,null,null,0,0,0,0,0,0,0,0,null,null,null,null,null,null,null,null,null,null,null,null,null,null,null,null,null,null,null,null,null,null,null,null,null,null,null,null,null,null,null,null,null,null,null,null,null,null,null,null,null,null,null,null,null,null,null,null,null,null,null,null,null,null,null,null,null,null,null,null,null,null,null,null,4,4,null,null,null,null,null,null,4,null,null,null,null,null,null,null,null,null,null,null,null,null,null,null,null,null,null,null,null,null,null,null,null,null,null,null,null,null,null,null,null,null,null,null,null,null,null,1]
[null,null,null,"M2,5x8",{"$f":"SUM(N10:T10)","v":4},"May be included with your hotend.","[ AliExpress ]",null,null,{"$f":"1.26/55","v":2.290909090909091E-2},{"$f":"E10*J10","v":9.1636363636363641E-2},null,{"$f":"IF(E10=0,IF(E10=\"\",0,1),0)","v":0},0,0,0,0,4,0,0,null,null,null,null,null,null,null,null,null,null,null,null,null,null,null,null,null,null,null,null,null,null,null,null,0,0,0,0,0,0,0,0,null,null,null,null,null,null,null,null,null,null,null,null,null,null,null,null,null,null,null,null,null,null,null,null,null,null,null,null,null,null,null,null,null,null,null,null,null,null,null,null,null,null,null,null,null,null,null,null,null,null,null,null,null,null,null,null,null,null,null,null,null,null,null,null,null,null,4,4,null,null,null,null,null,null,null,4,4,4,4,4,null,4,4]
[null,null,"M3 SCREWS – SOCKET HEAD",null,{"$f":"SUM(U11:YU11)","v":0},null,null,null,null,null,null,null,{"$f":"M12*M13*M14*M15*M16*M17*M18*M19*M20","v":0},0,0,0,0,0,0,0,null,null,null,null,null,null,null,null,null,null,null,null,null,null,null,null,null,null,null,null,null,null,null,null,0,0,0,0,0,0,0,0,null,null,null,null,null,null,null,null,null,null,null,null,null,null,null,null,null,null,null,null,null,null,null,null,null,null,null,null,null,null,null,null,null,null,null,null,null,null,null,null,null,null,null,null,null,null,null,null,null,null,null,null,null,null,null,null,null,null,null,null,null,null,null,null,null,null,null,null,null,null,null,null,null,null,null,null,null,null,null,null,null,null,null,null,null,null,null,null,null,null,null,null,null,null,null,null,null,null,null,null,null,null,null,null,null,null,null,null,null,null,null,null,null,null,null,null,null,null,null,null,null,null,null,null,null,null,null,null,null,null,null,null,null,null,null,null,null,{"$f":"C11","v":"M3 SCREWS – SOCKET HEAD"}]
[null,null,null,"M3x6",{"$f":"SUM(N12:T12)","v":66},null,"[ AliExpress ]",null,null,{"$f":"1.3/55","v":2.3636363636363636E-2},{"$f":"E12*J12","v":1.56},null,{"$f":"IF(E12=0,IF(E12=\"\",0,1),0)","v":0},10,0,50,0,6,0,0,null,null,null,null,null,null,null,null,null,null,null,null,null,null,4,{"$f":"AI12*2","v":8},null,null,null,null,null,null,6,{"$f":"-6+6","v":0},10,0,0,0,0,0,0,8,null,null,null,null,null,2,null,null,null,null,null,null,null,null,null,4,4,null,44,null,null,null,null,null,3,4,6,6,9,2,null,null,null,null,null,null,null,null,null,null,null,null,null,null,null,null,null,null,null,null,null,null,null,null,null,null,null,null,null,null,null,null,4,4,4,4,4,4,4,4,4,4,4,4,4,4,4,4,4,4,4,4,4,null,null,null,null,null,null,null,null,null,null,2,2,null,null,null,null,null,null,null,null,null,null,null,null,null,2,2,2,2,4,4,4,2,2,null,2,2,null,null,2]
[null,null,null,"M3x8",49,null,"[ AliExpress ]",null,null,{"$f":"1.4/55","v":2.5454545454545452E-2},1.2472727272727271,null,0,4,12,25,0,2,6,0,null,null,4,null,null,null,null,null,null,null,4,null,4,null,null,null,4,null,null,null,null,null,null,null,4,0,0,0,4,0,0,0,null,null,null,null,null,null,6,null,12,6,6,null,null,null,null,null,null,null,15,null,10,null,null,null,null,null,null,null,null,null,null,2,null,null,null,null,null,null,null,null,null,null,null,null,null,null,null,null,null,null,null,null,null,null,null,null,null,null,null,null,null,null,null,null,null,null,null,null,null,null,null,null,null,4,null,null,null,null,null,null,null,null,null,null,2,null,2,2,2,null,null,null,2,null,null,null,null,null,null,2,null,null,null,null,null,null,null,null,3,3,null,null,null,null,null,1,null,null,null,null,null,null,null,null,8,null,null,6,null,{"$f":"FX13+FY13","v":6},null,null,null,null,{"$f":"IF($R$5=3,8,0)","v":8}]
[null,null,null,"M3x10",34,null,"[ AliExpress ]",null,null,{"$f":"1.5/55","v":2.7272727272727271E-2},0.92727272727272725,null,0,13,0,15,0,2,4,0,5,5,null,null,null,null,null,null,null,null,null,null,null,null,null,null,null,null,null,null,null,null,null,3,10,0,0,0,0,0,3,0,null,null,null,null,null,{"$f":"IF(CONFIGURATOR!$E$29=\"Yes\",47,51)","v":47},null,null,null,null,null,3,null,null,null,null,null,null,null,null,15,null,null,null,4,null,null,null,null,null,null,null,null,null,null,null,null,null,null,null,null,null,null,null,null,null,null,null,null,null,null,null,null,null,null,null,null,null,null,null,null,null,null,null,null,null,null,null,null,null,null,null,null,null,2,null,null,null,null,null,null,null,null,2,null,2,null,null,null,null,null,2,null,null,null,2,null,2,null,null,null,null,null,null,null,null,null,null,null,null,null,null,null,null,null,null,null,null,null,null,2,2,null,null,4,null,4,null,null,null,null,null,null,null,8]
[null,null,null,"M3x14",9,null,"[ AliExpress ]",null,null,{"$f":"1.7/55","v":3.0909090909090907E-2},0.27818181818181814,null,0,0,0,8,0,1,0,0,null,null,null,null,null,null,null,null,null,null,null,null,null,null,null,null,null,null,null,null,null,null,null,null,0,0,0,0,0,0,0,0,null,null,null,null,null,17,null,null,null,null,null,null,9,null,null,null,null,null,null,null,null,null,null,null,null,8,null,8,null,null,null,null,null,null,null,null,null,null,null,null,null,null,null,null,null,null,null,null,null,null,null,null,null,null,null,null,null,null,null,null,null,null,null,null,null,null,null,null,null,null,null,null,null,null,null,null,null,null,null,null,null,null,null,null,2,null,1,null,null,null,null,null,null,2,2,null,null,null,null,null,null,null,null,null,null,null,null,null,null,null,null,null,null,null,null,null,null,null,null,null,null,null,null,null,null,null,null,null,null,null,null,null,3,null,{"$f":"IF($R$5=2,8,0)","v":0}]
[null,null,null,"M3x16",3,null,"[ AliExpress ]",null,null,{"$f":"1.89/55","v":3.436363636363636E-2},0.10309090909090908,null,0,2,0,0,0,1,0,0,null,null,null,4,4,null,null,null,null,null,null,null,null,null,null,null,null,null,1,1,null,null,null,null,2,8,0,0,0,0,0,0,null,null,null,null,null,null,null,null,null,null,null,null,null,null,null,null,null,null,null,null,null,null,null,null,null,null,null,null,null,null,null,null,null,null,null,null,null,null,null,null,null,null,null,null,null,null,null,null,null,null,null,null,null,null,null,null,null,null,null,null,null,null,2,2,null,null,null,null,null,null,null,null,null,null,null,null,null,null,null,null,null,null,null,null,2,null,1,null,null,null,null,null,null,null,null,null,null,null,null,null,null,null,null,null,2,null,2,null,2,2]
[null,null,null,"M3x20",8,null,"[ AliExpress ]",null,null,{"$f":"2.27/55","v":4.1272727272727273E-2},0.33018181818181819,null,0,0,5,0,0,3,0,0,null,null,null,null,null,null,null,null,null,null,null,null,null,null,null,null,null,null,null,null,null,null,null,null,0,0,0,0,0,0,0,0,null,null,null,null,null,null,null,null,4,4,4,null,null,null,1,null,null,2,null,null,null,null,null,null,3,null,null,null,8,null,null,null,null,8,null,null,null,null,null,null,null,null,null,null,null,null,null,null,null,null,null,null,null,null,null,null,null,null,null,null,null,null,null,null,null,null,null,null,null,null,null,null,null,null,null,null,null,null,null,null,null,null,null,null,null,null,1,null,null,null,null,null,null,null,null,null,null,null,null,null,null,null,null,2,2,6,null,null,null,null,null,null,null,null,null,null,2,null,null,null,null,null,null,null,null,null,null,null,null,null,null,null,null,null,{"$f":"IF($R$5=1,8,0)","v":0}]
[null,null,null,"M3x25",12,null,"[ AliExpress ]",null,null,{"$f":"2.57/30","v":8.5666666666666655E-2},1.0279999999999998,null,0,8,0,0,0,0,4,0,null,null,null,null,null,null,null,null,null,null,null,null,null,null,null,null,null,null,null,null,4,4,null,null,8,0,0,0,0,0,0,0,null,null,null,null,null,{"$f":"IF(CONFIGURATOR!$E$29=\"Yes\",0,4)","v":0},null,null,null,null,null,null,null,null,null,null,null,null,null,null,null,null,null,null,null,null,null,null,null,null,null,null,null,null,null,null,null,null,null,null,null,null,null,null,null,null,null,null,null,null,null,null,null,null,null,null,null,null,null,null,null,null,null,null,null,null,null,null,null,null,null,null,null,null,null,null,null,null,null,null,null,null,null,null,null,null,null,null,null,null,null,null,null,2,2,null,null,null,null,null,null,null,null,null,null,null,null,null,null,null,null,null,null,null,null,null,null,null,null,null,null,null,null,null,null,null,4]
[null,null,null,"M3x30",0,null,"[ AliExpress ]",null,null,{"$f":"2.76/30","v":9.1999999999999998E-2},0,null,1,0,0,0,0,0,0,0,null,null,null,null,null,null,null,null,null,null,null,null,null,null,null,null,null,null,null,null,null,null,null,null,0,0,0,0,0,0,0,0]
[null,null,null,"M3x35",23,null,"[ AliExpress ]",null,null,{"$f":"2.95/30","v":9.8333333333333342E-2},2.2616666666666667,null,0,9,0,12,0,2,0,0,1,1,null,null,null,null,null,null,null,3,3,{"$f":"-3+3","v":0},3,null,null,null,null,null,null,null,2,2,null,null,9,0,0,0,0,0,0,0,null,null,null,null,null,2,null,null,null,null,null,null,null,null,null,null,null,null,null,8,null,null,null,null,null,4,null,4,null,null,null,null,null,null,null,null,null,null,null,null,null,null,null,null,null,null,null,null,null,null,null,null,null,null,null,null,null,null,null,null,null,null,null,null,null,null,null,null,null,null,null,null,null,null,null,null,null,null,null,null,null,null,null,null,null,null,null,null,null,null,null,null,null,null,null,null,null,null,null,null,null,null,null,2,2,2,2]
[null,null,"M3 SCREWS – BUTTON HEAD",null,null,null,null,null,null,null,null,null,{"$f":"M22*M23*M24","v":1},0,0,0,0,0,0,0,null,null,null,null,null,null,null,null,null,null,null,null,null,null,null,null,null,null,null,null,null,null,null,null,0,0,0,0,0,0,0,0,null,null,null,null,null,null,null,null,null,null,null,null,null,null,null,null,null,null,null,null,null,null,null,null,null,null,null,null,null,null,null,null,null,null,null,null,null,null,null,null,null,null,null,null,null,null,null,null,null,null,null,null,null,null,null,null,null,null,null,null,null,null,null,null,null,null,null,null,null,null,null,null,null,null,null,null,null,null,null,null,null,null,null,null,null,null,null,null,null,null,null,null,null,null,null,null,null,null,null,null,null,null,null,null,null,null,null,null,null,null,null,null,null,null,null,null,null,null,null,null,null,null,null,null,null,null,null,null,null,null,null,null,null,null,null,null,null,{"$f":"C21","v":"M3 SCREWS – BUTTON HEAD"}]
[null,null,null,"M3x6",{"$f":"SUM(N22:T22)","v":0},null,"[ AliExpress ]",null,null,{"$f":"1.63/50","v":3.2599999999999997E-2},{"$f":"E22*J22","v":0},null,{"$f":"IF(E22=0,IF(E22=\"\",0,1),0)","v":1},0,0,0,0,0,0,0,null,null,null,null,null,null,null,null,null,null,null,null,null,null,null,null,null,null,null,null,null,null,null,null,0,0,0,0,0,0,0,0,null,null,null,null,null,null,null,null,null,null,null,null,null,null,null,null,null,null,null,null,null,null,null,null,null,null,null,null,null,null,null,null,null,null,null,null,null,null,null,null,null,null,null,null,null,null,null,null,null,null,null,null,null,null,null,null,null,null,null,null,null,null,null,null,null,null,null,null,null,null,null,null,null,null,null,null,null,null,null,null,null,null,null,null,null,null,null,null,null,null,null,null,null,null,null,null,null,null,null,null,null,null,null,null,null,null,null,null,null,null,{"$f":"IF($R$5=1,2,0)","v":0}]
[null,null,null,"M3x14",{"$f":"SUM(N23:T23)","v":0},null,"[ AliExpress ]",null,null,{"$f":"2.22/50","v":4.4400000000000002E-2},{"$f":"E23*J23","v":0},null,{"$f":"IF(E23=0,IF(E23=\"\",0,1),0)","v":1},0,0,0,0,0,0,0,null,null,null,null,null,null,null,null,null,null,null,null,null,null,null,null,null,null,null,null,null,null,null,null,0,0,0,0,0,0,0,0,null,null,null,null,null,null,null,null,null,null,null,null,null,null,null,null,null,null,null,null,null,null,null,null,null,null,null,null,null,null,null,null,null,null,null,null,null,null,null,null,null,null,null,null,null,null,null,null,null,null,null,null,null,null,null,null,null,null,null,null,null,null,null,null,null,null,null,null,null,null,null,null,null,null,null,null,null,null,null,null,null,null,null,null,null,null,null,null,null,null,null,null,null,null,null,null,null,null,null,null,null,null,null,null,null,null,null,null,null,null,{"$f":"IF($R$5=2,2,0)","v":0}]
[null,null,null,"M3x18",{"$f":"SUM(N24:T24)","v":0},null,"[ AliExpress ]",null,null,{"$f":"2.6/50","v":5.2000000000000005E-2},{"$f":"E24*J24","v":0},null,{"$f":"IF(E24=0,IF(E24=\"\",0,1),0)","v":1},0,0,0,0,0,0,0,null,null,null,null,null,null,null,null,null,null,null,null,null,null,null,null,null,null,null,null,null,null,null,null,0,0,0,0,0,0,0,0,null,null,null,null,null,null,null,null,null,null,null,null,null,null,null,null,null,null,null,null,null,null,null,null,null,null,null,null,null,null,null,null,null,null,null,null,null,null,null,null,null,null,null,null,null,null,null,null,null,null,null,null,null,null,null,null,null,null,null,null,null,null,null,null,null,null,null,null,null,null,null,null,null,null,null,null,null,null,null,null,null,null,null,null,null,null,null,null,null,null,null,null,null,null,null,null,null,null,null,null,null,null,null,null,null,null,null,null,null,null,{"$f":"IF($R$5=3,2,0)","v":2}]
[null,null,"M3 SCREWS – FLAT HEAD COUNTERSUNK",null,null,null,null,null,null,null,null,null,{"$f":"M26","v":1},0,0,0,0,0,0,0,null,null,null,null,null,null,null,null,null,null,null,null,null,null,null,null,null,null,null,null,null,null,null,null,0,0,0,0,0,0,0,0,null,null,null,null,null,null,null,null,null,null,null,null,null,null,null,null,null,null,null,null,null,null,null,null,null,null,null,null,null,null,null,null,null,null,null,null,null,null,null,null,null,null,null,null,null,null,null,null,null,null,null,null,null,null,null,null,null,null,null,null,null,null,null,null,null,null,null,null,null,null,null,null,null,null,null,null,null,null,null,null,null,null,null,null,null,null,null,null,null,null,null,null,null,null,null,null,null,null,null,null,null,null,null,null,null,null,null,null,null,null,null,null,null,null,null,null,null,null,null,null,null,null,null,null,null,null,null,null,null,null,null,null,null,null,null,null,null,{"$f":"C25","v":"M3 SCREWS – FLAT HEAD COUNTERSUNK"}]
[null,null,null,"M3x12",{"$f":"SUM(N26:T26)","v":0},null,"[ AliExpress ]",null,null,{"$f":"2.18/50","v":4.36E-2},{"$f":"E26*J26","v":0},null,{"$f":"IF(E26=0,IF(E26=\"\",0,1),0)","v":1},0,0,0,0,0,0,0,null,null,null,null,null,null,null,null,null,null,null,null,null,null,null,null,null,null,null,null,null,null,null,null,0,0,0,0,0,0,0,0,null,null,null,null,null,12]
[null,null,"M4 SCREWS – SOCKET HEAD",null,null,null,null,null,null,null,null,null,{"$f":"M28*M29*M30","v":0},0,0,0,0,0,0,0,null,null,null,null,null,null,null,null,null,null,null,null,null,null,null,null,null,null,null,null,null,null,null,null,0,0,0,0,0,0,0,0,null,null,null,null,null,null,null,null,null,null,null,null,null,null,null,null,null,null,null,null,null,null,null,null,null,null,null,null,null,null,null,null,null,null,null,null,null,null,null,null,null,null,null,null,null,null,null,null,null,null,null,null,null,null,null,null,null,null,null,null,null,null,null,null,null,null,null,null,null,null,null,null,null,null,null,null,null,null,null,null,null,null,null,null,null,null,null,null,null,null,null,null,null,null,null,null,null,null,null,null,null,null,null,null,null,null,null,null,null,null,null,null,null,null,null,null,null,null,null,null,null,null,null,null,null,null,null,null,null,null,null,null,null,null,null,null,null,{"$f":"C27","v":"M4 SCREWS – SOCKET HEAD"}]
[null,null,null,"M4x6",{"$f":"SUM(N28:T28)","v":0},null,"[ AliExpress ]",null,null,{"$f":"1.79/20","v":8.9499999999999996E-2},{"$f":"E28*J28","v":0},null,{"$f":"IF(E28=0,IF(E28=\"\",0,1),0)","v":1},0,0,0,0,0,0,0,null,null,null,null,null,null,null,null,null,null,null,null,null,null,null,null,null,null,null,null,null,null,null,null,0,0,0,0,0,0,0,0,null,null,null,null,null,null,6]
[null,null,null,"M4x8",{"$f":"SUM(N29:T29)","v":32},null,"[ AliExpress ]",null,null,{"$f":"1.89/20","v":9.4500000000000001E-2},{"$f":"E29*J29","v":3.024},null,{"$f":"IF(E29=0,IF(E29=\"\",0,1),0)","v":0},27,0,5,0,0,0,0,null,null,null,2,2,null,null,null,null,4,4,{"$f":"-4+4","v":0},4,2,2,{"$f":"AI29*2-AH29","v":2},null,null,2,2,4,4,4,{"$f":"-4+7","v":3},24,4,0,0,0,0,3,2,null,null,null,null,null,null,null,null,null,null,null,null,null,null,null,null,null,null,null,null,null,1,4,4,null,null,null,null,null,null,2,null,null,null,null,null,null,null,null,null,null,null,null,null,null,null,null,null,null,null,null,null,null,null,null,null,null,null,null,null,null,null,null,null,null,null,null,null,null,null,null,null,null,null,null,null,null,null,null,null,null,null,null,null,null,null,null,null,null,null,null,null,null,null,null,null,null,null,null,null,null,null,null,null,null,null,null,null,null,null,null,null,null,null,null,null,null,null,null,null,null,null,null,null,null,null,null,null,null,null,4,null,2]
[null,null,null,"M4x10",{"$f":"SUM(N30:T30)","v":11},null,"[ AliExpress ]",null,null,{"$f":"1.98/20","v":9.9000000000000005E-2},{"$f":"E30*J30","v":1.089},null,{"$f":"IF(E30=0,IF(E30=\"\",0,1),0)","v":0},2,9,0,0,0,0,0,1,1,null,null,null,null,null,null,null,null,null,null,null,null,null,null,null,null,null,null,null,null,null,null,2,0,0,0,0,0,0,0,null,null,null,null,null,null,null,null,9,9,9,null,-9]
[null,null,"M5 SCREWS – SOCKET HEAD",null,null,null,null,null,null,null,null,null,{"$f":"M32*M33*M34*M35","v":0},0,0,0,0,0,0,0,null,null,null,null,null,null,null,null,null,null,null,null,null,null,null,null,null,null,null,null,null,null,null,null,0,0,0,0,0,0,0,0,null,null,null,null,null,null,null,null,null,null,null,null,null,null,null,null,null,null,null,null,null,null,null,null,null,null,null,null,null,null,null,null,null,null,null,null,null,null,null,null,null,null,null,null,null,null,null,null,null,null,null,null,null,null,null,null,null,null,null,null,null,null,null,null,null,null,null,null,null,null,null,null,null,null,null,null,null,null,null,null,null,null,null,null,null,null,null,null,null,null,null,null,null,null,null,null,null,null,null,null,null,null,null,null,null,null,null,null,null,null,null,null,null,null,null,null,null,null,null,null,null,null,null,null,null,null,null,null,null,null,null,null,null,null,null,null,null,{"$f":"C31","v":"M5 SCREWS – SOCKET HEAD"}]
[null,null,null,"M5x12",{"$f":"SUM(N32:T32)","v":24},null,"[ AliExpress ]",null,null,{"$f":"1.79/10","v":0.17899999999999999},{"$f":"E32*J32","v":4.2959999999999994},null,{"$f":"IF(E32=0,IF(E32=\"\",0,1),0)","v":0},24,0,0,0,0,0,0,4,4,null,9,9,3,3,3,3,null,null,null,null,null,null,null,{"$f":"IF($AV$4=0,-4,0)","v":-4},{"$f":"IF($AV$4=0,-8,0)","v":-8},2,2,3,3,null,null,18,18,6,6,-4,-8,0,0,null,null,null,null,null,12,null,4,null,null,null,null,null,2]
[null,null,null,"M5x20",{"$f":"SUM(N33:T33)","v":4},null,"[ AliExpress ]",null,null,{"$f":"2.47/10","v":0.24700000000000003},{"$f":"E33*J33","v":0.9880000000000001},null,{"$f":"IF(E33=0,IF(E33=\"\",0,1),0)","v":0},4,0,0,0,0,0,0,null,null,null,null,null,null,null,null,null,null,null,null,null,null,null,null,{"$f":"IF($AV$4=0,4,0)","v":4},{"$f":"IF($AV$4=0,8,0)","v":8},1,1,1,1,null,null,4,0,0,0,4,8,0,0]
[null,null,null,"M5x25",{"$f":"SUM(N34:T34)","v":10},null,"[ AliExpress ]",null,null,{"$f":"2.76/10","v":0.27599999999999997},{"$f":"E34*J34","v":2.76},null,{"$f":"IF(E34=0,IF(E34=\"\",0,1),0)","v":0},6,0,0,4,0,0,0,2,2,null,null,null,null,null,null,null,null,null,null,null,null,null,null,null,null,1,1,null,null,null,null,6,0,0,0,0,0,0,0,null,2,2]
[null,null,null,"M5x35",{"$f":"SUM(N35:T35)","v":4},null,"[ AliExpress ]",null,null,{"$f":"3.05/10","v":0.30499999999999999},{"$f":"E35*J35","v":1.22},null,{"$f":"IF(E35=0,IF(E35=\"\",0,1),0)","v":0},4,0,0,0,0,0,0,null,null,null,null,null,null,null,null,null,1,1,{"$f":"1-AD35","v":0},1,1,null,-1,null,null,null,null,1,1,null,null,4,0,0,0,0,0,0,-1]
[null,null,"M5 SCREWS – BUTTON HEAD",null,null,null,null,null,null,null,null,null,{"$f":"M37*M38","v":0},0,0,0,0,0,0,0,null,null,null,null,null,null,null,null,null,null,null,null,null,null,null,null,null,null,null,null,null,null,null,null,0,0,0,0,0,0,0,0,null,null,null,null,null,null,null,null,null,null,null,null,null,null,null,null,null,null,null,null,null,null,null,null,null,null,null,null,null,null,null,null,null,null,null,null,null,null,null,null,null,null,null,null,null,null,null,null,null,null,null,null,null,null,null,null,null,null,null,null,null,null,null,null,null,null,null,null,null,null,null,null,null,null,null,null,null,null,null,null,null,null,null,null,null,null,null,null,null,null,null,null,null,null,null,null,null,null,null,null,null,null,null,null,null,null,null,null,null,null,null,null,null,null,null,null,null,null,null,null,null,null,null,null,null,null,null,null,null,null,null,null,null,null,null,null,null,{"$f":"C36","v":"M5 SCREWS – BUTTON HEAD"}]
[null,null,null,"M5x10",{"$f":"SUM(N37:T37)","v":4},null,"[ AliExpress ]",null,null,{"$f":"2.21/10","v":0.221},{"$f":"E37*J37","v":0.88400000000000001},null,{"$f":"IF(E37=0,IF(E37=\"\",0,1),0)","v":0},{"$f":"AS$4*AS37+AT$4*AT37+AU$4*AU37+AV$4*AV37+AW$4*AW37+AX$4*AX37+AY$4*AY37+AZ$4*AZ37+BA$4*BA37","v":4},{"$f":"BG$4*BG37+BH$4*BH37+BI$4*BI37+BJ$4*BJ37+BK$4*BK37+BL$4*BL37+BM$4*BM37+BN$4*BN37+BO$4*BO37+BP$4*BP37+BQ$4*BQ37+BR$4*BR37","v":0},{"$f":"BS$4*BS37+BT$4*BT37+BU$4*BU37+BV$4*BV37+BW$4*BW37+BX$4*BX37+BY$4*BY37+BZ$4*BZ37+CA$4*CA37+CB$4*CB37+CC$4*CC37+CD$4*CD37+CE$4*CE37+CF$4*CF37+CG$4*CG37+CH$4*CH37","v":0},{"$f":"BB$4*BB37+BC$4*BC37+BD$4*BD37","v":0},0,{"$f":"FU$4*FU37+FV$4*FV37+FW$4*FW37+FX$4*FX37+FY$4*FY37+FZ$4*FZ37+GA$4*GA37+GB$4*GB37+GC$4*GC37+GD$4*GD37+GE$4*GE37","v":0},{"$f":"BF$4*BF37","v":0},null,null,null,null,null,2,2,2,2,null,null,null,null,null,null,null,null,null,null,null,null,null,null,null,{"$f":"U37+V37+W37+AD37+AH37+AI37+AM37+AN37+AO37+AP37+AQ37","v":0},{"$f":"X37+Y37","v":0},{"$f":"Z37+AA37","v":4},{"$f":"AB37+AC37","v":4},{"$f":"AK37","v":0},{"$f":"AL37","v":0},{"$f":"AF37+AR37","v":0},{"$f":"AJ37","v":0},null,null,null,null,null,null,null,null,null,null,null,null,null,null,null,null,null,null,null,null,null,null,null,null,null,null,null,null,null,null,null,null,null,null,null,null,null,null,null,null,null,null,null,null,null,null,null,null,null,null,null,null,null,null,null,null,null,null,null,null,null,null,null,null,null,null,null,null,null,null,null,null,null,null,null,null,null,null,null,null,null,null,null,null,null,null,null,null,null,null,null,null,null,null,null,null,null,null,null,null,null,null,null,null,null,null,null,null,null,null,null,null,null,null,null,null,null,null,null,null,null,null,null,null,null,null,null,null,null,null,null,null,null,null,6]
[null,null,null,"M5x20",{"$f":"SUM(N38:T38)","v":12},null,"[ AliExpress ]",null,null,{"$f":"2.69/10","v":0.26900000000000002},{"$f":"E38*J38","v":3.2280000000000002},null,{"$f":"IF(E38=0,IF(E38=\"\",0,1),0)","v":0},12,0,0,0,0,0,0,null,null,null,null,null,6,6,10,10,null,null,null,null,null,null,null,{"$f":"IF($AV$4=1,-4,0)","v":0},{"$f":"IF($AV$4=1,-8,0)","v":0},null,null,null,null,null,null,0,0,12,20,0,0,0,0]
[null,null,"SETSCREWS",null,null,null,null,null,null,null,null,null,{"$f":"M40","v":0},0,0,0,0,0,0,0,null,null,null,null,null,null,null,null,null,null,null,null,null,null,null,null,null,null,null,null,null,null,null,null,0,0,0,0,0,0,0,0,null,null,null,null,null,null,null,null,null,null,null,null,null,null,null,null,null,null,null,null,null,null,null,null,null,null,null,null,null,null,null,null,null,null,null,null,null,null,null,null,null,null,null,null,null,null,null,null,null,null,null,null,null,null,null,null,null,null,null,null,null,null,null,null,null,null,null,null,null,null,null,null,null,null,null,null,null,null,null,null,null,null,null,null,null,null,null,null,null,null,null,null,null,null,null,null,null,null,null,null,null,null,null,null,null,null,null,null,null,null,null,null,null,null,null,null,null,null,null,null,null,null,null,null,null,null,null,null,null,null,null,null,null,null,null,null,null,{"$f":"C39","v":"SETSCREWS"}]
[null,null,null,"M3x5 flatpoint",{"$f":"SUM(N40:T40)","v":8},null,"[ AliExpress ]",null,null,{"$f":"1.11/50","v":2.2200000000000001E-2},{"$f":"E40*J40","v":0.17760000000000001},null,{"$f":"IF(E40=0,IF(E40=\"\",0,1),0)","v":0},8,0,0,0,0,0,0,null,null,null,null,null,null,null,null,null,null,null,{"$f":"2-AD40","v":2},1,null,null,null,null,null,2,2,null,null,null,2,4,0,0,0,0,0,4,0,6]
[null,null,"WASHERS",null,null,null,null,null,null,null,null,null,{"$f":"M42*M43","v":0},0,0,0,0,0,0,0,null,null,null,null,null,null,null,null,null,null,null,null,null,null,null,null,null,null,null,null,null,null,null,null,0,0,0,0,0,0,0,0,null,null,null,null,null,null,null,null,null,null,null,null,null,null,null,null,null,null,null,null,null,null,null,null,null,null,null,null,null,null,null,null,null,null,null,null,null,null,null,null,null,null,null,null,null,null,null,null,null,null,null,null,null,null,null,null,null,null,null,null,null,null,null,null,null,null,null,null,null,null,null,null,null,null,null,null,null,null,null,null,null,null,null,null,null,null,null,null,null,null,null,null,null,null,null,null,null,null,null,null,null,null,null,null,null,null,null,null,null,null,null,null,null,null,null,null,null,null,null,null,null,null,null,null,null,null,null,null,null,null,null,null,null,null,null,null,null,{"$f":"C41","v":"WASHERS"}]
[null,null,null,"M3",{"$f":"SUM(N42:T42)","v":0},"3,2 x 7 x 0,5 mm        (ID x OD x TH)  -  Brass washers have less burr = more precision (alt. link).","[ AliExpress ]",null,"[ AliExpress ]",{"$f":"1.12/100","v":1.1200000000000002E-2},{"$f":"E42*J42","v":0},null,{"$f":"IF(E42=0,IF(E42=\"\",0,1),0)","v":1},0,0,0,0,0,0,0,null,null,null,null,null,null,null,null,null,null,null,null,null,null,null,null,null,null,null,null,null,null,null,null,0,0,0,0,0,0,0,0,null,null,null,null,null,null,null,null,null,null,null,null,9]
[null,null,null,"M5",{"$f":"SUM(N43:T43)","v":52},"5,3 x 10 x 1 mm          (ID x OD x TH)  -  Brass washers have less burr = more precision (alt. link).","[ AliExpress ]",null,"[ AliExpress ]",{"$f":"1.8/100","v":1.8000000000000002E-2},{"$f":"E43*J43","v":0.93600000000000017},null,{"$f":"IF(E43=0,IF(E43=\"\",0,1),0)","v":0},44,0,0,8,0,0,0,1,1,null,1,1,9,9,13,13,2,2,{"$f":"2-AD43","v":0},2,2,null,-2,null,null,4,4,6,6,null,null,26,2,18,26,0,0,0,-2,null,4,4,null,null,12]
[null,null,"NUTS",null,null,null,null,null,null,null,null,null,{"$f":"M45","v":0},0,0,0,0,0,0,0,null,null,null,null,null,null,null,null,null,null,null,null,null,null,null,null,null,null,null,null,null,null,null,null,0,0,0,0,0,0,0,0,null,null,null,null,null,null,null,null,null,null,null,null,null,null,null,null,null,null,null,null,null,null,null,null,null,null,null,null,null,null,null,null,null,null,null,null,null,null,null,null,null,null,null,null,null,null,null,null,null,null,null,null,null,null,null,null,null,null,null,null,null,null,null,null,null,null,null,null,null,null,null,null,null,null,null,null,null,null,null,null,null,null,null,null,null,null,null,null,null,null,null,null,null,null,null,null,null,null,null,null,null,null,null,null,null,null,null,null,null,null,null,null,null,null,null,null,null,null,null,null,null,null,null,null,null,null,null,null,null,null,null,null,null,null,null,null,null,{"$f":"C44","v":"NUTS"}]
[null,null,null,"M3",{"$f":"SUM(N45:T45)","v":5},null,"[ AliExpress ]",null,null,{"$f":"1.27/55","v":2.3090909090909092E-2},{"$f":"E45*J45","v":0.11545454545454546},null,{"$f":"IF(E45=0,IF(E45=\"\",0,1),0)","v":0},0,5,0,0,0,0,0,null,null,null,null,null,null,null,null,null,null,null,null,null,null,null,null,null,null,null,null,null,null,null,null,0,0,0,0,0,0,0,0,null,null,null,null,null,null,null,null,4,4,4,null,null,null,1]
[null,null,"T-NUTS",null,null,null,null,null,null,null,null,null,{"$f":"M47*M48","v":0},0,0,0,0,0,0,0,null,null,null,null,null,null,null,null,null,null,null,null,null,null,null,null,null,null,null,null,null,null,null,null,0,0,0,0,0,0,0,0,null,null,null,null,null,null,null,null,null,null,null,null,null,null,null,null,null,null,null,null,null,null,null,null,null,null,null,null,null,null,null,null,null,null,null,null,null,null,null,null,null,null,null,null,null,null,null,null,null,null,null,null,null,null,null,null,null,null,null,null,null,null,null,null,null,null,null,null,null,null,null,null,null,null,null,null,null,null,null,null,null,null,null,null,null,null,null,null,null,null,null,null,null,null,null,null,null,null,null,null,null,null,null,null,null,null,null,null,null,null,null,null,null,null,null,null,null,null,null,null,null,null,null,null,null,null,null,null,null,null,null,null,null,null,null,null,null,{"$f":"C46","v":"T-NUTS"}]
[null,null,null,"M3",{"$f":"SUM(N47:T47)","v":45},"Roll-in T-nuts from alternative link are much nicer to work with but are more expensive than hammer T-nuts.","[ AliExpress ]",null,"[ AliExpress ]",{"$f":"1.9/30","v":6.3333333333333325E-2},{"$f":"E47*J47","v":2.8499999999999996},null,{"$f":"IF(E47=0,IF(E47=\"\",0,1),0)","v":0},22,0,9,0,0,14,0,null,null,4,null,null,9,9,9,9,null,null,null,null,null,null,null,4,null,null,null,null,null,null,null,4,0,18,18,4,0,0,0,null,null,null,null,null,38,null,null,null,null,null,null,null,null,null,null,null,null,5,null,4,null,null,null,null,null,null,null,null,null,null,null,null,null,null,null,null,null,null,null,null,null,null,null,null,null,null,null,null,null,null,null,null,null,null,null,null,null,null,null,null,null,null,null,null,null,null,null,null,null,null,null,null,null,null,null,null,null,null,null,null,null,null,null,null,null,null,null,null,null,null,null,null,null,null,null,null,null,null,null,null,null,null,null,null,null,null,null,null,null,null,null,null,null,null,null,null,null,null,null,null,null,null,null,{"$f":"IF(AT$4=1,10,12)","v":12},null,8,6,null,{"$f":"FX47+FY47","v":6},null,null,null,null,8]
[null,null,null,"M4",{"$f":"SUM(N48:T48)","v":30},"Roll-in T-nuts from alternative link are much nicer to work with but are more expensive than hammer T-nuts.","[ AliExpress ]",null,"[ AliExpress ]",{"$f":"1.8/30","v":6.0000000000000005E-2},{"$f":"E48*J48","v":1.8},null,{"$f":"IF(E48=0,IF(E48=\"\",0,1),0)","v":0},29,0,1,0,0,0,0,1,1,null,2,2,null,null,null,null,4,4,{"$f":"4-AD48","v":0},4,2,2,{"$f":"AI48*2-AH48","v":2},null,null,2,2,4,4,4,{"$f":"-4+7","v":3},26,4,0,0,0,0,3,2,null,null,null,null,null,null,null,null,null,null,null,null,null,null,null,null,null,null,null,null,null,1,null,null,null,null,null,null,null,null,null,null,null,null,null,null,null,null,null,null,null,null,null,null,null,null,null,null,null,null,null,null,null,null,null,null,null,null,null,null,null,null,null,null,null,null,null,null,null,null,null,null,null,null,null,null,null,null,null,null,null,null,null,null,null,null,null,null,null,null,null,null,null,null,null,null,null,null,null,null,null,null,null,null,null,null,null,null,null,null,null,null,null,null,null,null,null,null,null,null,null,null,null,null,null,null,null,null,null,null,4,null,2]
[null,null,"HEAT INSERTS",null,null,null,null,null,null,null,null,null,{"$f":"M50*M51","v":0},0,0,0,0,0,0,0,null,null,null,null,null,null,null,null,null,null,null,null,null,null,null,null,null,null,null,null,null,null,null,null,0,0,0,0,0,0,0,0,null,null,null,null,null,null,null,null,null,null,null,null,null,null,null,null,null,null,null,null,null,null,null,null,null,null,null,null,null,null,null,null,null,null,null,null,null,null,null,null,null,null,null,null,null,null,null,null,null,null,null,null,null,null,null,null,null,null,null,null,null,null,null,null,null,null,null,null,null,null,null,null,null,null,null,null,null,null,null,null,null,null,null,null,null,null,null,null,null,null,null,null,null,null,null,null,null,null,null,null,null,null,null,null,null,null,null,null,null,null,null,null,null,null,null,null,null,null,null,null,null,null,null,null,null,null,null,null,null,null,null,null,null,null,null,null,null,{"$f":"C49","v":"HEAT INSERTS"}]
[null,null,null,"M3",{"$f":"SUM(N50:T50)","v":103},"M3 x 4 x 4,5 mm        (ID x L x OD)","[ AliExpress ]",null,null,{"$f":"4.19/100","v":4.1900000000000007E-2},{"$f":"E50*J50","v":4.3157000000000005},null,{"$f":"IF(E50=0,IF(E50=\"\",0,1),0)","v":0},49,12,22,10,10,0,0,8,8,3,16,16,null,null,null,null,3,3,{"$f":"5-AD50","v":2},4,null,null,null,3,null,3,3,3,3,8,{"$f":"-8+13","v":5},42,32,0,0,3,0,7,0,6,null,null,10,null,41,null,null,12,6,6,3,3,null,null,null,null,null,7,8,3,null,null,null,null,4,null,4,8,null,null,null,null,8,null,null,null,null,null,null,null,null,null,null,null,null,null,null,null,null,null,null,null,null,null,null,null,null,null,null,null,null,4,4,2,2,2,2,2,2,2,2,2,2,4,2,2,2,2,2,2,2,2,{"$f":"2+5","v":7},5,{"$f":"2+6","v":8},4,2,2,null,2,2,2,4,4,2,null,2,null,2,null,null,null,null,2,4,null,null,null,null,2,null,2,2,2,1,2,null,null,4,null,4,null,null,null,null,null,null,null,null,null,null,8,null,12]
[null,null,null,"M5",{"$f":"SUM(N51:T51)","v":18},"M5 x 5 x 7 mm          (ID x L x OD)","[ AliExpress ]",null,null,{"$f":"6.48/100","v":6.480000000000001E-2},{"$f":"E51*J51","v":1.1664000000000001},null,{"$f":"IF(E51=0,IF(E51=\"\",0,1),0)","v":0},14,0,0,4,0,0,0,3,3,null,1,1,null,null,null,null,1,1,{"$f":"1-AD51","v":0},1,1,null,-1,4,null,1,1,2,2,null,null,14,2,0,0,4,0,0,-1,null,2,2,null,null,12]
[null,null,"MAGNETS",null,null,null,null,null,null,null,null,null,{"$f":"M53","v":1},null,null,null,null,0,null,null,null,null,null,null,null,null,null,null,null,null,null,null,null,null,null,null,null,null,null,null,null,null,null,null,0,0,0,0,0,0,0,0,null,null,null,null,null,null,null,null,null,null,null,null,null,null,null,null,null,null,null,null,null,null,null,null,null,null,null,null,null,null,null,null,null,null,null,null,null,null,null,null,null,null,null,null,null,null,null,null,null,null,null,null,null,null,null,null,null,null,null,null,null,null,null,null,null,null,null,null,null,null,null,null,null,null,null,null,null,null,null,null,null,null,null,null,null,null,null,null,null,null,null,null,null,null,null,null,null,null,null,null,null,null,null,null,null,null,null,null,null,null,null,null,null,null,null,null,null,null,null,null,null,null,null,null,null,null,null,null,null,null,null,null,null,null,null,null,null,{"$f":"C52","v":"MAGNETS"}]
[null,null,null,"MAGNET 6x3",{"$f":"SUM(N53:T53)","v":0},null,"[ AliExpress ]",null,null,{"$f":"2.89/20","v":0.14450000000000002},{"$f":"E53*J53","v":0},null,{"$f":"IF(E53=0,IF(E53=\"\",0,1),0)","v":1},{"$f":"AS$4*AS53+AT$4*AT53+AU$4*AU53+AV$4*AV53+AW$4*AW53+AX$4*AX53+AY$4*AY53+AZ$4*AZ53+BA$4*BA53","v":0},{"$f":"BG$4*BG53+BH$4*BH53+BI$4*BI53+BJ$4*BJ53+BK$4*BK53+BL$4*BL53+BM$4*BM53+BN$4*BN53+BO$4*BO53+BP$4*BP53+BQ$4*BQ53+BR$4*BR53","v":0},{"$f":"BS$4*BS53+BT$4*BT53+BU$4*BU53+BV$4*BV53+BW$4*BW53+BX$4*BX53+BY$4*BY53+BZ$4*BZ53+CA$4*CA53+CB$4*CB53+CC$4*CC53+CD$4*CD53+CE$4*CE53+CF$4*CF53+CG$4*CG53+CH$4*CH53","v":0},{"$f":"BB$4*BB53+BC$4*BC53+BD$4*BD53","v":0},0,{"$f":"FU$4*FU53+FV$4*FV53+FW$4*FW53+FX$4*FX53+FY$4*FY53+FZ$4*FZ53+GA$4*GA53+GB$4*GB53+GC$4*GC53+GD$4*GD53+GE$4*GE53","v":0},{"$f":"BF$4*BF53","v":0},null,null,null,null,null,null,null,null,null,null,null,null,null,null,null,null,null,null,null,null,null,null,null,null,0,0,0,0,0,0,0,0,null,null,null,null,null,20,null,null,null,null,null,null,null,null,null,null,null,null,null,null,null,null,null,null,null,null,null,null,null,null,null,null,null,null,null,null,null,null,null,null,null,null,null,null,null,null,null,null,null,null,null,null,null,null,null,null,null,null,null,null,null,null,null,null,null,null,null,null,null,null,null,null,null,null,null,null,null,null,null,null,null,null,null,null,null,null,null,null,null,null,null,null,null,null,null,null,null,null,null,null,null,null,null,null,null,null,null,null,8]
[null,null,"MOTION",null,null,null,null,null,null,null,{"$f":"SUM(K55:K70)","v":147.9135},null,0,0,0,0,0,0,0,0,null,null,null,null,null,null,null,null,null,null,null,null,null,null,null,null,null,null,null,null,null,null,null,null,0,0,0,0,0,0,0,0,null,null,null,null,null,null,null,null,null,null,null,null,null,null,null,null,null,null,null,null,null,null,null,null,null,null,null,null,null,null,null,null,null,null,null,null,null,null,null,null,null,null,null,null,null,null,null,null,null,null,null,null,null,null,null,null,null,null,null,null,null,null,null,null,null,null,null,null,null,null,null,null,null,null,null,null,null,null,null,null,null,null,null,null,null,null,null,null,null,null,null,null,null,null,null,null,null,null,null,null,null,null,null,null,null,null,null,null,null,null,null,null,null,null,null,null,null,null,null,null,null,null,null,null,null,null,null,null,null,null,null,null,null,null,null,null,null,{"$f":"C54","v":"MOTION"}]
[null,null,null,"8 x 350 mm linear rod",{"$f":"SUM(N55:T55)","v":4},"h6 diameter tolerance / Ra 0.4 surface roughness / hardened steel = recommended parameters","[ AliExpress ]",null,"[ AliExpress ]",{"$f":"(8.64+8.64+2.74)/4","v":5.0050000000000008},{"$f":"E55*J55","v":20.020000000000003},null,{"$f":"IF(E55=0,IF(E55=\"\",0,1),0)","v":0},0,0,0,4,0,0,0,null,null,null,null,null,null,null,null,null,null,null,null,null,null,null,null,null,null,null,null,null,null,null,null,0,0,0,0,0,0,0,0,null,1,1,2]
[null,null,null,"12 x 350 mm linear rod",2,"h6 diameter tolerance / Ra 0.4 surface roughness / hardened steel = recommended parameters","[ AliExpress ]",null,"[ AliExpress ]",{"$f":"(13.2+13.2+2.74)/4","v":7.2850000000000001},14.57,null,0,2,0,0,0,0,0,0,1,1,null,null,null,null,null,null,null,null,null,null,null,null,null,null,null,null,null,null,null,null,null,null,2,0,0,0,0,0,0,0]
[null,null,null,"12 x 320 mm linear rod",1,"h6 diameter tolerance / Ra 0.4 surface roughness / hardened steel = recommended parameters","[ AliExpress ]",null,"[ AliExpress ]",{"$f":"J56","v":7.2850000000000001},7.2850000000000001,null,0,1,0,0,0,0,0,0,null,null,null,null,null,null,null,null,null,null,null,1,null,null,null,null,null,null,null,null,null,null,null,null,0,0,0,0,0,0,1,0]
[null,null,null,"LM8LUU linear bearing",4,"ABEC-5 is recommended minimum","[ AliExpress ]","[ AliExpress ]","[ AliExpress ]",{"$f":"16.19/4","v":4.0475000000000003},16.190000000000001,null,0,0,0,0,4,0,0,0,null,null,null,null,null,null,null,null,null,null,null,null,null,null,null,null,null,null,null,null,null,null,null,null,0,0,0,0,0,0,0,0,null,1,1,2]
[null,null,null,"LM12UU linear bearing",3,"ABEC-5 is recommended minimum","[ AliExpress ]",null,"[ AliExpress ]",{"$f":"14.5/4","v":3.625},10.875,null,0,0,3,0,0,0,0,0,null,null,null,null,null,null,null,null,null,null,null,null,null,null,null,null,null,null,null,null,null,null,null,null,0,0,0,0,0,0,0,0,null,null,null,null,null,null,null,null,2,2,2,null,null,null,1]
[null,null,null,"LMH12UU linear bearing",0,"ABEC-5 is recommended minimum","[ AliExpress ]",null,null,{"$f":"10.08/2","v":5.04},0,null,1,0,0,0,0,0,0,0,null,null,null,null,null,null,null,null,null,null,null,null,null,null,null,null,null,null,null,null,null,null,null,null,0,0,0,0,0,0,0,0,null,null,null,null,null,null,3]
[null,null,null,"T8/8 x 300 mm leadscrew",3,null,"[ AliExpress ]",null,null,5.27,15.809999999999999,null,0,3,0,0,0,0,0,0,1,1,null,null,null,null,null,null,null,1,1,{"$f":"1-AD61","v":0},1,null,null,null,null,null,null,null,null,null,null,null,3,0,0,0,0,0,0,0]
[null,null,null,"T8/8 leadscrew nut",3,null,"included with leadscrew",null,null,null,0,null,0,0,3,0,0,0,0,0,null,null,null,null,null,null,null,null,null,null,null,null,null,null,null,null,null,null,null,null,null,null,null,null,0,0,0,0,0,0,0,0,null,null,null,null,null,null,3,null,3,3,3]
[null,null,null,"608-2RS ball bearing",6,null,"[ AliExpress ]",null,null,{"$f":"6.39/8","v":0.79874999999999996},4.7924999999999995,null,0,6,0,0,0,0,0,0,2,2,null,null,null,null,null,null,null,2,2,{"$f":"2-AD63","v":0},2,null,null,null,null,null,null,null,null,null,null,null,6,0,0,0,0,0,0,0,null,null,null,null,null,null,null,null,null,null,null,null,null,null,null,null,null,null,null,null,null,null,null,null,null,null,null,null,null,null,null,null,null,null,null,null,null,null,null,null,null,null,null,null,null,null,null,null,null,null,null,null,null,null,null,null,null,null,null,null,null,null,null,null,null,null,null,null,null,null,null,null,null,null,null,null,null,null,null,null,null,null,null,null,null,null,null,null,null,null,null,null,null,null,null,null,null,null,null,null,null,null,null,null,null,null,null,null,null,null,null,null,null,null,null,null,null,null,null,null,null,null,null,null,null,null,null,null,null,null,4]
[null,null,null,"F695-2RS ball bearing",32,"There are 28 F695 bearings in the XY motion that need to be better quality, other can theoretically be cheaper.","[ AliExpress ]",null,null,{"$f":"5.46/10","v":0.54600000000000004},17.472000000000001,null,0,24,0,0,8,0,0,0,null,null,null,null,null,null,null,null,null,2,2,{"$f":"2-AD64","v":0},2,2,null,-2,null,null,4,4,6,6,null,null,24,0,0,0,0,0,0,-2,null,4,4,null,null,12]
[null,null,null,"40T 8mm GT2 pulley",3,"40T / 8 mm bore / GT2 / for 6 mm belt / total width 17 mm","[ AliExpress ]",null,null,{"$f":"11.99/3","v":3.9966666666666666},11.99,null,0,3,0,0,0,0,0,0,1,1,null,null,null,null,null,null,null,1,1,{"$f":"1-AD65","v":0},1,null,null,null,null,null,null,null,null,null,null,null,3,0,0,0,0,0,0,0,-3]
[null,null,null,"20T 5mm GT2 pulley",3,"20T / 5 mm bore / GT2 / for 6 mm belt","[ AliExpress ]",null,null,{"$f":"7.99/5","v":1.5980000000000001},4.7940000000000005,null,0,3,0,0,0,0,0,0,null,null,null,null,null,null,null,null,null,null,1,null,1,null,1,{"$f":"AI66*2","v":2},null,null,null,null,1,1,null,null,3,0,{"$f":"Z66+AA66","v":0},{"$f":"AB66+AC66","v":0},{"$f":"AK66","v":0},{"$f":"AL66","v":0},{"$f":"AF66+AR66","v":0},{"$f":"AJ66","v":2}]
[null,null,null,"6mm GT2 belt 3m",1,"6 mm / 3 m / GT2 / open end – 3 m is minimal, 5 m is recommended – Gates or Powge recommended","[ AliExpress ]",null,null,18.989999999999998,18.989999999999998,null,0,0,0,0,1,{"$f":"DK$4*DK67+DL$4*DL67+DM$4*DM67+DN$4*DN67+DO$4*DO67+DP$4*DP67+DQ$4*DQ67+DR$4*DR67+DS$4*DS67+DT$4*DT67+DU$4*DU67+DV$4*DV67+DW$4*DW67+DX$4*DX67+DY$4*DY67+DZ$4*DZ67+EA$4*EA67+EB$4*EB67+EC$4*EC67+ED$4*ED67+EE$4*EE67+EF$4*EF67+EG$4*EG67+EH$4*EH67+EI$4*EI67+EJ$4*EJ67+EK$4*EK67+EL$4*EL67+EM$4*EM67+EN$4*EN67+EO$4*EO67+EP$4*EP67+EQ$4*EQ67+ER$4*ER67+ES$4*ES67+ET$4*ET67+EU$4*EU67+EV$4*EV67+EW$4*EW67+EX$4*EX67+EY$4*EY67+EZ$4*EZ67+FA$4*FA67+FB$4*FB67+FC$4*FC67+FD$4*FD67+FE$4*FE67+FF$4*FF67+FG$4*FG67+FH$4*FH67+FI$4*FI67+FJ$4*FJ67+FK$4*FK67+FL$4*FL67+FM$4*FM67+FN$4*FN67+FO$4*FO67+FP$4*FP67+FQ$4*FQ67+FR$4*FR67+FS$4*FS67+FT$4*FT67","v":0},0,0,null,null,null,null,null,null,null,null,null,null,null,null,null,null,null,null,null,null,null,null,null,null,null,null,0,0,0,0,0,0,0,0,null,null,null,1]
[null,null,null,"6mm GT2 belt 1140 mm closed loop",1,"6 mm / 570T / 1140 mm / GT2 / closed loop – recommended length – Gates or Powge recommended","[ AliExpress ]",null,null,{"$f":"(4.99+5.26)/2","v":5.125},5.125,null,0,1,0,0,0,0,0,0,null,null,null,null,null,null,null,null,null,1,null,{"$f":"1-AD68","v":0},null,null,null,-1,null,null,null,null,null,null,null,null,1,0,0,0,0,0,0,-1]
[null,null,null,"6mm GT2 belt 220 mm closed loop",0,"6 mm / 110T / 220 mm / GT2 / closed loop – minimal length, longer belt will fit too – Gates or Powge recommended","[ AliExpress ]",null,null,{"$f":"(4.99+3.98)/5","v":1.794},0,null,1,0,0,0,0,0,0,0,null,null,null,null,null,null,null,null,null,null,null,null,null,null,null,3,null,null,null,null,null,null,null,null,0,0,0,0,0,0,0,3]
[null,null,null,"Nema 17 stepper motor",3,"Stock Creality stepper motors can be used, for the XY motion even with the stock pulleys.","links in the table below",null,null,null,0,null,0,3,0,0,0,0,0,0,null,null,null,null,null,null,null,null,null,null,1,null,1,null,1,{"$f":"AI70*2","v":2},null,null,null,null,1,1,null,null,3,0,0,0,0,0,0,2]
[null,null,"FRAME",null,null,null,null,null,null,null,{"$f":"SUM(K72:K85)","v":38.07},null,0,null,null,null,null,0,null,null,null,null,null,null,null,null,null,null,null,null,null,null,null,null,null,null,null,null,null,null,null,null,null,null,0,0,0,0,0,0,0,0,null,null,null,null,null,null,null,null,null,null,null,null,null,null,null,null,null,null,null,null,null,null,null,null,null,null,null,null,null,null,null,null,null,null,null,null,null,null,null,null,null,null,null,null,null,null,null,null,null,null,null,null,null,null,null,null,null,null,null,null,null,null,null,null,null,null,null,null,null,null,null,null,null,null,null,null,null,null,null,null,null,null,null,null,null,null,null,null,null,null,null,null,null,null,null,null,null,null,null,null,null,null,null,null,null,null,null,null,null,null,null,null,null,null,null,null,null,null,null,null,null,null,null,null,null,null,null,null,null,null,null,null,null,null,null,null,null,{"$f":"C71","v":"FRAME"}]
[null,null,null,"2040 x 350 mm V-slot extrusion",{"$f":"SUM(N72:T72)","v":2},null,"[ AliExpress ]",null,null,7.45,{"$f":"E72*J72","v":14.9},null,{"$f":"IF(E72=0,IF(E72=\"\",0,1),0)","v":0},{"$f":"AS$4*AS72+AT$4*AT72+AU$4*AU72+AV$4*AV72+AW$4*AW72+AX$4*AX72+AY$4*AY72+AZ$4*AZ72+BA$4*BA72","v":2},{"$f":"BG$4*BG72+BH$4*BH72+BI$4*BI72+BJ$4*BJ72+BK$4*BK72+BL$4*BL72+BM$4*BM72+BN$4*BN72+BO$4*BO72+BP$4*BP72+BQ$4*BQ72+BR$4*BR72","v":0},{"$f":"BS$4*BS72+BT$4*BT72+BU$4*BU72+BV$4*BV72+BW$4*BW72+BX$4*BX72+BY$4*BY72+BZ$4*BZ72+CA$4*CA72+CB$4*CB72+CC$4*CC72+CD$4*CD72+CE$4*CE72+CF$4*CF72+CG$4*CG72+CH$4*CH72","v":0},{"$f":"BB$4*BB72+BC$4*BC72+BD$4*BD72","v":0},0,{"$f":"FU$4*FU72+FV$4*FV72+FW$4*FW72+FX$4*FX72+FY$4*FY72+FZ$4*FZ72+GA$4*GA72+GB$4*GB72+GC$4*GC72+GD$4*GD72+GE$4*GE72","v":0},{"$f":"BF$4*BF72","v":0},null,null,null,null,null,1,1,1,1,null,null,null,null,null,null,null,null,null,null,null,null,null,null,null,0,0,2,2,0,0,0,0]
[null,null,null,"2040 x 300 mm V-slot extrusion",{"$f":"SUM(N73:T73)","v":0},"If you are cutting the extrusions, you can use 2040 x 310 mm extrusions here.","[ AliExpress ]",null,null,6.84,0,null,{"$f":"IF(E73=0,IF(E73=\"\",0,1),0)","v":1},0,0,0,0,0,0,0,null,null,null,null,null,null,null,1,1,null,null,null,null,null,null,null,null,null,null,null,null,null,null,null,0,0,0,2,0,0,0,0]
[null,null,null,"Rear electronics panel",{"$f":"SUM(N74:T74)","v":1},"Clear or black / polycarbonate or acrylic / recommended thickness 3mm","[ AliExpress ]",null,null,20,20,null,{"$f":"IF(E74=0,IF(E74=\"\",0,1),0)","v":0},0,0,1,0,{"$f":"DK$4*DK74+DL$4*DL74+DM$4*DM74+DN$4*DN74+DO$4*DO74+DP$4*DP74+DQ$4*DQ74+DR$4*DR74+DS$4*DS74+DT$4*DT74+DU$4*DU74+DV$4*DV74+DW$4*DW74+DX$4*DX74+DY$4*DY74+DZ$4*DZ74+EA$4*EA74+EB$4*EB74+EC$4*EC74+ED$4*ED74+EE$4*EE74+EF$4*EF74+EG$4*EG74+EH$4*EH74+EI$4*EI74+EJ$4*EJ74+EK$4*EK74+EL$4*EL74+EM$4*EM74+EN$4*EN74+EO$4*EO74+EP$4*EP74+EQ$4*EQ74+ER$4*ER74+ES$4*ES74+ET$4*ET74+EU$4*EU74+EV$4*EV74+EW$4*EW74+EX$4*EX74+EY$4*EY74+EZ$4*EZ74+FA$4*FA74+FB$4*FB74+FC$4*FC74+FD$4*FD74+FE$4*FE74+FF$4*FF74+FG$4*FG74+FH$4*FH74+FI$4*FI74+FJ$4*FJ74+FK$4*FK74+FL$4*FL74+FM$4*FM74+FN$4*FN74+FO$4*FO74+FP$4*FP74+FQ$4*FQ74+FR$4*FR74+FS$4*FS74+FT$4*FT74","v":0},0,0,null,null,null,null,null,null,null,null,null,null,null,null,null,null,null,null,null,null,null,null,null,null,null,null,null,null,null,null,null,null,null,null,null,null,null,null,null,null,null,null,null,null,null,null,null,null,null,null,null,null,null,null,1]
[null,null,null,"Enclosure panels - door",{"$f":"SUM(N75:T75)","v":0},"Clear / polycarbonate / recommended thickness 5mm","[ AliExpress ]",null,null,30,0,null,{"$f":"IF(E75=0,IF(E75=\"\",0,1),0)","v":1},{"$f":"AS$4*AS75+AT$4*AT75+AU$4*AU75+AV$4*AV75+AW$4*AW75+AX$4*AX75+AY$4*AY75+AZ$4*AZ75+BA$4*BA75","v":0},{"$f":"BG$4*BG75+BH$4*BH75+BI$4*BI75+BJ$4*BJ75+BK$4*BK75+BL$4*BL75+BM$4*BM75+BN$4*BN75+BO$4*BO75+BP$4*BP75+BQ$4*BQ75+BR$4*BR75","v":0},{"$f":"BS$4*BS75+BT$4*BT75+BU$4*BU75+BV$4*BV75+BW$4*BW75+BX$4*BX75+BY$4*BY75+BZ$4*BZ75+CA$4*CA75+CB$4*CB75+CC$4*CC75+CD$4*CD75+CE$4*CE75+CF$4*CF75+CG$4*CG75+CH$4*CH75","v":0},{"$f":"BB$4*BB75+BC$4*BC75+BD$4*BD75","v":0},{"$f":"DK$4*DK75+DL$4*DL75+DM$4*DM75+DN$4*DN75+DO$4*DO75+DP$4*DP75+DQ$4*DQ75+DR$4*DR75+DS$4*DS75+DT$4*DT75+DU$4*DU75+DV$4*DV75+DW$4*DW75+DX$4*DX75+DY$4*DY75+DZ$4*DZ75+EA$4*EA75+EB$4*EB75+EC$4*EC75+ED$4*ED75+EE$4*EE75+EF$4*EF75+EG$4*EG75+EH$4*EH75+EI$4*EI75+EJ$4*EJ75+EK$4*EK75+EL$4*EL75+EM$4*EM75+EN$4*EN75+EO$4*EO75+EP$4*EP75+EQ$4*EQ75+ER$4*ER75+ES$4*ES75+ET$4*ET75+EU$4*EU75+EV$4*EV75+EW$4*EW75+EX$4*EX75+EY$4*EY75+EZ$4*EZ75+FA$4*FA75+FB$4*FB75+FC$4*FC75+FD$4*FD75+FE$4*FE75+FF$4*FF75+FG$4*FG75+FH$4*FH75+FI$4*FI75+FJ$4*FJ75+FK$4*FK75+FL$4*FL75+FM$4*FM75+FN$4*FN75+FO$4*FO75+FP$4*FP75+FQ$4*FQ75+FR$4*FR75+FS$4*FS75+FT$4*FT75","v":0},{"$f":"FU$4*FU75+FV$4*FV75+FW$4*FW75+FX$4*FX75+FY$4*FY75+FZ$4*FZ75+GA$4*GA75+GB$4*GB75+GC$4*GC75+GD$4*GD75+GE$4*GE75","v":0},{"$f":"BF$4*BF75","v":0},null,null,null,null,null,null,null,null,null,null,null,null,null,null,null,null,null,null,null,null,null,null,null,null,null,null,null,null,null,null,null,null,null,null,null,null,null,1]
[null,null,null,"Enclosure panels - side",0,"Clear / polycarbonate / recommended thickness 4mm","[ AliExpress ]",null,null,25,0,null,1,0,0,0,0,0,0,0,null,null,null,null,null,null,null,null,null,null,null,null,null,null,null,null,null,null,null,null,null,null,null,null,null,null,null,null,null,null,null,null,null,null,null,null,null,2]
[null,null,null,"Enclosure panels - bottom",0,"Clear or black / polycarbonate / recommended thickness 4mm","[ AliExpress ]",null,null,20,0,null,1,0,0,0,0,0,0,0,null,null,null,null,null,null,null,null,null,null,null,null,null,null,null,null,null,null,null,null,null,null,null,null,null,null,null,null,null,null,null,null,null,null,null,null,null,1]
[null,null,null,"Enclosure panels - top",0,"Clear / polycarbonate / recommended thickness 4mm","[ AliExpress ]",null,null,20,0,null,1,0,0,0,0,0,0,0,null,null,null,null,null,null,null,null,null,null,null,null,null,null,null,null,null,null,null,null,null,null,null,null,null,null,null,null,null,null,null,null,null,null,null,null,null,1]
[null,null,null,"Enclosure panels - rear",{"$f":"SUM(N79:T79)","v":0},"Clear or black / polycarbonate / recommended thickness 4mm","[ AliExpress ]",null,null,15,0,null,1,0,0,0,0,0,0,0,null,null,null,null,null,null,null,null,null,null,null,null,null,null,null,null,null,null,null,null,null,null,null,null,null,null,null,null,null,null,null,null,null,null,null,null,null,1]
[null,null,null,"RUBBER FEET",{"$f":"SUM(N80:T80)","v":4},null,"[ AliExpress ]",null,null,{"$f":"3.17/4","v":0.79249999999999998},3.17,null,{"$f":"IF(E80=0,IF(E80=\"\",0,1),0)","v":0},4,0,0,0,{"$f":"DK$4*DK80+DL$4*DL80+DM$4*DM80+DN$4*DN80+DO$4*DO80+DP$4*DP80+DQ$4*DQ80+DR$4*DR80+DS$4*DS80+DT$4*DT80+DU$4*DU80+DV$4*DV80+DW$4*DW80+DX$4*DX80+DY$4*DY80+DZ$4*DZ80+EA$4*EA80+EB$4*EB80+EC$4*EC80+ED$4*ED80+EE$4*EE80+EF$4*EF80+EG$4*EG80+EH$4*EH80+EI$4*EI80+EJ$4*EJ80+EK$4*EK80+EL$4*EL80+EM$4*EM80+EN$4*EN80+EO$4*EO80+EP$4*EP80+EQ$4*EQ80+ER$4*ER80+ES$4*ES80+ET$4*ET80+EU$4*EU80+EV$4*EV80+EW$4*EW80+EX$4*EX80+EY$4*EY80+EZ$4*EZ80+FA$4*FA80+FB$4*FB80+FC$4*FC80+FD$4*FD80+FE$4*FE80+FF$4*FF80+FG$4*FG80+FH$4*FH80+FI$4*FI80+FJ$4*FJ80+FK$4*FK80+FL$4*FL80+FM$4*FM80+FN$4*FN80+FO$4*FO80+FP$4*FP80+FQ$4*FQ80+FR$4*FR80+FS$4*FS80+FT$4*FT80","v":0},0,0,1,1,null,1,1,1,1,1,1,null,null,null,null,null,null,null,null,null,null,null,null,null,null,null,{"$f":"U80+V80+W80+AD80+AH80+AI80+AM80+AN80+AO80+AP80+AQ80","v":2},{"$f":"X80+Y80","v":2},{"$f":"Z80+AA80","v":2},{"$f":"AB80+AC80","v":2},{"$f":"AK80","v":0},{"$f":"AL80","v":0},{"$f":"AF80+AR80","v":0},{"$f":"AJ80","v":0}]
[null,null,null,"2020 x 330 mm V-slot extrusion",1,"stock Ender 3 Pro extrusion - top frame bar",null,null,null,0,0,null,{"$f":"IF(E81=0,IF(E81=\"\",0,1),0)","v":0},0,0,0,0,0,0,0]
[null,null,null,"2020 x 345 mm V-slot extrusion",1,"stock Ender 3 Pro extrusion - X axis / M5 tapped end holes required",null,null,null,0,0,null,0,0,0,0,0,0,0,0]
[null,null,null,"2040 x 400 mm V-slot extrusion",2,"stock Ender 3 Pro extrusion - frame vertical supports / M5 tapped end holes required",null,null,null,0,0,null,0,0,0,0,0,0,0,0]
[null,null,null,"4040 x 350 mm V-slot extrusion",1,"stock Ender 3 Pro extrusion - Y axis / M5 tapped end holes required",null,null,null,0,0,null,0,0,0,0,0,0,0,0]
[null,null,null,"4040 x 290 mm V-slot extrusion",2,"stock Ender 3 Pro extrusion - bottom frame sides / M5 tapped end holes required",null,null,null,0,0,null,0,0,0,0,0,0,0,0]
[null,null,"ELECTRONICS",null,null,null,null,null,null,null,{"$f":"SUM(K87:K106)","v":50.048999999999992},null,0,null,null,null,null,0,null,null,null,null,null,null,null,null,null,null,null,null,null,null,null,null,null,null,null,null,null,null,null,null,null,null,{"$f":"U86+V86+W86+AD86+AH86+AI86+AM86+AN86+AO86+AP86+AQ86","v":0},{"$f":"X86+Y86","v":0},0,0,0,0,0,0,null,null,null,null,null,null,null,null,null,null,null,null,null,null,null,null,null,null,null,null,null,null,null,null,null,null,null,null,null,null,null,null,null,null,null,null,null,null,null,null,null,null,null,null,null,null,null,null,null,null,null,null,null,null,null,null,null,null,null,null,null,null,null,null,null,null,null,null,null,null,null,null,null,null,null,null,null,null,null,null,null,null,null,null,null,null,null,null,null,null,null,null,null,null,null,null,null,null,null,null,null,null,null,null,null,null,null,null,null,null,null,null,null,null,null,null,null,null,null,null,null,null,null,null,null,null,null,null,null,null,null,null,null,null,null,null,null,{"$f":"C86","v":"ELECTRONICS"}]
[null,null,null,"DIN rail 350 mm",{"$f":"SUM(N87:T87)","v":2},null,"[ AliExpress ]",null,null,3.58,{"$f":"E87*J87","v":7.16},null,{"$f":"IF(E87=0,IF(E87=\"\",0,1),0)","v":0},{"$f":"AS$4*AS87+AT$4*AT87+AU$4*AU87+AV$4*AV87+AW$4*AW87+AX$4*AX87+AY$4*AY87+AZ$4*AZ87+BA$4*BA87","v":0},{"$f":"BG$4*BG87+BH$4*BH87+BI$4*BI87+BJ$4*BJ87+BK$4*BK87+BL$4*BL87+BM$4*BM87+BN$4*BN87+BO$4*BO87+BP$4*BP87+BQ$4*BQ87+BR$4*BR87","v":0},{"$f":"BS$4*BS87+BT$4*BT87+BU$4*BU87+BV$4*BV87+BW$4*BW87+BX$4*BX87+BY$4*BY87+BZ$4*BZ87+CA$4*CA87+CB$4*CB87+CC$4*CC87+CD$4*CD87+CE$4*CE87+CF$4*CF87+CG$4*CG87+CH$4*CH87","v":2},{"$f":"BB$4*BB87+BC$4*BC87+BD$4*BD87","v":0},0,{"$f":"FU$4*FU87+FV$4*FV87+FW$4*FW87+FX$4*FX87+FY$4*FY87+FZ$4*FZ87+GA$4*GA87+GB$4*GB87+GC$4*GC87+GD$4*GD87+GE$4*GE87","v":0},{"$f":"BF$4*BF87","v":0},null,null,null,null,null,null,null,null,null,null,null,null,null,null,null,null,null,null,null,null,null,null,null,null,0,0,0,0,0,0,0,0,null,null,null,null,null,null,null,null,null,null,null,null,null,null,null,null,null,null,2]
[null,null,null,"DIN rail 200 mm",1,null,"[ AliExpress ]",null,null,2.93,2.93,null,0,0,0,1,0,0,0,0,null,null,null,null,null,null,null,null,null,null,null,null,null,null,null,null,null,null,null,null,null,null,null,null,0,0,0,0,0,0,0,0,null,null,null,null,null,null,null,null,null,null,null,null,null,null,null,null,null,null,1]
[null,null,null,"3010 axial FAN",1,"24V / dual ball bearing / 12 000 RPM – hotend cooling","[ AliExpress ]",null,null,{"$f":"12.25/2","v":6.125},6.125,null,0,0,0,0,0,1,0,0,null,null,null,null,null,null,null,null,null,null,null,null,null,null,null,null,null,null,null,null,null,null,null,null,0,0,0,0,0,0,0,0,null,null,null,null,null,null,null,null,null,null,null,null,null,null,null,null,null,null,null,null,null,null,null,null,null,null,null,null,null,null,null,null,null,null,null,null,null,null,null,null,null,null,null,null,null,null,null,null,null,null,null,null,null,null,null,null,null,null,null,null,null,null,null,null,null,null,null,null,null,null,null,null,null,null,null,null,null,null,null,null,null,null,null,null,null,null,null,null,null,null,null,null,null,null,null,null,null,null,null,null,null,null,null,1,1,1,1,1]
[null,null,null,"4010 axial FAN",0,"24V – Raspberry Pi cooling","[ AliExpress ]",null,null,{"$f":"12.58/2","v":6.29},0,null,1,0,0,0,0,0,0,0,null,null,null,null,null,null,null,null,null,null,null,null,null,null,null,null,null,null,null,null,null,null,null,null,0,0,0,0,0,0,0,0,null,null,null,null,null,null,null,null,null,null,null,null,null,null,null,null,null,null,null,null,null,null,null,null,1]
[null,null,null,"4020 axial FAN",2,"24V – AB stepper cooling","[ AliExpress ]","[ Amazon ]",null,{"$f":"(9.19+6.01)/4","v":3.8},7.6,null,0,0,0,2,0,0,0,0,null,null,null,null,null,null,null,null,null,null,null,null,null,null,null,null,null,null,null,null,null,null,null,null,0,0,0,0,0,0,0,0,null,null,null,null,null,null,null,null,null,null,null,null,null,null,null,null,null,null,null,2]
[null,null,null,"6015 axial FAN",2,"24V – electronics cooling + air circulating fan under bed","[ AliExpress ]",null,null,{"$f":"(8.89+7.13)/4","v":4.0049999999999999},8.01,null,0,0,0,2,0,0,0,0,null,null,null,null,null,null,null,null,null,null,null,null,null,null,null,null,null,null,null,null,null,null,null,null,0,0,0,0,0,0,0,0,null,null,null,null,null,null,null,1,null,null,null,1,null,1,null,null,null,null,null,null,null,null,null,null,null,2,null,2,2,null,null,null,null,2]
[null,null,null,"4010 radial FAN",2,"24V / dual ball bearing / 12 000 RPM - part cooling","[ AliExpress ]",null,null,{"$f":"13.78/2","v":6.89},13.78,null,0,0,0,0,0,2,0,0,null,null,null,null,null,null,null,null,null,null,null,null,null,null,null,null,null,null,null,null,null,null,null,null,0,0,0,0,0,0,0,0,null,null,null,null,null,null,null,null,null,null,null,null,null,null,null,null,null,null,null,null,null,null,null,null,null,null,null,null,null,null,null,null,null,null,null,null,null,null,null,null,null,null,null,null,null,null,null,null,null,null,null,null,null,null,null,null,null,null,null,null,null,null,null,null,null,null,null,null,null,null,null,null,null,null,null,null,null,null,null,null,null,null,null,null,null,null,null,null,null,null,null,null,null,null,null,null,null,null,null,null,null,null,null,2]
[null,null,null,"4020 radial FAN",0,"24V / dual ball bearing / 6 500 RPM – part cooling","[ AliExpress ]",null,null,9.3000000000000007,0,null,1,0,0,0,0,0,0,0,null,null,null,null,null,null,null,null,null,null,null,null,null,null,null,null,null,null,null,null,null,null,null,null,0,0,0,0,0,0,0,0,null,null,null,null,null,null,null,null,null,null,null,null,null,null,null,null,null,null,null,null,null,null,null,null,null,null,null,null,null,null,null,null,null,null,null,null,null,null,null,null,null,null,null,null,null,null,null,null,null,null,null,null,null,null,null,null,null,null,null,null,null,null,null,null,null,null,null,null,null,null,null,null,null,null,null,null,null,null,null,null,null,null,null,null,null,null,null,null,null,null,null,null,null,null,null,null,null,null,null,null,null,null,null,null,2]
[null,null,null,"5015 radial FAN",0,"24V / dual ball bearing / 8 500 RPM – part cooling","[ AliExpress ]","[ Amazon ]",null,{"$f":"12.91/2","v":6.4550000000000001},0,null,1,0,0,0,0,0,0,0,null,null,null,null,null,null,null,null,null,null,null,null,null,null,null,null,null,null,null,null,null,null,null,null,0,0,0,0,0,0,0,0,null,null,null,null,null,null,null,null,null,null,null,null,null,null,null,null,null,null,null,null,null,null,null,null,null,null,null,null,null,null,null,null,null,null,null,null,null,null,null,null,null,null,null,null,null,null,null,null,null,null,null,null,null,null,null,null,null,null,null,null,null,null,null,null,null,null,null,null,null,null,null,null,null,null,null,null,null,null,null,null,null,null,null,null,null,null,null,null,null,null,null,null,null,null,null,null,null,null,null,null,null,null,null,null,null,2]
[null,null,null,"12032 radial FAN",0,"24V / 3 000 RPM – auxiliary cooling fan","[ AliExpress ]","[ Amazon ]","[ AliExpress ]",{"$f":"(18.71+3.79)/2","v":11.25},0,null,1,0,0,0,0,0,0,0,null,null,null,null,null,null,null,null,null,null,null,null,null,null,null,null,null,null,null,null,null,null,null,null,0,0,0,0,0,0,0,0,null,null,null,null,null,null,null,null,null,null,null,null,null,null,null,null,null,null,null,null,null,null,null,null,null,null,null,null,null,null,null,null,null,null,null,null,null,null,null,null,null,null,null,null,null,null,null,null,null,null,null,null,null,null,null,null,null,null,null,null,null,null,null,null,null,null,null,null,null,null,null,null,null,null,null,null,null,null,null,null,null,null,null,null,null,null,null,null,null,null,null,null,null,null,null,null,null,null,null,null,null,null,null,null,null,null,null,null,null,null,null,null,null,null,null,null,null,null,null,null,null,null,null,null,null,null,null,null,null,null,null,null,null,null,2]
[null,null,null,"CPAP",0,null,"[ AliExpress ]","[ Amazon ]","[ AliExpress ]",45.42,0,null,1,0,0,0,0,0,0,0,null,null,null,null,null,null,null,null,null,null,null,null,null,null,null,null,null,null,null,null,null,null,null,null,0,0,0,0,0,0,0,0,null,null,null,null,null,null,null,null,null,null,null,null,null,null,null,null,null,null,null,null,null,null,null,null,null,null,null,null,null,null,null,null,null,null,null,null,null,null,null,null,null,null,null,null,null,null,null,null,null,null,null,null,null,null,null,null,null,null,null,null,null,null,null,null,null,null,null,null,null,null,null,null,null,null,null,null,null,null,null,null,null,null,null,null,null,null,null,null,null,null,null,null,null,null,null,null,null,null,null,null,null,null,null,null,null,null,1]
[null,null,null,"CPAP hose",0,null,"[ AliExpress ]","[ Amazon ]","[ AliExpress ]",14.47,0,null,1,0,0,0,0,0,0,0,null,null,null,null,null,null,null,null,null,null,null,null,null,null,null,null,null,null,null,null,null,null,null,null,null,null,null,null,null,null,null,null,null,null,null,null,null,null,null,null,null,null,null,null,null,null,null,null,null,null,null,null,null,null,null,null,null,null,null,null,null,null,null,null,null,null,null,null,null,null,null,null,null,null,null,null,null,null,null,null,null,null,null,null,null,null,null,null,null,null,null,null,null,null,null,null,null,null,null,null,null,null,null,null,null,null,null,null,null,null,null,null,null,null,null,null,null,null,null,null,null,null,null,null,null,null,null,null,null,null,null,null,null,null,null,null,null,null,1]
[null,null,null,"Microswitch",2,"Omron D2F-L","[ AliExpress ]",null,null,{"$f":"(0.51*4+3.42)/4","v":1.365},2.73,null,0,0,0,2,0,0,0,0,null,null,null,null,null,null,null,null,null,null,null,null,null,null,null,null,null,null,null,null,null,null,null,null,{"$f":"U99+V99+W99+AD99+AH99+AI99+AM99+AN99+AO99+AP99+AQ99","v":0},{"$f":"X99+Y99","v":0},{"$f":"Z99+AA99","v":0},{"$f":"AB99+AC99","v":0},{"$f":"AK99","v":0},{"$f":"AL99","v":0},{"$f":"AF99+AR99","v":0},{"$f":"AJ99","v":0},null,null,null,null,null,null,null,null,null,null,null,null,null,null,null,null,null,null,null,null,null,2,null,null,null,null,null,null,null,null,null,null,null,null,null,null,null,null,null,null,null,null,null,null,null,null,null,null,null,null,null,null,null,null,null,null,null,null,null,null,null,null,null,null,null,null,null,null,null,null,null,null,null,null,null,null,null,null,null,null,null,null,null,null,null,null,null,null,null,null,null,null,null,null,null,null,null,null,null,null,null,null,null,null,null,null,null,null,1]
[null,null,null,"JST 2P FEMALE",0,null,"[ AliExpress ]",null,null,null,0,null,1,0,0,0,0,0,0,0,null,null,null,null,null,null,null,null,null,null,null,null,null,null,null,null,null,null,null,null,null,null,null,null,0,0,0,0,0,0,0,0,null,null,null,null,null,null,null,null,null,null,null,null,null,null,null,4,2,null,null,null,null,null,null,null,null,null,null,null,null,null,null,null,null,null,null,null,null,null,null,null,null,null,null,null,null,null,null,null,null,null,null,null,null,null,null,null,null,null,null,null,null,null,null,null,null,null,null,null,null,null,null,null,null,null,null,null,null,null,null,null,null,null,null,null,null,null,null,null,null,null,null,null,null,null,null,null,null,null,null,null,null,null,null,null,null,null,null,null,null,null,null,null,null,null,null,null,null,null,5,null,5]
[null,null,null,"JST 3P FEMALE",0,null,"[ AliExpress ]",null,null,null,0,null,1,0,0,0,0,0,0,0,null,null,null,null,null,null,null,null,null,null,null,null,null,null,null,null,null,null,null,null,null,null,null,null,0,0,0,0,0,0,0,0,null,null,null,null,null,null,null,null,null,null,null,null,null,null,null,null,null,null,null,null,null,null,null,null,null,null,null,null,null,null,null,null,null,null,null,null,null,null,null,null,null,null,null,null,null,null,null,null,null,null,null,null,null,null,null,null,null,null,null,null,null,null,null,null,null,null,null,null,null,null,null,null,null,null,null,null,null,null,null,null,null,null,null,null,null,null,null,null,null,null,null,null,null,null,null,null,null,null,null,null,null,null,null,null,null,null,null,null,null,null,null,null,null,null,null,null,null,null,1,null,1]
[null,null,null,"WAGO 221-412",0,null,"[ AliExpress ]",null,null,{"$f":"(8.29+2.74)/10","v":1.103},0,null,1,0,0,0,0,0,0,0,null,null,null,null,null,null,null,null,null,null,null,null,null,null,null,null,null,null,null,null,null,null,null,null,0,0,0,0,0,0,0,0,null,null,null,null,null,null,null,null,null,null,null,null,null,null,null,2,3]
[null,null,null,"PG7 cable gland",1,"Or use printed version - in the EXTRAS folder","[ AliExpress ]",null,null,{"$f":"3.01/5","v":0.60199999999999998},0.60199999999999998,null,0,1,0,0,0,0,0,0,null,null,null,null,null,null,null,null,null,null,null,null,null,null,null,null,null,null,null,null,null,null,1,{"$f":"-1+1","v":0},1,0,0,0,0,0,0,0]
[null,null,null,"LED strips",0.4,"10 mm width / with adhesive / length in meters","[ AliExpress ]",null,null,{"$f":"5.56/2","v":2.78},1.1119999999999999,null,0,0,0,0,0,0,0.4,0,null,null,null,null,null,null,null,null,null,null,null,null,null,null,null,null,null,null,null,null,null,null,null,null,0,0,0,0,0,0,0,0,null,null,null,null,null,null,null,null,null,null,null,null,null,null,null,null,null,null,null,null,null,null,null,null,null,null,null,null,null,null,null,null,null,null,null,null,null,null,null,null,null,null,null,null,null,null,null,null,null,null,null,null,null,null,null,null,null,null,null,null,null,null,null,null,null,null,null,null,null,null,null,null,null,null,null,null,null,null,null,null,null,null,null,null,null,null,null,null,null,null,null,null,null,null,null,null,null,null,null,null,null,null,null,null,null,null,null,null,null,null,null,null,null,null,null,null,null,null,null,null,null,null,null,null,null,null,null,{"$f":"0.2*2","v":0.4},{"$f":"0.35+0.35+0.3","v":1},{"$f":"FX104+FY104","v":1.4}]
[null,null,null,"AC power inlet",1,"With kill switch and fuse (AC-08) - reuse from your base Ender 3","[ AliExpress ]",null,null,{"$f":"(1.12+1)*0","v":0},0,null,0,0,0,1,0,0,0,0,null,null,null,null,null,null,null,null,null,null,null,null,null,null,null,null,null,null,null,null,null,null,null,null,0,0,0,0,0,0,0,0,null,null,null,null,null,null,null,null,null,null,null,null,null,null,null,null,null,null,null,null,1]
[null,null,null,"SEXBOLT KIT",0,"Original Voron style supported","[ AliExpress ]",null,null,5.42,0,null,1,0,0,0,0,0,0,0,null,null,null,null,null,null,null,null,null,null,null,null,null,null,null,null,null,null,null,null,null,null,null,null,0,0,0,0,0,0,0,0,null,null,null,null,null,null,null,null,null,null,null,null,null,null,null,null,null,1]
[null,null,"OTHER HARDWARE",null,null,null,null,null,null,null,{"$f":"SUM(K108:K111)","v":1.74},null,0,null,null,null,null,0,null,null,null,null,null,null,null,null,null,null,null,null,null,null,null,null,null,null,null,null,null,null,null,null,null,null,0,0,0,0,0,0,0,0,null,null,null,null,null,null,null,null,null,null,null,null,null,null,null,null,null,null,null,null,null,null,null,null,null,null,null,null,null,null,null,null,null,null,null,null,null,null,null,null,null,null,null,null,null,null,null,null,null,null,null,null,null,null,null,null,null,null,null,null,null,null,null,null,null,null,null,null,null,null,null,null,null,null,null,null,null,null,null,null,null,null,null,null,null,null,null,null,null,null,null,null,null,null,null,null,null,null,null,null,null,null,null,null,null,null,null,null,null,null,null,null,null,null,null,null,null,null,null,null,null,null,null,null,null,null,null,null,null,null,null,null,null,null,null,null,null,{"$f":"C107","v":"OTHER HARDWARE"}]
[null,null,null,"Bed silicone spacer",{"$f":"SUM(N108:T108)","v":4},null,"[ AliExpress ]",null,null,{"$f":"1.74/4","v":0.435},{"$f":"E108*J108","v":1.74},null,{"$f":"IF(E108=0,IF(E108=\"\",0,1),0)","v":0},{"$f":"AS$4*AS108+AT$4*AT108+AU$4*AU108+AV$4*AV108+AW$4*AW108+AX$4*AX108+AY$4*AY108+AZ$4*AZ108+BA$4*BA108","v":0},{"$f":"BG$4*BG108+BH$4*BH108+BI$4*BI108+BJ$4*BJ108+BK$4*BK108+BL$4*BL108+BM$4*BM108+BN$4*BN108+BO$4*BO108+BP$4*BP108+BQ$4*BQ108+BR$4*BR108","v":4},{"$f":"BS$4*BS108+BT$4*BT108+BU$4*BU108+BV$4*BV108+BW$4*BW108+BX$4*BX108+BY$4*BY108+BZ$4*BZ108+CA$4*CA108+CB$4*CB108+CC$4*CC108+CD$4*CD108+CE$4*CE108+CF$4*CF108+CG$4*CG108+CH$4*CH108","v":0},{"$f":"BB$4*BB108+BC$4*BC108+BD$4*BD108","v":0},0,{"$f":"FU$4*FU108+FV$4*FV108+FW$4*FW108+FX$4*FX108+FY$4*FY108+FZ$4*FZ108+GA$4*GA108+GB$4*GB108+GC$4*GC108+GD$4*GD108+GE$4*GE108","v":0},{"$f":"BF$4*BF108","v":0},null,null,null,null,null,null,null,null,null,null,null,null,null,null,null,null,null,null,null,null,null,null,null,null,0,0,0,0,0,0,0,0,null,null,null,null,null,null,4,null,4,4,4]
[null,null,null,"Bed build plate",1,null,"[ AliExpress ]",null,null,{"$f":"9.67*0","v":0},{"$f":"E109*J109","v":0},null,{"$f":"IF(E109=0,IF(E109=\"\",0,1),0)","v":0},null,null,null,null,0,null,null,null,null,null,null,null,null,null,null,null,null,null,null,null,null,null,null,null,null,null,null,null,null,null,null,0,0,0,0,0,0,0,0]
[null,null,null,"WobbleX WS8",{"$f":"SUM(N110:T110)","v":0},null,"[ AliExpress ]",null,null,18.41,{"$f":"E110*J110","v":0},null,{"$f":"IF(E110=0,IF(E110=\"\",0,1),0)","v":1},{"$f":"AS$4*AS110+AT$4*AT110+AU$4*AU110+AV$4*AV110+AW$4*AW110+AX$4*AX110+AY$4*AY110+AZ$4*AZ110+BA$4*BA110","v":0},{"$f":"BG$4*BG110+BH$4*BH110+BI$4*BI110+BJ$4*BJ110+BK$4*BK110+BL$4*BL110+BM$4*BM110+BN$4*BN110+BO$4*BO110+BP$4*BP110+BQ$4*BQ110+BR$4*BR110","v":0},{"$f":"BS$4*BS110+BT$4*BT110+BU$4*BU110+BV$4*BV110+BW$4*BW110+BX$4*BX110+BY$4*BY110+BZ$4*BZ110+CA$4*CA110+CB$4*CB110+CC$4*CC110+CD$4*CD110+CE$4*CE110+CF$4*CF110+CG$4*CG110+CH$4*CH110","v":0},{"$f":"BB$4*BB110+BC$4*BC110+BD$4*BD110","v":0},{"$f":"DK$4*DK110+DL$4*DL110+DM$4*DM110+DN$4*DN110+DO$4*DO110+DP$4*DP110+DQ$4*DQ110+DR$4*DR110+DS$4*DS110+DT$4*DT110+DU$4*DU110+DV$4*DV110+DW$4*DW110+DX$4*DX110+DY$4*DY110+DZ$4*DZ110+EA$4*EA110+EB$4*EB110+EC$4*EC110+ED$4*ED110+EE$4*EE110+EF$4*EF110+EG$4*EG110+EH$4*EH110+EI$4*EI110+EJ$4*EJ110+EK$4*EK110+EL$4*EL110+EM$4*EM110+EN$4*EN110+EO$4*EO110+EP$4*EP110+EQ$4*EQ110+ER$4*ER110+ES$4*ES110+ET$4*ET110+EU$4*EU110+EV$4*EV110+EW$4*EW110+EX$4*EX110+EY$4*EY110+EZ$4*EZ110+FA$4*FA110+FB$4*FB110+FC$4*FC110+FD$4*FD110+FE$4*FE110+FF$4*FF110+FG$4*FG110+FH$4*FH110+FI$4*FI110+FJ$4*FJ110+FK$4*FK110+FL$4*FL110+FM$4*FM110+FN$4*FN110+FO$4*FO110+FP$4*FP110+FQ$4*FQ110+FR$4*FR110+FS$4*FS110+FT$4*FT110","v":0},{"$f":"FU$4*FU110+FV$4*FV110+FW$4*FW110+FX$4*FX110+FY$4*FY110+FZ$4*FZ110+GA$4*GA110+GB$4*GB110+GC$4*GC110+GD$4*GD110+GE$4*GE110","v":0},{"$f":"BF$4*BF110","v":0},null,null,null,null,null,null,null,null,null,null,null,null,null,null,null,null,null,null,null,null,null,null,null,null,null,null,null,null,null,null,null,null,null,null,null,null,null,null,null,null,null,3]
[null,null,null,"PROBE/EXTRUDER KIT",{"$f":"SUM(N111:T111)","v":1},null,"links in the table below",null,null,null,{"$f":"E111*J111","v":0},null,{"$f":"IF(E111=0,IF(E111=\"\",0,1),0)","v":0},{"$f":"AS$4*AS111+AT$4*AT111+AU$4*AU111+AV$4*AV111+AW$4*AW111+AX$4*AX111+AY$4*AY111+AZ$4*AZ111+BA$4*BA111","v":0},{"$f":"BG$4*BG111+BH$4*BH111+BI$4*BI111+BJ$4*BJ111+BK$4*BK111+BL$4*BL111+BM$4*BM111+BN$4*BN111+BO$4*BO111+BP$4*BP111+BQ$4*BQ111+BR$4*BR111","v":0},{"$f":"BS$4*BS111+BT$4*BT111+BU$4*BU111+BV$4*BV111+BW$4*BW111+BX$4*BX111+BY$4*BY111+BZ$4*BZ111+CA$4*CA111+CB$4*CB111+CC$4*CC111+CD$4*CD111+CE$4*CE111+CF$4*CF111+CG$4*CG111+CH$4*CH111","v":0},{"$f":"BB$4*BB111+BC$4*BC111+BD$4*BD111","v":0},1,{"$f":"FU$4*FU111+FV$4*FV111+FW$4*FW111+FX$4*FX111+FY$4*FY111+FZ$4*FZ111+GA$4*GA111+GB$4*GB111+GC$4*GC111+GD$4*GD111+GE$4*GE111","v":0},{"$f":"BF$4*BF111","v":0},null,null,null,null,null,null,null,null,null,null,null,null,null,null,null,null,null,null,null,null,null,null,null,null,0,0,0,0,0,0,0,0,null,null,null,null,null,null,null,null,null,null,null,null,null,null,null,null,null,null,null,null,null,null,null,null,null,null,null,null,null,null,null,null,null,null,null,null,null,null,null,null,null,null,null,null,null,null,null,null,null,null,null,null,null,null,null,null,null,null,null,null,null,null,null,null,null,null,null,null,null,null,null,null,null,null,null,null,null,null,null,null,null,null,null,1,1,1,1,null,null,null,null,null,1,1,null,1,1,1,1,1,1,null,null,null,null,null,null,null,null,1,null,null,null,null,null,null,null,null,null,null,null,null,null,null,null,null,null,null,null,null,null,null,1]
[]
[]
[null,null,"LOOKING FOR SOMETHING ELSE? BOARD, HOTEND, EXTRUDER, PROBE, STEPPERS OR PLANNING UPGRADES?"]
[null,null,"Section below contains unnecessary parts and components like all of the supported boards, hotends, extruders and probes but also other components that are not specific to the current E3 NG."]
[null,null,"If you are buying upgrades, buying it from the list bellow helps supporting the project and doesn’t cost you anything extra. If you choose to do so, thank you very much, you are helping to keep the project alive and growing!"]
[]
[null,null,"MOTHERBOARDS, SBC",null,null,null,null,null,null,null,null,null,null,null,null,null,null,null,null,null,null,null,null,null,null,null,null,null,null,null,null,null,null,null,null,null,null,null,null,null,null,null,null,null,null,null,null,null,null,null,null,null,null,null,null,null,null,null,null,null,null,null,null,null,null,null,null,null,null,null,null,null,null,null,null,null,null,null,null,null,null,null,null,null,null,null,null,null,null,null,null,null,null,null,null,null,null,null,null,null,null,null,null,null,null,null,null,null,null,null,null,null,null,null,null,null,null,null,null,null,null,null,null,null,null,null,null,null,null,null,null,null,null,null,null,null,null,null,null,null,null,null,null,null,null,null,null,null,null,null,null,null,null,null,null,null,null,null,null,null,null,null,null,null,null,null,null,null,null,null,null,null,null,null,null,null,null,null,null,null,null,null,null,null,null,null,null,null,null,{"$f":"C118","v":"MOTHERBOARDS, SBC"}]
[null,null,"DIRECTLY SUPPORTED BOARDS",null,null,null,null,null,null,null,null,null,null,null,null,null,null,null,null,null,null,null,null,null,null,null,null,null,null,null,null,null,null,null,null,null,null,null,null,null,null,null,null,null,null,null,null,null,null,null,null,null,null,null,null,null,null,null,null,null,null,null,null,null,null,null,null,null,null,null,null,null,null,null,null,null,null,null,null,null,null,null,null,null,null,null,null,null,null,null,null,null,null,null,null,null,null,null,null,null,null,null,null,null,null,null,null,null,null,null,null,null,null,null,null,null,null,null,null,null,null,null,null,null,null,null,null,null,null,null,null,null,null,null,null,null,null,null,null,null,null,null,null,null,null,null,null,null,null,null,null,null,null,null,null,null,null,null,null,null,null,null,null,null,null,null,null,null,null,null,null,null,null,null,null,null,null,null,null,null,null,null,null,null,null,null,null,null,null,{"$f":"C119","v":"DIRECTLY SUPPORTED BOARDS"}]
[null,null,null,"BTT Octopus v1.1",null,null,"[ AliExpress ]","[ Amazon ]"]
[null,null,null,"BTT SKR3EZ",null,null,"[ AliExpress ]","[ Amazon ]"]
[null,null,null,"BTT SKR mini E3 v2",null,null,"[ AliExpress ]","[ Amazon ]"]
[null,null,null,"BTT EXP-MOT",null,null,"[ AliExpress ]"]
[null,null,"OTHER BOARDS",null,null,null,null,null,null,null,null,null,null,null,null,null,null,null,null,null,null,null,null,null,null,null,null,null,null,null,null,null,null,null,null,null,null,null,null,null,null,null,null,null,null,null,null,null,null,null,null,null,null,null,null,null,null,null,null,null,null,null,null,null,null,null,null,null,null,null,null,null,null,null,null,null,null,null,null,null,null,null,null,null,null,null,null,null,null,null,null,null,null,null,null,null,null,null,null,null,null,null,null,null,null,null,null,null,null,null,null,null,null,null,null,null,null,null,null,null,null,null,null,null,null,null,null,null,null,null,null,null,null,null,null,null,null,null,null,null,null,null,null,null,null,null,null,null,null,null,null,null,null,null,null,null,null,null,null,null,null,null,null,null,null,null,null,null,null,null,null,null,null,null,null,null,null,null,null,null,null,null,null,null,null,null,null,null,null,{"$f":"C124","v":"OTHER BOARDS"}]
[null,null,null,"BTT Kraken",null,null,"[ AliExpress ]"]
[null,null,null,"BTT Manta E3EZ",null,null,null,"[ Amazon ]"]
[null,null,null,"BTT Manta M4P",null,null,"[ AliExpress ]","[ Amazon ]"]
[null,null,null,"BTT Manta M5P",null,null,"[ AliExpress ]","[ Amazon ]"]
[null,null,null,"BTT Manta M8P v1.1",null,null,"[ AliExpress ]","[ Amazon ]"]
[null,null,null,"BTT Manta M8P v2.0",null,null,"[ AliExpress ]","[ Amazon ]"]
[null,null,null,"BTT Octopus Pro v1.0",null,null,"[ AliExpress ]","[ Amazon ]"]
[null,null,null,"BTT Octopus Max EZ v1.0",null,null,"[ AliExpress ]","[ Amazon ]"]
[null,null,null,"BTT Pico v1.0",null,null,"[ AliExpress ]","[ Amazon ]"]
[null,null,null,"BTT SKR V1.4 / Turbo",null,null,"[ AliExpress ]","[ Amazon ]"]
[null,null,null,"BTT SKR 3",null,null,"[ AliExpress ]","[ Amazon ]"]
[null,null,null,"BTT SKR mini E3 v3",null,null,"[ AliExpress ]","[ Amazon ]"]
[null,null,null,"BTT SKR PRO v1.2",null,null,"[ AliExpress ]","[ Amazon ]"]
[null,null,null,"BTT SKRat v1.0",null,null,"[ AliExpress ]"]
[null,null,"SBC",null,null,null,null,null,null,null,null,null,null,null,null,null,null,null,null,null,null,null,null,null,null,null,null,null,null,null,null,null,null,null,null,null,null,null,null,null,null,null,null,null,null,null,null,null,null,null,null,null,null,null,null,null,null,null,null,null,null,null,null,null,null,null,null,null,null,null,null,null,null,null,null,null,null,null,null,null,null,null,null,null,null,null,null,null,null,null,null,null,null,null,null,null,null,null,null,null,null,null,null,null,null,null,null,null,null,null,null,null,null,null,null,null,null,null,null,null,null,null,null,null,null,null,null,null,null,null,null,null,null,null,null,null,null,null,null,null,null,null,null,null,null,null,null,null,null,null,null,null,null,null,null,null,null,null,null,null,null,null,null,null,null,null,null,null,null,null,null,null,null,null,null,null,null,null,null,null,null,null,null,null,null,null,null,null,null,{"$f":"C139","v":"SBC"}]
[null,null,null,"BTT CB1",null,null,"[ AliExpress ]","[ Amazon ]"]
[null,null,null,"BTT CB2",null,null,"[ AliExpress ]"]
[null,null,null,"BTT Pi4B",null,null,"[ AliExpress ]","[ Amazon ]"]
[null,null,null,"BTT Pi v1.2",null,null,"[ AliExpress ]","[ Amazon ]"]
[null,null,null,"BTT Pi v2.0",null,null,"[ AliExpress ]"]
[null,null,null,"Raspberry Pi 4",null,null,null,"[ Amazon ]"]
[null,null,"DRIVERS",null,null,null,null,null,null,null,null,null,null,null,null,null,null,null,null,null,null,null,null,null,null,null,null,null,null,null,null,null,null,null,null,null,null,null,null,null,null,null,null,null,null,null,null,null,null,null,null,null,null,null,null,null,null,null,null,null,null,null,null,null,null,null,null,null,null,null,null,null,null,null,null,null,null,null,null,null,null,null,null,null,null,null,null,null,null,null,null,null,null,null,null,null,null,null,null,null,null,null,null,null,null,null,null,null,null,null,null,null,null,null,null,null,null,null,null,null,null,null,null,null,null,null,null,null,null,null,null,null,null,null,null,null,null,null,null,null,null,null,null,null,null,null,null,null,null,null,null,null,null,null,null,null,null,null,null,null,null,null,null,null,null,null,null,null,null,null,null,null,null,null,null,null,null,null,null,null,null,null,null,null,null,null,null,null,null,{"$f":"C146","v":"DRIVERS"}]
[null,null,null,"TMC2209",null,null,"[ AliExpress ]","[ Amazon ]"]
[null,null,null,"TMC5160T",null,null,"[ AliExpress ]","[ Amazon ]"]
[null,null,null,"TMC5160T PRO/PLUS",null,null,"[ AliExpress ]","[ Amazon ]"]
[null,null,null,"EZ DRIVERS",null,null,"[ AliExpress ]","[ Amazon ]"]
[null,null,"OTHER ELECTRONICS"]
[null,null,null,"BTT KNOMI v1.0",null,null,"[ AliExpress ]","[ Amazon ]"]
[null,null,null,"BTT KNOMI v2.0",null,null,"[ AliExpress ]","[ Amazon ]"]
[null,null,null,"BTT PiggyBack36 v1.0",null,null,"[ AliExpress ]"]
[null,null,null,"Mellow Fly-MiniAB board",null,null,"[ AliExpress ]"]
[null,null,null,"BTT EBB36 / EBB42 CAN v1.2",null,null,"[ AliExpress ]","[ Amazon ]"]
[null,null,"HOTENDS",null,null,null,null,null,null,null,null,null,null,null,null,null,null,null,null,null,null,null,null,null,null,null,null,null,null,null,null,null,null,null,null,null,null,null,null,null,null,null,null,null,null,null,null,null,null,null,null,null,null,null,null,null,null,null,null,null,null,null,null,null,null,null,null,null,null,null,null,null,null,null,null,null,null,null,null,null,null,null,null,null,null,null,null,null,null,null,null,null,null,null,null,null,null,null,null,null,null,null,null,null,null,null,null,null,null,null,null,null,null,null,null,null,null,null,null,null,null,null,null,null,null,null,null,null,null,null,null,null,null,null,null,null,null,null,null,null,null,null,null,null,null,null,null,null,null,null,null,null,null,null,null,null,null,null,null,null,null,null,null,null,null,null,null,null,null,null,null,null,null,null,null,null,null,null,null,null,null,null,null,null,null,null,null,null,null,{"$f":"C157","v":"HOTENDS"}]
[null,null,"DIRECTLY SUPPORTED HOTENDS",null,null,null,null,null,null,null,null,null,null,null,null,null,null,null,null,null,null,null,null,null,null,null,null,null,null,null,null,null,null,null,null,null,null,null,null,null,null,null,null,null,null,null,null,null,null,null,null,null,null,null,null,null,null,null,null,null,null,null,null,null,null,null,null,null,null,null,null,null,null,null,null,null,null,null,null,null,null,null,null,null,null,null,null,null,null,null,null,null,null,null,null,null,null,null,null,null,null,null,null,null,null,null,null,null,null,null,null,null,null,null,null,null,null,null,null,null,null,null,null,null,null,null,null,null,null,null,null,null,null,null,null,null,null,null,null,null,null,null,null,null,null,null,null,null,null,null,null,null,null,null,null,null,null,null,null,null,null,null,null,null,null,null,null,null,null,null,null,null,null,null,null,null,null,null,null,null,null,null,null,null,null,null,null,null,null,{"$f":"C158","v":"DIRECTLY SUPPORTED HOTENDS"}]
[null,null,null,"BambuLab",null,null,"[ AliExpress ]",null,null,16.03]
[null,null,null,"Creality MK8/CR10",null,null,"[ AliExpress ]",null,null,5.71]
[null,null,null,"Creality Spider V3",null,null,null,"[ Amazon ]",null,34.71]
[null,null,null,"E3D V6",null,null,"[ AliExpress ]",null,null,4.29]
[null,null,null,"E3D V6 Volcano",null,null,"[ AliExpress ]",null,null,5.56]
[null,null,null,"E3D Revo Voron",null,null,"[ AliExpress ]",null,null,107.45]
[null,null,null,"Phaetus Dragonfly BMS",null,null,"[ AliExpress ]","[ Amazon ]",null,53.91]
[null,null,null,"Phaetus Dragon 1 SF"]
[null,null,null,"Phaetus Dragon 1 HF"]
[null,null,null,"Phaetus Dragon HF"]
[null,null,null,"Phaetus Rapido HF",null,null,"[ AliExpress ]","[ Amazon ]",null,77.22]
[null,null,null,"Phaetus Rapido V2 HF",null,null,"[ AliExpress ]",null,null,74.31]
[null,null,null,"Phaetus Dragon UHF",null,null,null,"[ Amazon ]"]
[null,null,null,"Phaetus Rapido UHF",null,null,"[ AliExpress ]","[ Amazon ]",null,85.02]
[null,null,null,"Phaetus Rapido V2 UHF",null,null,"[ AliExpress ]",null,null,82.06]
[null,null,null,"Trianglelab V6DM heatsink",null,null,"[ AliExpress ]",null,null,9.6]
[null,null,null,"Triandlelab CHC",null,null,"[ AliExpress ]",null,null,{"$f":"22.88+3.98","v":26.86}]
[null,null,null,"Trianglelab CHC Pro",null,null,"[ AliExpress ]",null,null,30.9]
[null,null,null,"Trianglelab TCHC TD6S",null,null,"[ AliExpress ]",null,null,36.21]
[null,null,null,"Trianglelab CHCB-V TD6S",null,null,"[ AliExpress ]",null,null,46.17]
[null,null,null,"Trianglelab Dragon ACE",null,null,"[ trianglelab ]"]
[null,null,null,"Trianglelab Dragon ACE+"]
[null,null,null,"Trianglelab Rapido ACE",null,null,"[ AliExpress ]"]
[null,null,null,"VZ - Goliath",null,null,"[ AliExpress ]",null,null,121.5]
[null,null,"OTHER HOTENDS",null,null,null,null,null,null,null,null,null,null,null,null,null,null,null,null,null,null,null,null,null,null,null,null,null,null,null,null,null,null,null,null,null,null,null,null,null,null,null,null,null,null,null,null,null,null,null,null,null,null,null,null,null,null,null,null,null,null,null,null,null,null,null,null,null,null,null,null,null,null,null,null,null,null,null,null,null,null,null,null,null,null,null,null,null,null,null,null,null,null,null,null,null,null,null,null,null,null,null,null,null,null,null,null,null,null,null,null,null,null,null,null,null,null,null,null,null,null,null,null,null,null,null,null,null,null,null,null,null,null,null,null,null,null,null,null,null,null,null,null,null,null,null,null,null,null,null,null,null,null,null,null,null,null,null,null,null,null,null,null,null,null,null,null,null,null,null,null,null,null,null,null,null,null,null,null,null,null,null,null,null,null,null,null,null,null,{"$f":"C183","v":"OTHER HOTENDS"}]
[]
[]
[]
[null,null,"ACCESSORIES",null,null,null,null,null,null,null,null,null,null,null,null,null,null,null,null,null,null,null,null,null,null,null,null,null,null,null,null,null,null,null,null,null,null,null,null,null,null,null,null,null,null,null,null,null,null,null,null,null,null,null,null,null,null,null,null,null,null,null,null,null,null,null,null,null,null,null,null,null,null,null,null,null,null,null,null,null,null,null,null,null,null,null,null,null,null,null,null,null,null,null,null,null,null,null,null,null,null,null,null,null,null,null,null,null,null,null,null,null,null,null,null,null,null,null,null,null,null,null,null,null,null,null,null,null,null,null,null,null,null,null,null,null,null,null,null,null,null,null,null,null,null,null,null,null,null,null,null,null,null,null,null,null,null,null,null,null,null,null,null,null,null,null,null,null,null,null,null,null,null,null,null,null,null,null,null,null,null,null,null,null,null,null,null,null,null,{"$f":"C187","v":"ACCESSORIES"}]
[null,null,null,"Meltzone Extender",null,null,"[ AliExpress ]"]
[null,null,null,"HT-NTC100K Thermistor",null,null,"[ AliExpress ]"]
[null,null,null,"Heater cartridge 24V 50W",null,null,"[ AliExpress ]"]
[null,null,null,"Heater cartridge 24V 70W",null,null,"[ AliExpress ]"]
[null,null,"FILAMENT EXTRUDERS",null,null,null,null,null,null,null,null,null,null,null,null,null,null,null,null,null,null,null,null,null,null,null,null,null,null,null,null,null,null,null,null,null,null,null,null,null,null,null,null,null,null,null,null,null,null,null,null,null,null,null,null,null,null,null,null,null,null,null,null,null,null,null,null,null,null,null,null,null,null,null,null,null,null,null,null,null,null,null,null,null,null,null,null,null,null,null,null,null,null,null,null,null,null,null,null,null,null,null,null,null,null,null,null,null,null,null,null,null,null,null,null,null,null,null,null,null,null,null,null,null,null,null,null,null,null,null,null,null,null,null,null,null,null,null,null,null,null,null,null,null,null,null,null,null,null,null,null,null,null,null,null,null,null,null,null,null,null,null,null,null,null,null,null,null,null,null,null,null,null,null,null,null,null,null,null,null,null,null,null,null,null,null,null,null,null,{"$f":"C192","v":"FILAMENT EXTRUDERS"}]
[null,null,null,"BMG gear kit - cheap",null,"Cheap clone extruder with metal gears, tested.","[ AliExpress ]"]
[null,null,null,"BMG gear kit - cheap",null,null,"[ AliExpress ]"]
[null,null,null,"Sherpa gear kit precise",null,null,"[ AliExpress ]"]
[null,null,null,"Sherpa gear kit precise",null,null,"[ AliExpress ]"]
[null,null,null,"HGX gear kit",null,null,"[ AliExpress ]"]
[null,null,null,"HGX 2.0 gear kit",null,null,"[ AliExpress ]"]
[null,null,null,"Haldis HGX 2.0 extruder",null,null,"[ AliExpress ]"]
[null,null,null,"LOD Orbiter v2.0",null,null,"[ AliExpress ]"]
[null,null,null,"SLS Sherpa Mini",null,null,"[ AliExpress ]"]
[null,null,null,"CNC Vz-Hextrudort",null,null,"[ AliExpress ]"]
[null,null,null,"CNC Sherpa Micro",null,null,"[ AliExpress ]"]
[null,null,null,"Voron M4 kit",null,null,"[ AliExpress ]"]
[null,null,"BED PROBES",null,null,null,null,null,null,null,null,null,null,null,null,null,null,null,null,null,null,null,null,null,null,null,null,null,null,null,null,null,null,null,null,null,null,null,null,null,null,null,null,null,null,null,null,null,null,null,null,null,null,null,null,null,null,null,null,null,null,null,null,null,null,null,null,null,null,null,null,null,null,null,null,null,null,null,null,null,null,null,null,null,null,null,null,null,null,null,null,null,null,null,null,null,null,null,null,null,null,null,null,null,null,null,null,null,null,null,null,null,null,null,null,null,null,null,null,null,null,null,null,null,null,null,null,null,null,null,null,null,null,null,null,null,null,null,null,null,null,null,null,null,null,null,null,null,null,null,null,null,null,null,null,null,null,null,null,null,null,null,null,null,null,null,null,null,null,null,null,null,null,null,null,null,null,null,null,null,null,null,null,null,null,null,null,null,null,{"$f":"C205","v":"BED PROBES"}]
[null,null,"DIRECTLY SUPPORTED PROBES",null,null,null,null,null,null,null,null,null,null,null,null,null,null,null,null,null,null,null,null,null,null,null,null,null,null,null,null,null,null,null,null,null,null,null,null,null,null,null,null,null,null,null,null,null,null,null,null,null,null,null,null,null,null,null,null,null,null,null,null,null,null,null,null,null,null,null,null,null,null,null,null,null,null,null,null,null,null,null,null,null,null,null,null,null,null,null,null,null,null,null,null,null,null,null,null,null,null,null,null,null,null,null,null,null,null,null,null,null,null,null,null,null,null,null,null,null,null,null,null,null,null,null,null,null,null,null,null,null,null,null,null,null,null,null,null,null,null,null,null,null,null,null,null,null,null,null,null,null,null,null,null,null,null,null,null,null,null,null,null,null,null,null,null,null,null,null,null,null,null,null,null,null,null,null,null,null,null,null,null,null,null,null,null,null,null,{"$f":"C206","v":"DIRECTLY SUPPORTED PROBES"}]
[null,null,null,"Klicky probe"]
[null,null,null,"Klicky PCB",null,null,"[ AliExpress ]"]
[null,null,null,"BLTouch",null,null,"[ AliExpress ]"]
[null,null,null,"CR touch",null,null,"[ AliExpress ]"]
[null,null,null,"PINDA",null,null,"[ AliExpress ]"]
[null,null,null,"Super PINDA",null,null,"[ AliExpress ]"]
[null,null,null,"BDSensor",null,null,"[ AliExpress ]",null,"[ AliExpress ]"]
[null,null,null,"BDSensor M",null,null,"[ AliExpress ]"]
[null,null,null,"Beacon scanner",null,null,"[ Beacon3D ]","[ AliExpress ]"]
[null,null,"OTHER PROBES",null,null,null,null,null,null,null,null,null,null,null,null,null,null,null,null,null,null,null,null,null,null,null,null,null,null,null,null,null,null,null,null,null,null,null,null,null,null,null,null,null,null,null,null,null,null,null,null,null,null,null,null,null,null,null,null,null,null,null,null,null,null,null,null,null,null,null,null,null,null,null,null,null,null,null,null,null,null,null,null,null,null,null,null,null,null,null,null,null,null,null,null,null,null,null,null,null,null,null,null,null,null,null,null,null,null,null,null,null,null,null,null,null,null,null,null,null,null,null,null,null,null,null,null,null,null,null,null,null,null,null,null,null,null,null,null,null,null,null,null,null,null,null,null,null,null,null,null,null,null,null,null,null,null,null,null,null,null,null,null,null,null,null,null,null,null,null,null,null,null,null,null,null,null,null,null,null,null,null,null,null,null,null,null,null,null,{"$f":"C216","v":"OTHER PROBES"}]
[null,null,null,"BTT EDDY",null,null,"[ AliExpress ]","[ Amazon ]"]
[null,null,null,"BIQU Microprobe",null,null,"[ AliExpress ]"]
[null,null,"STEPPER MOTORS",null,null,null,null,null,null,null,null,null,null,null,null,null,null,null,null,null,null,null,null,null,null,null,null,null,null,null,null,null,null,null,null,null,null,null,null,null,null,null,null,null,null,null,null,null,null,null,null,null,null,null,null,null,null,null,null,null,null,null,null,null,null,null,null,null,null,null,null,null,null,null,null,null,null,null,null,null,null,null,null,null,null,null,null,null,null,null,null,null,null,null,null,null,null,null,null,null,null,null,null,null,null,null,null,null,null,null,null,null,null,null,null,null,null,null,null,null,null,null,null,null,null,null,null,null,null,null,null,null,null,null,null,null,null,null,null,null,null,null,null,null,null,null,null,null,null,null,null,null,null,null,null,null,null,null,null,null,null,null,null,null,null,null,null,null,null,null,null,null,null,null,null,null,null,null,null,null,null,null,null,null,null,null,null,null,null,{"$f":"C219","v":"STEPPER MOTORS"}]
[null,null,"NEMA 17",null,null,null,null,null,null,null,null,null,null,null,null,null,null,null,null,null,null,null,null,null,null,null,null,null,null,null,null,null,null,null,null,null,null,null,null,null,null,null,null,null,null,null,null,null,null,null,null,null,null,null,null,null,null,null,null,null,null,null,null,null,null,null,null,null,null,null,null,null,null,null,null,null,null,null,null,null,null,null,null,null,null,null,null,null,null,null,null,null,null,null,null,null,null,null,null,null,null,null,null,null,null,null,null,null,null,null,null,null,null,null,null,null,null,null,null,null,null,null,null,null,null,null,null,null,null,null,null,null,null,null,null,null,null,null,null,null,null,null,null,null,null,null,null,null,null,null,null,null,null,null,null,null,null,null,null,null,null,null,null,null,null,null,null,null,null,null,null,null,null,null,null,null,null,null,null,null,null,null,null,null,null,null,null,null,null,{"$f":"C220","v":"NEMA 17"}]
[null,null,null,"LDO SUPERSLIM",null,null,"[ AliExpress ]"]
[null,null,null,"LDO 42STH48 2004MAH",null,null,"[ AliExpress ]"]
[null,null,null,"LDO 42STH60 2004AC",null,null,"[ AliExpress ]"]
[null,null,null,"LDO 42STH48 2504AC",null,null,"[ AliExpress ]"]
[null,null,null,"LDO 42STH48 2804AC-R",null,null,"[ AliExpress ]"]
[null,null,null,"LDO 42STH48 2804AH-R",null,"HIGH TEMP – 180°C","[ AliExpress ]"]
[null,null,null,"STEPPERONLINE 42BYGH 17HS19 2004S1",null,null,"[ AliExpress ]"]
[null,null,null,"Wantai 42BYGHW811",null,null,"[ AliExpress ]"]
[]
[null,null,"NEMA 14",null,null,null,null,null,null,null,null,null,null,null,null,null,null,null,null,null,null,null,null,null,null,null,null,null,null,null,null,null,null,null,null,null,null,null,null,null,null,null,null,null,null,null,null,null,null,null,null,null,null,null,null,null,null,null,null,null,null,null,null,null,null,null,null,null,null,null,null,null,null,null,null,null,null,null,null,null,null,null,null,null,null,null,null,null,null,null,null,null,null,null,null,null,null,null,null,null,null,null,null,null,null,null,null,null,null,null,null,null,null,null,null,null,null,null,null,null,null,null,null,null,null,null,null,null,null,null,null,null,null,null,null,null,null,null,null,null,null,null,null,null,null,null,null,null,null,null,null,null,null,null,null,null,null,null,null,null,null,null,null,null,null,null,null,null,null,null,null,null,null,null,null,null,null,null,null,null,null,null,null,null,null,null,null,null,null,{"$f":"C230","v":"NEMA 14"}]
[null,null,null,"LDO 36STH17 0354AHG – 8 TEETH",null,null,"[ AliExpress ]"]
[null,null,null,"LDO 36STH20 1004AHG – 8 TEETH",null,null,"[ AliExpress ]"]
[null,null,null,"LDO 36STH17 0354AHG – 10 TEETH",null,null,"[ AliExpress ]"]
[null,null,null,"LDO 36STH20 1004AHG – 10 TEETH",null,null,"[ AliExpress ]"]
[]
[]
[null,null,"LOOKING FOR SOME HANDY TOOLS FOR THE BUILD?"]
[null,null,"Section below contains tools, that are useful for working on 3D printer projects, including the E3NG."]
[null,null,"If you buy it from the list bellow, it helps supporting the project and doesn’t cost you anything extra. If you choose to do so, thank you very much, you are helping to keep the project alive and growing!"]
[]
[null,null,"TOOLS"]
[null,null,null,"CRIMPING PLIERS",null,null,"[ AliExpress ]"]
[null,null,null,"WIRE STRIPPER",null,null,"[ AliExpress ]"]
[null,null,null,"PARALLEL PLIERS",null,null,"[ AliExpress ]"]
[null,null,null,"HEX SCREWDRIVERS",null,null,"[ AliExpress ]",null,"[ AliExpress ]"]
[null,null,null,"REAMER",null,null,"[ AliExpress ]"]
[null,null,null,"THREAD TAP",null,"M4x0,7 + M5x0,8 metric thread","[ AliExpress ]"]
[null,null,null,"FILES",null,null,"[ AliExpress ]"]
[null,null,null,"HEAT INSERT TOOL / SOLDERING IRON",null,null,"[ AliExpress ]"]

{"sheet":"PRINTED PARTS","index":2,"n_rows":260,"n_cols":162,"rows_kept":260,"cut":false,"hidden":false,"merged":[[1,1,1,11],[2,7,3,7],[2,6,3,6],[2,5,3,5],[2,4,3,4],[2,2,3,3],[2,11,3,11],[2,9,3,9],[101,3,102,3],[103,3,104,3],[2,161,3,161],[2,12,3,12],[2,8,3,8],[2,10,3,10],[0,161,0,165],[1,20,1,37],[1,38,1,43],[1,44,1,52],[1,53,1,55],[1,56,1,57],[1,58,1,69],[1,70,1,85],[1,86,1,106],[1,107,1,126],[1,127,1,131],[1,132,1,141],[1,142,1,147],[1,151,1,153],[248,2,248,3],[71,2,71,3],[45,2,45,3],[32,2,32,3],[4,2,4,3],[156,2,156,3],[202,2,202,3],[234,2,234,3],[105,3,106,3],[107,3,108,3],[109,3,110,3],[111,3,112,3],[113,3,114,3],[76,2,76,3],[83,3,84,3],[89,3,90,3]]}
[null,null,null,"BACK TO:",null,null,null,"GO TO:                    ",null,null,null,null,null,null,null,null,null,null,null,null,null,null,null,null,null,null,null,null,null,null,null,null,null,null,null,null,null,null,null,null,null,null,null,null,null,null,null,null,null,null,null,null,null,null,null,null,null,null,null,null,null,null,null,null,null,null,null,null,null,null,null,null,null,null,null,null,null,null,null,null,null,null,null,null,null,null,null,null,null,null,null,null,null,null,null,null,null,null,null,null,null,null,null,null,null,null,null,null,null,null,null,null,null,null,null,null,null,null,null,null,null,null,null,null,null,null,null,null,null,null,null,null,null,null,null,null,null,null,null,null,null,null,null,null,null,null,null,null,null,null,null,null,null,null,null,null,null,null,null,null,null,"2024/10/25 – RH3D"]
[null,null,null,null,null,null,null,null,null,null,null,null,null,null,null,null,null,null,null,null,"FRAME BOTTOM",null,null,null,null,null,null,null,null,null,null,null,null,null,null,null,null,null,"TOP FRAME",null,null,null,null,null,"FRAME",null,null,null,null,null,null,null,null,"XY MOTION",null,null,"ENCLOSURE",null,"BED",null,null,null,null,null,null,null,null,null,null,null,"ELECTRONICS",null,null,null,null,null,null,null,null,null,null,null,null,null,null,null,"HOTEND",null,null,null,null,null,null,null,null,null,null,null,null,null,null,null,null,null,null,null,null,"EXTRUDER",null,null,null,null,null,null,null,null,null,null,null,null,null,null,null,null,null,null,null,"PART COOLING",null,null,null,null,"BED PROBE",null,null,null,null,null,null,null,null,null,"ACCESSORY",null,null,null,null,null,"BRACES","HORIZ","HANDL","LED",null,null,"SPOOL","FILTER","VorM4","ELE.sh","RSCS"]
[null,null,"NAME",null,"FILENAME","PCS","COL","NOTE","W [g] MAIN","W [g] ACCENT","W [g]",null,"HIDE","FRAME","BED","ELECTRONICS","XY MOTION","TOOLHEAD","OTHER","ENCL","fr right","fr left","fr bottom","re left","re right","re L 2040","re R 2040","left ulti","right ulti","LS1140","LS1040","LS1140_3","LS1040_3","belt idler","N17","3Z N17","E3 fit","4040 fix","fr right","fr left","rear A","rear B","re mid","re mid 3Z","BARE","+ print",{"$f":"\"+ 2040\"","v":"+ 2040"},"+ ulti",{"$f":"\"+ E3\"","v":"+ E3"},{"$f":"\"+ E3v2\"","v":"+ E3v2"},"+ TRIPPLE","+ 3Z N17","+ PR 40T","Y left","Y right","TH base","V1","V2","METAL","+ FAN","Stock-FX","Stock-WX","Stock-SD","+ FAN","PRINTED","+ FAN","TRIPPLE Z","Wago-DC","Wago-AC","SEXBOLT","PANEL","COOLING","grill+AC","XY stop","30PSU","50PSU","RPI4","skr3ez","expm","octo","miniv2","rs15","ssr","LT933","LT623",null,"Bamb","MK8","SPV3","SPV3V","nXG_H","nXG_U","CHC","CHCV","V6","V6_V","Goliat","revov","Dfly","Drag1","Dr2HF","Dr2U","rapHF","raUH","Mosq","ACE","ACE+","Shmin","=int","Shmic","=int","LGX","LGXlit","BMG","ORB1","ORB2","Hextr","=int","=hel","Proto","=int","Proto","=int","Hum","=int","Titan","BOW",4010,4020,5015,"CPAP","RSCS","Klicky","=PCB","Beac","Bdsen","BLTou","CRTo","Biqu","Pinda","EDDY","None","JST","adxl","BB+C","AD+C","cable","none","Yes","Yes","Yes","FRM","ENC","ALL","Yes","Yes","Yes","Cut","Yes",null,null,"PERSONAL NOTES"]
[null,null,null,null,null,null,null,null,null,null,null,null,null,null,null,null,null,null,null,null,null,null,null,null,null,null,null,null,null,null,null,null,null,null,null,null,null,null,null,null,null,null,null,null,1,{"$f":"IF(CONFIGURATOR!$E$8=\"Printed verticals\",1,0)","v":0},{"$f":"IF(CONFIGURATOR!$E$8=\"2040 extrusion upgrade\",1,0)","v":1},{"$f":"IF(CONFIGURATOR!$E$8=\"Ultimate frame\",1,0)","v":0},{"$f":"IF(CONFIGURATOR!$E$6=\"Creality Ender 3\",1,0)","v":0},{"$f":"IF(CONFIGURATOR!$E$6=\"Creality Ender 3 V2\",1,0)","v":0},{"$f":"IF(CONFIGURATOR!$E$9=\"3x12 mm rod\",1,0)","v":1},{"$f":"IF(CONFIGURATOR!$E$12=\"3 independent steppers\",1,0)","v":0},{"$f":"IF(CONFIGURATOR!$E$13=\"Printed\",1,0)","v":0},1,1,1,{"$f":"IF(CONFIGURATOR!$E$7=\"Yes - V1\",1,0)","v":0},{"$f":"IF(CONFIGURATOR!$E$7=\"Yes - V2\",1,0)","v":0},{"$f":"IF(CONFIGURATOR!$E$10=\"Custom metal bed carriage\",1,0)","v":0},{"$f":"IF(CONFIGURATOR!$E$10=\"Custom metal bed carriage\",IF(CONFIGURATOR!$E$37=\"Yes\",1,0),0)","v":0},{"$f":"IF(CONFIGURATOR!$E$10=\"Stock E3 bed carriage\",IF(CONFIGURATOR!$E$11=\"Flexi joint\",1,0),IF(CONFIGURATOR!$E$10=\"All printed\",IF(CONFIGURATOR!$E$11=\"Flexi joint\",1,0),0))","v":1},{"$f":"IF(CONFIGURATOR!$E$10=\"Stock E3 bed carriage\",IF(CONFIGURATOR!$E$11=\"WobbleX\",1,0),IF(CONFIGURATOR!$E$10=\"All printed\",IF(CONFIGURATOR!$E$11=\"WobbleX\",1,0),0))","v":0},{"$f":"IF(CONFIGURATOR!$E$10=\"Stock E3 bed carriage\",IF(CONFIGURATOR!$E$11=\"None\",1,0),IF(CONFIGURATOR!$E$10=\"All printed\",IF(CONFIGURATOR!$E$11=\"None\",1,0),0))","v":0},{"$f":"IF((CONFIGURATOR!$E$10=\"Stock E3 bed carriage\"),IF(CONFIGURATOR!$E$37=\"Yes\",1,0),0)","v":0},{"$f":"IF((CONFIGURATOR!$E$10=\"All printed\"),1,0)","v":0},{"$f":"IF((CONFIGURATOR!$E$10=\"All printed\"),IF(CONFIGURATOR!$E$37=\"Yes\",1,0),0)","v":0},{"$f":"IF(CONFIGURATOR!$E$9=\"3x12 mm rod\",IF(CONFIGURATOR!$E$10=\"Custom metal bed carriage\",0,1),0)","v":1},{"$f":"IF(CONFIGURATOR!$E$36=\"Yes - DC bed heater\",1,0)","v":0},{"$f":"IF(CONFIGURATOR!$E$36=\"Yes - AC bed heater\",1,0)","v":0},{"$f":"IF(CONFIGURATOR!$E$38=\"Yes\",IF(CONFIGURATOR!$E$10=\"Custom metal bed carriage\",0,1),0)","v":0},1,{"$f":"IF(CONFIGURATOR!$E$26=\"AB stepper cooling\",1,0)","v":1},1,1,{"$f":"IF(CONFIGURATOR!$E$14=\"30 mm\",1,0)","v":1},{"$f":"IF(CONFIGURATOR!$E$14=\"50 mm\",1,0)","v":0},0,{"$f":"IF(CONFIGURATOR!$E$15=\"BTT SKR3EZ\",1,0)","v":0},0,{"$f":"IF(CONFIGURATOR!$E$15=\"BTT Octopus v1.1\",1,0)","v":1},{"$f":"IF(CONFIGURATOR!$E$15=\"BTT SKR mini E3 v2\",1,0)","v":0},0,0,0,0,0,{"$f":"IF(CONFIGURATOR!$E$18=\"BambuLab\",1,0)","v":0},{"$f":"IF(CONFIGURATOR!$E$18=\"Creality MK8\",1,0)","v":0},{"$f":"IF(CONFIGURATOR!$E$18=\"Creality Spider V3\",1,0)","v":0},{"$f":"IF(CONFIGURATOR!$E$18=\"Creality Spider V3 Volcano\",1,0)","v":0},{"$f":"IF(CONFIGURATOR!$E$18=\"DropEffect neXtG HF\",1,0)","v":0},{"$f":"IF(CONFIGURATOR!$E$18=\"DropEffect neXtG UHF\",1,0)","v":0},{"$f":"IF(CONFIGURATOR!$E$18=\"CHC\",1,0)","v":0},{"$f":"IF(CONFIGURATOR!$E$18=\"CHC Pro\",1,0)","v":0},{"$f":"IF(CONFIGURATOR!$E$18=\"E3D V6\",1,0)","v":0},{"$f":"IF(CONFIGURATOR!$E$18=\"E3D V6 Volcano\",1,0)","v":0},{"$f":"IF(CONFIGURATOR!$E$18=\"Goliath AIR\",1,0)","v":0},{"$f":"IF(CONFIGURATOR!$E$18=\"Revo Voron\",1,0)","v":0},{"$f":"IF(CONFIGURATOR!$E$18=\"Phaetus BMS Dragonfly\",1,0)","v":0},{"$f":"IF(CONFIGURATOR!$E$18=\"Phaetus Dragon 1 SF/HF\",1,0)","v":0},{"$f":"IF(CONFIGURATOR!$E$18=\"Phaetus Dragon 2 HF\",1,0)","v":0},{"$f":"IF(CONFIGURATOR!$E$18=\"Phaetus Dragon 2 UHF\",1,0)","v":0},{"$f":"IF(CONFIGURATOR!$E$18=\"Phaetus Rapido HF\",1,0)","v":0},{"$f":"IF(CONFIGURATOR!$E$18=\"Phaetus Rapido UHF\",1,0)","v":1},{"$f":"IF(CONFIGURATOR!$E$18=\"SliceEngineering Mosquito\",1,0)","v":0},{"$f":"IF(CONFIGURATOR!$E$18=\"TriangleLab Dragon ACE\",1,0)","v":0},{"$f":"IF(CONFIGURATOR!$E$18=\"TriangleLab Dragon ACE+\",1,0)","v":0},{"$f":"IF(CONFIGURATOR!$E$19=\"Sherpa mini\",1,0)","v":0},{"$f":"IF(CONFIGURATOR!$E$19=\"Integrated Sherpa mini\",1,0)","v":0},{"$f":"IF(CONFIGURATOR!$E$19=\"Sherpa micro\",1,0)","v":0},{"$f":"IF(CONFIGURATOR!$E$19=\"Integrated Sherpa micro\",1,0)","v":1},{"$f":"IF(CONFIGURATOR!$E$19=\"BMG LGX\",1,0)","v":0},{"$f":"IF(CONFIGURATOR!$E$19=\"BMG LGX Lite\",1,0)","v":0},{"$f":"IF(CONFIGURATOR!$E$19=\"BMG Dualgear\",1,0)","v":0},{"$f":"IF(CONFIGURATOR!$E$19=\"Orbiter 1.0\",1,0)","v":0},{"$f":"IF(CONFIGURATOR!$E$19=\"Orbiter 2.0\",1,0)","v":0},{"$f":"IF(CONFIGURATOR!$E$19=\"VzHextrudort\",1,0)","v":0},{"$f":"IF(CONFIGURATOR!$E$19=\"Integrated VzHextrudort low\",1,0)","v":0},{"$f":"IF(CONFIGURATOR!$E$19=\"Integrated VzHextrudort helical\",1,0)","v":0},{"$f":"IF(CONFIGURATOR!$E$19=\"ProtoXtruder\",1,0)","v":0},{"$f":"IF(CONFIGURATOR!$E$19=\"Integrated ProtoXtruder\",1,0)","v":0},{"$f":"IF(CONFIGURATOR!$E$19=\"ProtoXtruder 2.0\",1,0)","v":0},{"$f":"IF(CONFIGURATOR!$E$19=\"Integrated ProtoXtruder 2.0\",1,0)","v":0},{"$f":"IF(CONFIGURATOR!$E$19=\"Hummingbird\",1,0)","v":0},{"$f":"IF(CONFIGURATOR!$E$19=\"Integrated Hummingbird\",1,0)","v":0},{"$f":"IF(CONFIGURATOR!$E$19=\"E3D Titan Extruder\",1,0)","v":0},{"$f":"IF(CONFIGURATOR!$E$19=\"Bowden\",1,0)","v":0},{"$f":"IF(CONFIGURATOR!$E$21=\"2x 4010\",1,0)","v":1},{"$f":"IF(CONFIGURATOR!$E$21=\"2x 4020\",1,0)","v":0},{"$f":"IF(CONFIGURATOR!$E$21=\"2x 5015\",1,0)","v":0},{"$f":"IF(CONFIGURATOR!$E$21=\"CPAP\",1,0)","v":0},{"$f":"IF(CONFIGURATOR!$E$21=\"RSCS only\",1,0)","v":0},{"$f":"IF(CONFIGURATOR!$E$22=\"Klicky probe\",1,0)","v":0},{"$f":"IF(CONFIGURATOR!$E$22=\"KlickyPCB\",1,0)","v":0},{"$f":"IF(CONFIGURATOR!$E$22=\"Beacon scanner\",1,0)","v":0},{"$f":"IF(CONFIGURATOR!$E$22=\"BDsensor\",1,0)","v":1},{"$f":"IF(CONFIGURATOR!$E$22=\"BLTouch\",1,0)","v":0},{"$f":"IF(CONFIGURATOR!$E$22=\"CR Touch\",1,0)","v":0},{"$f":"IF(CONFIGURATOR!$E$22=\"Biqu MicroProbe\",1,0)","v":0},{"$f":"IF(CONFIGURATOR!$E$22=\"P.I.N.D.A. / SuperPINDA\",1,0)","v":0},{"$f":"IF(CONFIGURATOR!$E$22=\"BTT EDDY\",1,0)","v":0},{"$f":"IF(CONFIGURATOR!$E$22=\"No probe\",1,0)","v":0},{"$f":"IF(CONFIGURATOR!$E$23=\"Breakout Board\",1,0)","v":0},{"$f":"IF(CONFIGURATOR!$E$23=\"Accelerometer\",1,0)","v":0},{"$f":"IF(CONFIGURATOR!$E$23=\"Breakout + cable\",1,0)","v":0},{"$f":"IF(CONFIGURATOR!$E$23=\"Accel + cable\",1,0)","v":1},{"$f":"IF(CONFIGURATOR!$E$23=\"Cable guide\",1,0)","v":0},{"$f":"IF(CONFIGURATOR!$E$23=\"n\",1,0)","v":0},{"$f":"IF(CONFIGURATOR!$E$27=\"Yes\",1,0)","v":0},{"$f":"IF(CONFIGURATOR!$E$28=\"Yes\",1,0)","v":1},{"$f":"IF(CONFIGURATOR!$E$29=\"Yes\",1,0)","v":1},{"$f":"IF(CONFIGURATOR!$E$30=\"Frame LED\",1,0)","v":1},{"$f":"IF(CONFIGURATOR!$E$30=\"Enclosure LED\",1,0)","v":0},{"$f":"IF(CONFIGURATOR!$E$30=\"Both LEDs\",1,0)","v":0},{"$f":"IF(CONFIGURATOR!$E$31=\"Yes\",1,0)","v":0},{"$f":"IF(CONFIGURATOR!$E$32=\"Yes\",1,0)","v":0},{"$f":"IF(CONFIGURATOR!$E$33=\"Yes\",1,0)","v":0},{"$f":"IF(CONFIGURATOR!$E$34=\"2mm sheet\",1,0)","v":1},{"$f":"IF(CONFIGURATOR!$E$35=\"Yes\",1,0)","v":0}]
[null,null,"FRAME – BOTTOM",null,null,null,null,null,{"$f":"SUM(I6:I32)","v":322.4500000000001},{"$f":"SUM(J6:J32)","v":13.81},null,null,{"$f":"M6*M7*M8*M9*M10*M11*M12*M13*M14*M15*M16*M17*M18*M19*M20*M21*M22*M23*M24*M25*M26*M27*M28*M29*M32","v":0},{"$f":"AS$4*AS5+AT$4*AT5+AU$4*AU5+AV$4*AV5+AW$4*AW5+AX$4*AX5+AY$4*AY5+AZ$4*AZ5+BA$4*BA5","v":0},{"$f":"BG$4*BG5+BH$4*BH5+BI$4*BI5+BJ$4*BJ5+BK$4*BK5+BL$4*BL5+BM$4*BM5+BN$4*BN5+BO$4*BO5+BP$4*BP5+BQ$4*BQ5+BR$4*BR5","v":0},{"$f":"BS$4*BS5+BT$4*BT5+BU$4*BU5+BV$4*BV5+BW$4*BW5+BX$4*BX5+BY$4*BY5+BZ$4*BZ5+CA$4*CA5+CB$4*CB5+CC$4*CC5+CD$4*CD5+CE$4*CE5+CF$4*CF5+CG$4*CG5+CH$4*CH5","v":0},{"$f":"BB$4*BB5+BC$4*BC5+BD$4*BD5","v":0},{"$f":"CI$4*CI5+CJ$4*CJ5+CK$4*CK5+CL$4*CL5+CM$4*CM5+CN$4*CN5+CO$4*CO5+CP$4*CP5+CQ$4*CQ5+CR$4*CR5+CS$4*CS5+CT$4*CT5+CU$4*CU5+CV$4*CV5+CW$4*CW5+CX$4*CX5+CY$4*CY5+CZ$4*CZ5+DA$4*DA5+DB$4*DB5+DC$4*DC5+DD$4*DD5+DE$4*DE5+DF$4*DF5+DG$4*DG5+DH$4*DH5+DI$4*DI5+DJ$4*DJ5+DK$4*DK5+DL$4*DL5+DM$4*DM5+DN$4*DN5+DO$4*DO5+DP$4*DP5+DQ$4*DQ5+DR$4*DR5+DS$4*DS5+DT$4*DT5+DU$4*DU5+DV$4*DV5+DW$4*DW5+DX$4*DX5+DY$4*DY5+DZ$4*DZ5+EA$4*EA5+EB$4*EB5+EC$4*EC5+ED$4*ED5+EE$4*EE5+EF$4*EF5+EG$4*EG5+EH$4*EH5+EI$4*EI5+EJ$4*EJ5+EK$4*EK5+EL$4*EL5+EM$4*EM5+EN$4*EN5+EO$4*EO5+EP$4*EP5+EQ$4*EQ5+ER$4*ER5","v":3},{"$f":"ES$4*ES5+ET$4*ET5+EU$4*EU5+EV$4*EV5+EW$4*EW5+EX$4*EX5+EY$4*EY5+EZ$4*EZ5+FA$4*FA5+FB$4*FB5+FC$4*FC5","v":0},{"$f":"BF$4*BF5","v":0},null,null,null,null,null,null,null,null,null,null,null,null,null,null,null,null,null,null,null,null,null,null,null,null,{"$f":"U5+V5+W5+AD5+AH5+AI5+AM5+AN5+AO5+AP5+AQ5","v":0},{"$f":"X5+Y5","v":0},{"$f":"Z5+AA5","v":0},{"$f":"AB5+AC5","v":0},{"$f":"AK5","v":0},{"$f":"AL5","v":0},{"$f":"AF5+AR5","v":0},{"$f":"AJ5","v":0},null,null,null,null,null,null,null,null,null,null,null,null,null,null,null,null,null,null,null,null,null,null,null,null,null,null,null,null,null,null,null,null,null,null,1,1,1,2,1,2,1,3,1,3,3,1,1,1,2,3,2,3,1,2,3,null,null,null,null,null,null,null,null,null,null,null,null,null,null,null,null,null,null,null,null,null,null,null,null,null,null,null,null,null,null,null,null,null,null,null,null,null,null,null,null,null,null,null,null,null,null,null,null,null,null,null,null,null,null,{"$f":"C5","v":"FRAME – BOTTOM"}]
[null,null,null,"Front corner left","frame_bottom_front_left_body.stl",{"$f":"SUM(N6:T6)","v":1},"M",null,{"$f":"IF($G6=\"M\",$K6*$F6,0)","v":67.099999999999994},{"$f":"IF($G6=\"A\",$K6*$F6,0)","v":0},67.099999999999994,null,{"$f":"IF(F6=0,IF(F6=\"\",0,1),0)","v":0},1,0,0,0,0,0,0,null,1,null,null,null,null,null,null,null,null,null,null,null,null,null,null,null,null,null,null,null,null,null,null,1,0,0,0,0,0,0,0]
[null,null,null,"Front corner left – top bearing mount","frame_bottom_front_left_cap.stl",1,"M",null,9.76,0,9.76,null,0,1,0,0,0,0,0,0,null,1,null,null,null,null,null,null,null,null,null,null,null,null,null,null,null,null,null,null,null,null,null,null,1,0,0,0,0,0,0,0]
[null,null,null,"Front corner right","frame_bottom_front_right_body.stl",1,"M",null,67.09,0,67.09,null,0,1,0,0,0,0,0,0,1,null,null,null,null,null,null,null,null,null,null,null,null,null,null,null,null,null,null,null,null,null,null,null,1,0,0,0,0,0,0,0]
[null,null,null,"Front corner right – top bearing mount","frame_bottom_front_right_cap.stl",1,"M",null,9.75,0,9.75,null,0,1,0,0,0,0,0,0,1,null,null,null,null,null,null,null,null,null,null,null,null,null,null,null,null,null,null,null,null,null,null,null,1,0,0,0,0,0,0,0]
[null,null,null,"Front corners – Z rod lock","frame_bottom_front_rod_lock.stl",2,"A",null,0,4.5,2.25,null,0,2,0,0,0,{"$f":"CI$4*CI10+CJ$4*CJ10+CK$4*CK10+CL$4*CL10+CM$4*CM10+CN$4*CN10+CO$4*CO10+CP$4*CP10+CQ$4*CQ10+CR$4*CR10+CS$4*CS10+CT$4*CT10+CU$4*CU10+CV$4*CV10+CW$4*CW10+CX$4*CX10+CY$4*CY10+CZ$4*CZ10+DA$4*DA10+DB$4*DB10+DC$4*DC10+DD$4*DD10+DE$4*DE10+DF$4*DF10+DG$4*DG10+DH$4*DH10+DI$4*DI10+DJ$4*DJ10+DK$4*DK10+DL$4*DL10+DM$4*DM10+DN$4*DN10+DO$4*DO10+DP$4*DP10+DQ$4*DQ10+DR$4*DR10+DS$4*DS10+DT$4*DT10+DU$4*DU10+DV$4*DV10+DW$4*DW10+DX$4*DX10+DY$4*DY10+DZ$4*DZ10+EA$4*EA10+EB$4*EB10+EC$4*EC10+ED$4*ED10+EE$4*EE10+EF$4*EF10+EG$4*EG10+EH$4*EH10+EI$4*EI10+EJ$4*EJ10+EK$4*EK10+EL$4*EL10+EM$4*EM10+EN$4*EN10+EO$4*EO10+EP$4*EP10+EQ$4*EQ10+ER$4*ER10","v":0},0,0,1,1,null,null,null,null,null,null,null,null,null,null,null,null,null,null,null,null,null,null,null,null,null,null,2,0,0,0,0,0,0,0]
[null,null,null,"Front skirt","frame_bottom_front_skirt.stl",1,"M",null,51.52,0,51.52,null,0,1,0,0,0,{"$f":"CI$4*CI11+CJ$4*CJ11+CK$4*CK11+CL$4*CL11+CM$4*CM11+CN$4*CN11+CO$4*CO11+CP$4*CP11+CQ$4*CQ11+CR$4*CR11+CS$4*CS11+CT$4*CT11+CU$4*CU11+CV$4*CV11+CW$4*CW11+CX$4*CX11+CY$4*CY11+CZ$4*CZ11+DA$4*DA11+DB$4*DB11+DC$4*DC11+DD$4*DD11+DE$4*DE11+DF$4*DF11+DG$4*DG11+DH$4*DH11+DI$4*DI11+DJ$4*DJ11+DK$4*DK11+DL$4*DL11+DM$4*DM11+DN$4*DN11+DO$4*DO11+DP$4*DP11+DQ$4*DQ11+DR$4*DR11+DS$4*DS11+DT$4*DT11+DU$4*DU11+DV$4*DV11+DW$4*DW11+DX$4*DX11+DY$4*DY11+DZ$4*DZ11+EA$4*EA11+EB$4*EB11+EC$4*EC11+ED$4*ED11+EE$4*EE11+EF$4*EF11+EG$4*EG11+EH$4*EH11+EI$4*EI11+EJ$4*EJ11+EK$4*EK11+EL$4*EL11+EM$4*EM11+EN$4*EN11+EO$4*EO11+EP$4*EP11+EQ$4*EQ11+ER$4*ER11","v":0},0,0,null,null,1,null,null,null,null,null,null,null,null,null,null,null,null,null,null,null,null,null,null,null,null,null,1,0,0,0,0,0,0,0]
[null,null,null,"Rear corner left","frame_bottom_rear_left_body.stl",0,"M",null,0,0,58.05,null,1,0,0,0,0,0,0,0,null,null,null,1,null,null,null,null,null,null,null,null,null,null,null,null,null,null,null,null,null,null,null,null,0,1,0,0,0,0,0,0]
[null,null,null,"Rear frame stand left","frame_bottom_rear_left_vertical.stl",0,"M",null,0,0,82.38,null,1,0,0,0,0,0,0,0,null,null,null,1,null,null,null,null,null,null,null,null,null,null,null,null,null,null,null,null,null,null,null,null,0,1,0,0,0,0,0,0]
[null,null,null,"Rear corner right","frame_bottom_rear_right_body.stl",0,"M",null,0,0,58.09,null,1,0,0,0,0,0,0,0,null,null,null,null,1,null,null,null,null,null,null,null,null,null,null,null,null,null,null,null,null,null,null,null,0,1,0,0,0,0,0,0]
[null,null,null,"Rear frame stand right","frame_bottom_rear_right_vertical.stl",0,"M",null,0,0,82.39,null,1,0,0,0,0,0,0,0,null,null,null,null,1,null,null,null,null,null,null,null,null,null,null,null,null,null,null,null,null,null,null,null,0,1,0,0,0,0,0,0]
[null,null,null,"Rear corner left 2040 x 350 mm","frame_bottom_rear_left_2040.stl",1,"M",null,26.91,0,26.91,null,0,1,0,0,0,0,0,0,null,null,null,null,null,1,null,1,null,null,null,null,null,null,null,null,null,null,null,null,null,null,null,null,0,0,1,1,0,0,0,0]
[null,null,null,"Rear corner right 2040 x 350 mm","frame_bottom_rear_right_2040.stl",1,"M",null,26.93,0,26.93,null,0,1,0,0,0,0,0,0,null,null,null,null,null,null,1,null,1,null,null,null,null,null,null,null,null,null,null,null,null,null,null,null,0,0,1,1,0,0,0,0]
[null,null,null,"Z stepper mount – Nema 17","frame_bottom_z_stepper.stl",1,"A",null,0,9.31,9.31,null,0,1,0,0,0,0,0,0,null,null,null,null,null,null,null,null,null,null,null,null,null,null,1,2,null,null,null,null,null,null,null,null,1,0,0,0,0,0,0,2]
[null,null,null,"Z belt idler","frame_bottom_z_idler.stl",1,"M",null,7.57,0,7.57,null,0,1,0,0,0,0,0,0,null,null,null,null,null,null,null,null,null,null,null,null,null,1,null,-1,null,null,null,null,null,null,null,null,1,0,0,0,0,0,0,-1]
[null,null,null,"Rear leadscrew support top","frame_bottom_rear_z_upper_1140mm.stl",1,"M",null,15.3,0,15.3,null,0,1,0,0,0,0,0,0,null,null,null,null,null,null,null,null,null,1,-1,0,-1,null,null,null,null,null,null,null,null,null,null,null,1,0,0,0,0,0,0,0]
[null,null,null,"Rear leadscrew support top 1040 belt","frame_bottom_rear_z_upper_1040mm.stl",0,"M",null,0,0,24.4,null,1,0,0,0,0,0,0,0,null,null,null,null,null,null,null,null,null,null,1,null,1,null,null,null,null,null,null,null,null,null,null,null,0,0,0,0,0,0,0,0]
[null,null,null,"Rear leadscrew support bottom","frame_bottom_rear_z_lower_dual.stl",0,"M",null,0,0,15.24,null,1,0,0,0,0,0,0,0,null,null,null,null,null,null,null,null,null,1,0,-1,-1,null,null,null,null,null,null,null,null,null,null,null,1,0,0,0,0,0,-1,0]
[null,null,null,"Rear leadscrew support bottom rod","frame_bottom_rear_z_lower_triple.stl",1,"M",null,22.66,0,22.66,null,0,1,0,0,0,0,0,0,null,null,null,null,null,null,null,null,null,null,null,1,1,null,null,null,null,null,null,null,null,null,null,null,0,0,0,0,0,0,1,0]
[null,null,null,"Ender 3 OG rear spacer left","frame_bottom_E3_fix_left.stl",0,"M",null,0,0,36.79,null,1,0,0,0,0,0,0,0,null,null,null,null,null,null,null,null,null,null,null,null,null,null,null,null,1,null,null,null,null,null,null,null,0,0,0,0,1,0,0,0]
[null,null,null,"Ender 3 OG rear spacer right","frame_bottom_E3_fix_right.stl",0,"M",null,0,0,38.42,null,1,0,0,0,0,0,0,0,null,null,null,null,null,null,null,null,null,null,null,null,null,null,null,null,1,null,null,null,null,null,null,null,0,0,0,0,1,0,0,0]
[null,null,null,"2040 extrusion spacer","frame_optional_2040_spacer_5mm.stl",0,"A",null,0,0,2.62,null,1,0,0,0,0,0,0,0,null,null,null,null,null,null,null,2,2,null,null,null,null,null,null,null,null,null,null,null,null,null,null,null,0,0,0,4,0,0,0,0]
[null,null,null,"4040 extrusion spacer","frame_optional_4040_spacer_10mm.stl",0,"A",null,0,0,8.07,null,1,0,0,0,0,0,0,0,null,null,null,null,null,null,null,null,null,null,null,null,null,null,null,null,null,2,null,null,null,null,null,null,0,0,0,0,0,2,0,0]
[null,null,null,"Z leadscrew pulley – 40T","frame_bottom_Z_40T_pulley.stl",0,"A",null,0,0,5.96,null,1,0,0,0,0,0,0,0,null,null,null,null,null,null,null,null,null,null,null,null,null,null,null,null,null,null,null,null,null,null,null,null,0,0,0,0,0,0,0,0,3]
[null,null,null,"Z leadscrew aluminium pulley – spacer","frame_bottom_pulley_spacer.stl",3,"M",null,3.66,0,1.22,null,0,3,0,0,0,0,0,0,1,1,null,null,null,null,null,null,null,1,0,0,0,null,null,null,null,null,null,null,null,null,null,null,3,0,0,0,0,0,0,0,-3]
[null,null,null,"Bottom corner brace","frame_optional_corner_brace_bottom.stl",0,"A",null,0,0,18.23,null,{"$f":"IF(F30=0,IF(F30=\"\",0,1),0)","v":1},{"$f":"AS$4*AS30+AT$4*AT30+AU$4*AU30+AV$4*AV30+AW$4*AW30+AX$4*AX30+AY$4*AY30+AZ$4*AZ30+BA$4*BA30","v":0},{"$f":"BG$4*BG30+BH$4*BH30+BI$4*BI30+BJ$4*BJ30+BK$4*BK30+BL$4*BL30+BM$4*BM30+BN$4*BN30+BO$4*BO30+BP$4*BP30+BQ$4*BQ30+BR$4*BR30","v":0},{"$f":"BS$4*BS30+BT$4*BT30+BU$4*BU30+BV$4*BV30+BW$4*BW30+BX$4*BX30+BY$4*BY30+BZ$4*BZ30+CA$4*CA30+CB$4*CB30+CC$4*CC30+CD$4*CD30+CE$4*CE30+CF$4*CF30+CG$4*CG30+CH$4*CH30","v":0},{"$f":"BB$4*BB30+BC$4*BC30+BD$4*BD30","v":0},{"$f":"CI$4*CI30+CJ$4*CJ30+CK$4*CK30+CL$4*CL30+CM$4*CM30+CN$4*CN30+CO$4*CO30+CP$4*CP30+CQ$4*CQ30+CR$4*CR30+CS$4*CS30+CT$4*CT30+CU$4*CU30+CV$4*CV30+CW$4*CW30+CX$4*CX30+CY$4*CY30+CZ$4*CZ30+DA$4*DA30+DB$4*DB30+DC$4*DC30+DD$4*DD30+DE$4*DE30+DF$4*DF30+DG$4*DG30+DH$4*DH30+DI$4*DI30+DJ$4*DJ30+DK$4*DK30+DL$4*DL30+DM$4*DM30+DN$4*DN30+DO$4*DO30+DP$4*DP30+DQ$4*DQ30+DR$4*DR30+DS$4*DS30+DT$4*DT30+DU$4*DU30+DV$4*DV30+DW$4*DW30+DX$4*DX30+DY$4*DY30+DZ$4*DZ30+EA$4*EA30+EB$4*EB30+EC$4*EC30+ED$4*ED30+EE$4*EE30+EF$4*EF30+EG$4*EG30+EH$4*EH30+EI$4*EI30+EJ$4*EJ30+EK$4*EK30+EL$4*EL30+EM$4*EM30+EN$4*EN30+EO$4*EO30+EP$4*EP30+EQ$4*EQ30+ER$4*ER30","v":0},{"$f":"ES$4*ES30+ET$4*ET30+EU$4*EU30+EV$4*EV30+EW$4*EW30+EX$4*EX30+EY$4*EY30+EZ$4*EZ30+FA$4*FA30+FB$4*FB30+FC$4*FC30","v":0},{"$f":"BF$4*BF30","v":0},null,null,null,null,null,null,null,null,null,null,null,null,null,null,null,null,null,null,null,null,null,null,null,null,{"$f":"U30+V30+W30+AD30+AH30+AI30+AM30+AN30+AO30+AP30+AQ30","v":0},{"$f":"X30+Y30","v":0},{"$f":"Z30+AA30","v":0},{"$f":"AB30+AC30","v":0},{"$f":"AK30","v":0},{"$f":"AL30","v":0},{"$f":"AF30+AR30","v":0},{"$f":"AJ30","v":0},null,null,null,null,null,null,null,null,null,null,null,null,null,null,null,null,null,null,null,null,null,null,null,null,null,null,null,null,null,null,null,null,null,null,null,null,null,null,null,null,null,null,null,null,null,null,null,null,null,null,null,null,null,null,null,null,null,null,null,null,null,null,null,null,null,null,null,null,null,null,null,null,null,null,null,null,null,null,null,null,null,null,null,null,null,null,null,null,null,null,null,null,null,null,null,null,2]
[null,null,null,"20mm extrusion - drill guide","frame_20_extrusion_drill_guide.stl",1,"M",null,8.23,0,8.23,null,{"$f":"IF(F31=0,IF(F31=\"\",0,1),0)","v":0},{"$f":"AS$4*AS31+AT$4*AT31+AU$4*AU31+AV$4*AV31+AW$4*AW31+AX$4*AX31+AY$4*AY31+AZ$4*AZ31+BA$4*BA31","v":1},{"$f":"BG$4*BG31+BH$4*BH31+BI$4*BI31+BJ$4*BJ31+BK$4*BK31+BL$4*BL31+BM$4*BM31+BN$4*BN31+BO$4*BO31+BP$4*BP31+BQ$4*BQ31+BR$4*BR31","v":0},{"$f":"BS$4*BS31+BT$4*BT31+BU$4*BU31+BV$4*BV31+BW$4*BW31+BX$4*BX31+BY$4*BY31+BZ$4*BZ31+CA$4*CA31+CB$4*CB31+CC$4*CC31+CD$4*CD31+CE$4*CE31+CF$4*CF31+CG$4*CG31+CH$4*CH31","v":0},{"$f":"BB$4*BB31+BC$4*BC31+BD$4*BD31","v":0},{"$f":"CI$4*CI31+CJ$4*CJ31+CK$4*CK31+CL$4*CL31+CM$4*CM31+CN$4*CN31+CO$4*CO31+CP$4*CP31+CQ$4*CQ31+CR$4*CR31+CS$4*CS31+CT$4*CT31+CU$4*CU31+CV$4*CV31+CW$4*CW31+CX$4*CX31+CY$4*CY31+CZ$4*CZ31+DA$4*DA31+DB$4*DB31+DC$4*DC31+DD$4*DD31+DE$4*DE31+DF$4*DF31+DG$4*DG31+DH$4*DH31+DI$4*DI31+DJ$4*DJ31+DK$4*DK31+DL$4*DL31+DM$4*DM31+DN$4*DN31+DO$4*DO31+DP$4*DP31+DQ$4*DQ31+DR$4*DR31+DS$4*DS31+DT$4*DT31+DU$4*DU31+DV$4*DV31+DW$4*DW31+DX$4*DX31+DY$4*DY31+DZ$4*DZ31+EA$4*EA31+EB$4*EB31+EC$4*EC31+ED$4*ED31+EE$4*EE31+EF$4*EF31+EG$4*EG31+EH$4*EH31+EI$4*EI31+EJ$4*EJ31+EK$4*EK31+EL$4*EL31+EM$4*EM31+EN$4*EN31+EO$4*EO31+EP$4*EP31+EQ$4*EQ31+ER$4*ER31","v":0},{"$f":"ES$4*ES31+ET$4*ET31+EU$4*EU31+EV$4*EV31+EW$4*EW31+EX$4*EX31+EY$4*EY31+EZ$4*EZ31+FA$4*FA31+FB$4*FB31+FC$4*FC31","v":0},{"$f":"BF$4*BF31","v":0},null,null,null,null,null,1,null,1,null,null,null,null,null,null,null,null,null,null,null,null,null,null,null,null,{"$f":"U31+V31+W31+AD31+AH31+AI31+AM31+AN31+AO31+AP31+AQ31","v":0},{"$f":"X31+Y31","v":0},{"$f":"Z31+AA31","v":1},{"$f":"AB31+AC31","v":1},{"$f":"AK31","v":0},{"$f":"AL31","v":0},{"$f":"AF31+AR31","v":0},{"$f":"AJ31","v":0}]
[null,null,null,"40mm extrusion - drill guide","frame_40_extrusion_drill_guide.stl",1,"M",null,5.97,0,5.97,null,0,1,0,0,0,0,0,0,null,null,null,null,null,1,null,1,null,null,null,null,null,null,null,null,null,null,null,null,null,null,null,null,0,0,1,1,0,0,0,0,null,null,null,null,null,null,null,null,null,null,null,null,null,null,null,null,null,null,null,null,null,null,null,null,null,null,null,null,null,null,null,null,null,null,null,null,null,null,null,null,null,null,null,null,null,null,null,null,null,null,null,null,null,null,null,null,null,null,null,null,null,null,null,null,null,null,null,null,null,null,null,null,null,null,null,null,null,null,null,null,null,null,null,null,null,null,null,null,null,null,null,null,null,null,null,null,2]
[null,null,"FRAME – TOP",null,null,null,null,null,{"$f":"SUM(I34:I45)","v":149.13},{"$f":"SUM(J34:J45)","v":68.34},null,null,{"$f":"M34*M35*M36*M37*M38*M39*M40*M41*M42*M43*M44*M45","v":0},0,0,0,0,0,0,0,null,null,null,null,null,null,null,null,null,null,null,null,null,null,null,null,null,null,null,null,null,null,null,null,0,0,0,0,0,0,0,0,null,null,null,null,null,null,null,null,null,null,null,null,null,null,null,null,null,null,null,null,null,null,null,null,null,null,null,null,null,null,null,null,null,null,null,null,null,null,null,null,null,null,null,null,null,null,null,null,null,null,null,null,null,null,null,null,null,null,null,null,null,null,null,null,null,null,null,null,null,null,null,null,null,null,null,null,null,null,null,null,null,null,null,null,null,null,null,null,null,null,null,null,null,null,null,null,null,null,null,null,null,null,null,null,null,null,null,null,null,{"$f":"C33","v":"FRAME – TOP"}]
[null,null,null,"Front corner left","frame_top_front_left_body.stl",{"$f":"SUM(N34:T34)","v":1},"M",null,{"$f":"IF($G34=\"M\",$K34*$F34,0)","v":38.86},{"$f":"IF($G34=\"A\",$K34*$F34,0)","v":0},38.86,null,{"$f":"IF(F34=0,IF(F34=\"\",0,1),0)","v":0},1,0,0,0,0,0,0,null,null,null,null,null,null,null,null,null,null,null,null,null,null,null,null,null,null,null,1,null,null,null,null,{"$f":"U34+V34+W34+AD34+AH34+AI34+AM34+AN34+AO34+AP34+AQ34","v":1},{"$f":"X34+Y34","v":0},{"$f":"Z34+AA34","v":0},{"$f":"AB34+AC34","v":0},{"$f":"AK34","v":0},{"$f":"AL34","v":0},{"$f":"AF34+AR34","v":0},{"$f":"AJ34","v":0}]
[null,null,null,"Front corner left – tensioner","frame_top_front_left_tensioner.stl",1,"A",null,0,6.49,6.49,null,0,1,0,0,0,0,0,0,null,null,null,null,null,null,null,null,null,null,null,null,null,null,null,null,null,null,null,1,null,null,null,null,1,0,0,0,0,0,0,0]
[null,null,null,"Front corner right","frame_top_front_right_body.stl",1,"M",null,44.18,0,44.18,null,0,1,0,0,0,0,0,0,null,null,null,null,null,null,null,null,null,null,null,null,null,null,null,null,null,null,1,null,null,null,null,null,1,0,0,0,0,0,0,0]
[null,null,null,"Front corner right – tensioner","frame_top_front_right_tensioner.stl",1,"A",null,0,6.5,6.5,null,0,1,0,0,0,0,0,0,null,null,null,null,null,null,null,null,null,null,null,null,null,null,null,null,null,null,1,null,null,null,null,null,1,0,0,0,0,0,0,0]
[null,null,null,"Rear corner left top","frame_top_rear_B_left_top.stl",1,"M",null,23.41,0,23.41,null,0,1,0,0,0,0,0,0,null,null,null,null,null,null,null,null,null,null,null,null,null,null,null,null,null,null,null,null,null,1,null,null,1,0,0,0,0,0,0,0]
[null,null,null,"Rear corner left middle","frame_top_rear_B_left_middle.stl",1,"A",null,0,25.54,25.54,null,0,1,0,0,0,0,0,0,null,null,null,null,null,null,null,null,null,null,null,null,null,null,null,null,null,null,null,null,null,1,null,null,1,0,0,0,0,0,0,0]
[null,null,null,"Rear corner left bottom","frame_top_rear_B_left_bottom.stl",1,"A",null,0,6.68,6.68,null,0,1,0,0,0,0,0,0,null,null,null,null,null,null,null,null,null,null,null,null,null,null,null,null,null,null,null,null,null,1,null,null,1,0,0,0,0,0,0,0]
[null,null,null,"Rear corner right top","frame_top_rear_A_right_top.stl",1,"M",null,5.63,0,5.63,null,0,1,0,0,0,0,0,0,null,null,null,null,null,null,null,null,null,null,null,null,null,null,null,null,null,null,null,null,1,null,null,null,1,0,0,0,0,0,0,0]
[null,null,null,"Rear corner right middle","frame_top_rear_A_right_middle.stl",1,"M",null,37.049999999999997,0,37.049999999999997,null,0,1,0,0,0,0,0,0,null,null,null,null,null,null,null,null,null,null,null,null,null,null,null,null,null,null,null,null,1,null,null,null,1,0,0,0,0,0,0,0]
[null,null,null,"Rear corner right bottom","frame_top_rear_A_right_bottom.stl",1,"A",null,0,23.13,23.13,null,0,1,0,0,0,0,0,0,null,null,null,null,null,null,null,null,null,null,null,null,null,null,null,null,null,null,null,null,1,null,null,null,1,0,0,0,0,0,0,0]
[null,null,null,"Stock stepper 5mm spacer","frame_optional_stepper_spacer_5mm.stl",0,"A",null,0,0,4.71,null,1,0,0,0,0,0,0,0,null,null,null,null,null,null,null,null,null,null,null,null,null,null,null,null,null,null,null,null,null,null,null,null,0,0,0,0,0,0,0,0]
[null,null,null,"Top corner brace","frame_optional_corner_brace_top.stl",0,"M",null,0,0,14.35,null,1,0,0,0,0,0,0,0,null,null,null,null,null,null,null,null,null,null,null,null,null,null,null,null,null,null,null,null,null,null,null,null,0,0,0,0,0,0,0,0,null,null,null,null,null,null,null,null,null,null,null,null,null,null,null,null,null,null,null,null,null,null,null,null,null,null,null,null,null,null,null,null,null,null,null,null,null,null,null,null,null,null,null,null,null,null,null,null,null,null,null,null,null,null,null,null,null,null,null,null,null,null,null,null,null,null,null,null,null,null,null,null,null,null,null,null,null,null,null,null,null,null,null,null,null,null,null,null,null,null,null,null,null,null,null,null,2]
[null,null,"BED ASSEMBLY",null,null,null,null,null,{"$f":"SUM(I47:I71)","v":22.209999999999997},{"$f":"SUM(J47:J71)","v":119.64},null,null,{"$f":"M47*M48*M49*M50*M51*M52*M53*M54*M55*M56*M57*M58*M59*M60*M61*M62*M63*M64*M65*M66*M67*M68*M69*M70*M71","v":0},0,0,0,0,0,0,0,null,null,null,null,null,null,null,null,null,null,null,null,null,null,null,null,null,null,null,null,null,null,null,null,0,0,0,0,0,0,0,0,null,null,null,null,null,null,null,null,null,null,null,null,null,null,null,null,null,null,null,null,null,null,null,null,null,null,null,null,null,null,null,null,null,null,null,null,null,null,null,null,null,null,null,null,null,null,null,null,null,null,null,null,null,null,null,null,null,null,null,null,null,null,null,null,null,null,null,null,null,null,null,null,null,null,null,null,null,null,null,null,null,null,null,null,null,null,null,null,null,null,null,null,null,null,null,null,null,null,null,null,null,null,null,null,null,null,null,null,null,{"$f":"C46","v":"BED ASSEMBLY"}]
[null,null,null,"Left arm","bed_arm_left_solid.stl",{"$f":"SUM(N47:T47)","v":0},"A",null,{"$f":"IF($G47=\"M\",$K47*$F47,0)","v":0},{"$f":"IF($G47=\"A\",$K47*$F47,0)","v":0},40.130000000000003,null,{"$f":"IF(F47=0,IF(F47=\"\",0,1),0)","v":1},0,0,0,0,0,0,0,null,null,null,null,null,null,null,null,null,null,null,null,null,null,null,null,null,null,null,null,null,null,null,null,{"$f":"U47+V47+W47+AD47+AH47+AI47+AM47+AN47+AO47+AP47+AQ47","v":0},{"$f":"X47+Y47","v":0},{"$f":"Z47+AA47","v":0},{"$f":"AB47+AC47","v":0},{"$f":"AK47","v":0},{"$f":"AL47","v":0},{"$f":"AF47+AR47","v":0},{"$f":"AJ47","v":0},null,null,null,null,null,null,null,null,null,null,1]
[null,null,null,"Right arm ","bed_arm_right_solid.stl",0,"A",null,0,0,40.049999999999997,null,1,0,0,0,0,0,0,0,null,null,null,null,null,null,null,null,null,null,null,null,null,null,null,null,null,null,null,null,null,null,null,null,0,0,0,0,0,0,0,0,null,null,null,null,null,null,null,null,null,null,1]
[null,null,null,"Rear arm ","bed_arm_rear_solid.stl",0,"A",null,0,0,36,null,1,0,0,0,0,0,0,0,null,null,null,null,null,null,null,null,null,null,null,null,null,null,null,null,null,null,null,null,null,null,null,null,0,0,0,0,0,0,0,0,null,null,null,null,null,null,null,null,null,null,1,null,null,null,{"$f":"-1*BK4","v":0}]
[null,null,null,"Rear arm 3 rods","bed_arm_rear_solid_triple.stl",0,"A",null,0,0,39.31,null,1,0,0,0,0,0,0,0,null,null,null,null,null,null,null,null,null,null,null,null,null,null,null,null,null,null,null,null,null,null,null,null,0,0,0,0,0,0,0,0,null,null,null,null,null,null,null,null,null,null,null,null,null,null,{"$f":"1*BK4","v":0}]
[null,null,null,"Left arm – flexi","bed_arm_left_flexi.stl",1,"A",null,0,37.979999999999997,37.979999999999997,null,0,0,1,0,0,0,0,0,null,null,null,null,null,null,null,null,null,null,null,null,null,null,null,null,null,null,null,null,null,null,null,null,0,0,0,0,0,0,0,0,null,null,null,null,null,null,null,null,1]
[null,null,null,"Right arm – flexi","bed_arm_right_flexi.stl",1,"A",null,0,37.869999999999997,37.869999999999997,null,0,0,1,0,0,0,0,0,null,null,null,null,null,null,null,null,null,null,null,null,null,null,null,null,null,null,null,null,null,null,null,null,0,0,0,0,0,0,0,0,null,null,null,null,null,null,null,null,1]
[null,null,null,"Rear arm – flexi","bed_arm_rear_flexi.stl",0,"A",null,0,0,33.67,null,1,0,0,0,0,0,0,0,null,null,null,null,null,null,null,null,null,null,null,null,null,null,null,null,null,null,null,null,null,null,null,null,0,0,0,0,0,0,0,0,null,null,null,null,null,null,null,null,1,null,null,null,null,null,{"$f":"-1*BI4","v":-1}]
[null,null,null,"Rear arm 3 rods – flexi","bed_arm_rear_flexi_triple.stl",1,"A",null,0,36.83,36.83,null,0,0,1,0,0,0,0,0,null,null,null,null,null,null,null,null,null,null,null,null,null,null,null,null,null,null,null,null,null,null,null,null,0,0,0,0,0,0,0,0,null,null,null,null,null,null,null,null,null,null,null,null,null,null,{"$f":"1*BI4","v":1}]
[null,null,null,"Arm flexi insert – front","bed_arm_insert_flexi_front.stl",2,"M",null,10.6,0,5.3,null,0,0,2,0,0,0,0,0,null,null,null,null,null,null,null,null,null,null,null,null,null,null,null,null,null,null,null,null,null,null,null,null,0,0,0,0,0,0,0,0,null,null,null,null,null,null,null,null,2]
[null,null,null,"Arm flexi insert – rear","bed_arm_insert_flexi_rear.stl",1,"M",null,4.87,0,4.87,null,0,0,1,0,0,0,0,0,null,null,null,null,null,null,null,null,null,null,null,null,null,null,null,null,null,null,null,null,null,null,null,null,0,0,0,0,0,0,0,0,null,null,null,null,null,null,null,null,1]
[null,null,null,"Left arm – WobbleX","bed_arm_left_wobblex.stl",0,"A",null,0,0,40.090000000000003,null,1,0,0,0,0,0,0,0,null,null,null,null,null,null,null,null,null,null,null,null,null,null,null,null,null,null,null,null,null,null,null,null,0,0,0,0,0,0,0,0,null,null,null,null,null,null,null,null,null,1]
[null,null,null,"Right arm – WobbleX","bed_arm_right_wobblex.stl",0,"A",null,0,0,40,null,1,0,0,0,0,0,0,0,null,null,null,null,null,null,null,null,null,null,null,null,null,null,null,null,null,null,null,null,null,null,null,null,0,0,0,0,0,0,0,0,null,null,null,null,null,null,null,null,null,1]
[null,null,null,"Rear arm – WobbleX","bed_arm_rear_wobblex.stl",0,"A",null,0,0,35.94,null,1,0,0,0,0,0,0,0,null,null,null,null,null,null,null,null,null,null,null,null,null,null,null,null,null,null,null,null,null,null,null,null,0,0,0,0,0,0,0,0,null,null,null,null,null,null,null,null,null,1,null,null,null,null,{"$f":"-1*BJ4","v":0}]
[null,null,null,"Rear arm 3 rods – WobbleX","bed_arm_rear_wobblex_triple.stl",0,"A",null,0,0,39.299999999999997,null,1,0,0,0,0,0,0,0,null,null,null,null,null,null,null,null,null,null,null,null,null,null,null,null,null,null,null,null,null,null,null,null,0,0,0,0,0,0,0,0,null,null,null,null,null,null,null,null,null,null,null,null,null,null,{"$f":"1*BJ4","v":0}]
[null,null,null,"Front arms screw cover","bed_arm_cover.stl",2,"A",null,0,1.54,0.77,null,0,0,2,0,0,0,0,0,null,null,null,null,null,null,null,null,null,null,null,null,null,null,null,null,null,null,null,null,null,null,null,null,0,0,0,0,0,0,0,0,null,null,null,null,null,null,null,null,2,2,2]
[null,null,null,"Printed bed carriage","bed_carriage_printed.stl",0,"M",null,0,0,122.99,null,1,0,0,0,0,0,0,0,null,null,null,null,null,null,null,null,null,null,null,null,null,null,null,null,null,null,null,null,null,null,null,null,0,0,0,0,0,0,0,0,null,null,null,null,null,null,null,null,null,null,null,null,1]
[null,null,null,"Cable strain relief","bed_cable_strain_relief.stl",1,"A",null,0,5.42,5.42,null,0,0,1,0,0,0,0,0,null,null,null,null,null,null,null,null,null,null,null,null,null,null,null,null,null,null,null,null,null,null,null,null,0,0,0,0,0,0,0,0,null,null,null,null,null,null,null,null,1,1,1,null,-1]
[null,null,null,"6015 air blower","bed_fan_6015_01.stl",0,"A",null,0,0,40.47,null,1,0,0,0,0,0,0,0,null,null,null,null,null,null,null,null,null,null,null,null,null,null,null,null,null,null,null,null,null,null,null,null,0,0,0,0,0,0,0,0,null,null,null,null,null,null,null,null,null,null,null,1]
[null,null,null,"6015 air blower screw spacer","bed_fan_6015_02.stl",0,"A",null,0,0,0.3,null,1,0,0,0,0,0,0,0,null,null,null,null,null,null,null,null,null,null,null,null,null,null,null,null,null,null,null,null,null,null,null,null,0,0,0,0,0,0,0,0,null,null,null,null,null,null,null,null,null,null,null,2]
[null,null,null,"6015 air blower screw spacer","bed_fan_6015_03.stl",0,"A",null,0,0,0.23,null,1,0,0,0,0,0,0,0,null,null,null,null,null,null,null,null,null,null,null,null,null,null,null,null,null,null,null,null,null,null,null,null,0,0,0,0,0,0,0,0,null,null,null,null,null,null,null,null,null,null,null,1]
[null,null,null,"Wago mount DC","bed_wago221_DC.stl",0,"A",null,0,0,5.23,null,1,0,0,0,0,0,0,0,null,null,null,null,null,null,null,null,null,null,null,null,null,null,null,null,null,null,null,null,null,null,null,null,0,0,0,0,0,0,0,0,null,null,null,null,null,null,null,null,null,null,null,null,null,null,null,1]
[null,null,null,"Wago mount AC","bed_wago221_AC.stl",0,"A",null,0,0,6.16,null,1,0,0,0,0,0,0,0,null,null,null,null,null,null,null,null,null,null,null,null,null,null,null,null,null,null,null,null,null,null,null,null,0,0,0,0,0,0,0,0,null,null,null,null,null,null,null,null,null,null,null,null,null,null,null,null,1]
[null,null,null,"Left arm – drill guide","bed_carriage_stock_drill_left.stl",1,"M",null,1.63,0,1.63,null,0,0,1,0,0,0,0,0,null,null,null,null,null,null,null,null,null,null,null,null,null,null,null,null,null,null,null,null,null,null,null,null,0,0,0,0,0,0,0,0,null,null,null,null,null,null,null,null,1,1,1,null,-1]
[null,null,null,"Right arm – drill guide","bed_carriage_stock_drill_right.stl",1,"M",null,1.63,0,1.63,null,0,{"$f":"AS$4*AS70+AT$4*AT70+AU$4*AU70+AV$4*AV70+AW$4*AW70+AX$4*AX70+AY$4*AY70+AZ$4*AZ70+BA$4*BA70","v":0},{"$f":"BG$4*BG70+BH$4*BH70+BI$4*BI70+BJ$4*BJ70+BK$4*BK70+BL$4*BL70+BM$4*BM70+BN$4*BN70+BO$4*BO70+BP$4*BP70+BQ$4*BQ70+BR$4*BR70","v":1},{"$f":"BS$4*BS70+BT$4*BT70+BU$4*BU70+BV$4*BV70+BW$4*BW70+BX$4*BX70+BY$4*BY70+BZ$4*BZ70+CA$4*CA70+CB$4*CB70+CC$4*CC70+CD$4*CD70+CE$4*CE70+CF$4*CF70+CG$4*CG70+CH$4*CH70","v":0},{"$f":"BB$4*BB70+BC$4*BC70+BD$4*BD70","v":0},0,{"$f":"ES$4*ES70+ET$4*ET70+EU$4*EU70+EV$4*EV70+EW$4*EW70+EX$4*EX70+EY$4*EY70+EZ$4*EZ70+FA$4*FA70+FB$4*FB70+FC$4*FC70","v":0},{"$f":"BF$4*BF70","v":0},null,null,null,null,null,null,null,null,null,null,null,null,null,null,null,null,null,null,null,null,null,null,null,null,0,0,0,0,0,0,0,0,null,null,null,null,null,null,null,null,1,1,1,null,-1]
[null,null,null,"Rear arm – drill guide","bed_carriage_stock_drill_rear.stl",1,"M",null,3.48,0,3.48,null,0,0,1,0,0,0,0,0,null,null,null,null,null,null,null,null,null,null,null,null,null,null,null,null,null,null,null,null,null,null,null,null,0,0,0,0,0,0,0,0,null,null,null,null,null,null,null,null,1,1,1,null,-1]
[null,null,"XY MOTION",null,null,null,null,null,{"$f":"SUM(I73:I76)","v":1.04},{"$f":"SUM(J73:J76)","v":46.65},null,null,{"$f":"M73*M74*M75*M76","v":0},0,0,0,0,0,0,0,null,null,null,null,null,null,null,null,null,null,null,null,null,null,null,null,null,null,null,null,null,null,null,null,0,0,0,0,0,0,0,0,null,null,null,null,null,null,null,null,null,null,null,null,null,null,null,null,null,null,null,null,null,null,null,null,null,null,null,null,null,null,null,null,null,null,null,null,null,null,null,null,null,null,null,null,null,null,null,null,null,null,null,null,null,null,null,null,null,null,null,null,null,null,null,null,null,null,null,null,null,null,null,null,null,null,null,null,null,null,null,null,null,null,null,null,null,null,null,null,null,null,null,null,null,null,null,null,null,null,null,null,null,null,null,null,null,null,null,null,null,{"$f":"C72","v":"XY MOTION"}]
[null,null,null,"Y gantry left","y_gantry_left.stl",{"$f":"SUM(N73:T73)","v":1},"A",null,{"$f":"IF($G73=\"M\",$K73*$F73,0)","v":0},{"$f":"IF($G73=\"A\",$K73*$F73,0)","v":17.79},17.79,null,{"$f":"IF(F73=0,IF(F73=\"\",0,1),0)","v":0},0,0,0,1,0,0,0,null,null,null,null,null,null,null,null,null,null,null,null,null,null,null,null,null,null,null,null,null,null,null,null,{"$f":"U73+V73+W73+AD73+AH73+AI73+AM73+AN73+AO73+AP73+AQ73","v":0},{"$f":"X73+Y73","v":0},{"$f":"Z73+AA73","v":0},{"$f":"AB73+AC73","v":0},{"$f":"AK73","v":0},0,{"$f":"AF73+AR73","v":0},{"$f":"AJ73","v":0},null,1]
[null,null,null,"Y gantry right","y_gantry_right.stl",{"$f":"SUM(N74:T74)","v":1},"A",null,{"$f":"IF($G74=\"M\",$K74*$F74,0)","v":0},{"$f":"IF($G74=\"A\",$K74*$F74,0)","v":17.47},17.47,null,{"$f":"IF(F74=0,IF(F74=\"\",0,1),0)","v":0},0,0,0,1,0,0,0,null,null,null,null,null,null,null,null,null,null,null,null,null,null,null,null,null,null,null,null,null,null,null,null,{"$f":"U74+V74+W74+AD74+AH74+AI74+AM74+AN74+AO74+AP74+AQ74","v":0},{"$f":"X74+Y74","v":0},{"$f":"Z74+AA74","v":0},{"$f":"AB74+AC74","v":0},0,0,{"$f":"AF74+AR74","v":0},{"$f":"AJ74","v":0},null,null,1]
[null,null,null,"Toolhead base","toolhead_base.stl",{"$f":"SUM(N75:T75)","v":1},"A",null,{"$f":"IF($G75=\"M\",$K75*$F75,0)","v":0},{"$f":"IF($G75=\"A\",$K75*$F75,0)","v":11.39},11.39,null,{"$f":"IF(F75=0,IF(F75=\"\",0,1),0)","v":0},0,0,0,1,0,0,0,null,null,null,null,null,null,null,null,null,null,null,null,null,null,null,null,null,null,null,null,null,null,null,null,{"$f":"U75+V75+W75+AD75+AH75+AI75+AM75+AN75+AO75+AP75+AQ75","v":0},{"$f":"X75+Y75","v":0},{"$f":"Z75+AA75","v":0},{"$f":"AB75+AC75","v":0},0,0,{"$f":"AF75+AR75","v":0},{"$f":"AJ75","v":0},null,null,null,1]
[null,null,null,"Toolhead belt lock","toolhead_base_belt_lock.stl",{"$f":"SUM(N76:T76)","v":4},"M",null,{"$f":"IF($G76=\"M\",$K76*$F76,0)","v":1.04},{"$f":"IF($G76=\"A\",$K76*$F76,0)","v":0},0.26,null,{"$f":"IF(F76=0,IF(F76=\"\",0,1),0)","v":0},0,0,0,4,{"$f":"CI$4*CI76+CJ$4*CJ76+CK$4*CK76+CL$4*CL76+CM$4*CM76+CN$4*CN76+CO$4*CO76+CP$4*CP76+CQ$4*CQ76+CR$4*CR76+CS$4*CS76+CT$4*CT76+CU$4*CU76+CV$4*CV76+CW$4*CW76+CX$4*CX76+CY$4*CY76+CZ$4*CZ76+DA$4*DA76+DB$4*DB76+DC$4*DC76+DD$4*DD76+DE$4*DE76+DF$4*DF76+DG$4*DG76+DH$4*DH76+DI$4*DI76+DJ$4*DJ76+DK$4*DK76+DL$4*DL76+DM$4*DM76+DN$4*DN76+DO$4*DO76+DP$4*DP76+DQ$4*DQ76+DR$4*DR76+DS$4*DS76+DT$4*DT76+DU$4*DU76+DV$4*DV76+DW$4*DW76+DX$4*DX76+DY$4*DY76+DZ$4*DZ76+EA$4*EA76+EB$4*EB76+EC$4*EC76+ED$4*ED76+EE$4*EE76+EF$4*EF76+EG$4*EG76+EH$4*EH76+EI$4*EI76+EJ$4*EJ76+EK$4*EK76+EL$4*EL76+EM$4*EM76+EN$4*EN76+EO$4*EO76+EP$4*EP76+EQ$4*EQ76+ER$4*ER76","v":0},0,0,null,null,null,null,null,null,null,null,null,null,null,null,null,null,null,null,null,null,null,null,null,null,null,null,{"$f":"U76+V76+W76+AD76+AH76+AI76+AM76+AN76+AO76+AP76+AQ76","v":0},{"$f":"X76+Y76","v":0},{"$f":"Z76+AA76","v":0},{"$f":"AB76+AC76","v":0},0,0,{"$f":"AF76+AR76","v":0},{"$f":"AJ76","v":0},null,null,null,4]
[null,null,"TOOLHEAD",null,null,null,null,null,{"$f":"SUM(I78:I156)","v":3.22},{"$f":"SUM(J78:J156)","v":42.43},null,null,{"$f":"M78*M97*M123*M137*M153","v":0},0,0,0,0,0,0,0,null,null,null,null,null,null,null,null,null,null,null,null,null,null,null,null,null,null,null,null,null,null,null,null,{"$f":"U77+V77+W77+AD77+AH77+AI77+AM77+AN77+AO77+AP77+AQ77","v":0},{"$f":"X77+Y77","v":0},{"$f":"Z77+AA77","v":0},{"$f":"AB77+AC77","v":0},0,0,{"$f":"AF77+AR77","v":0},{"$f":"AJ77","v":0},null,null,null,null,null,null,null,null,null,null,null,null,null,null,null,null,null,null,null,null,null,null,null,null,null,null,null,null,null,null,null,null,null,null,null,null,null,null,null,null,null,null,null,null,null,null,null,null,null,null,null,null,null,null,null,null,null,null,null,null,null,null,null,null,null,null,null,null,null,null,null,null,null,null,null,null,null,null,null,null,null,null,null,null,null,null,null,null,null,null,null,null,null,null,null,null,null,null,null,null,null,null,null,null,null,null,null,null,null,{"$f":"C77","v":"TOOLHEAD"}]
[null,null,"HOTEND",null,null,null,null,null,{"$f":"IF($G78=\"M\",$K78*$F78,0)","v":0},{"$f":"IF($G78=\"A\",$K78*$F78,0)","v":0},null,null,{"$f":"M79*M80*M81*M82*M83*M84*M85*M86*M87*M88*M89*M90*M91*M92*M94*M95*M96","v":0},0,0,0,0,0,0,0,null,null,null,null,null,null,null,null,null,null,null,null,null,null,null,null,null,null,null,null,null,null,null,null,0,0,0,0,0,0,0,0,null,null,null,null,null,null,null,null,null,null,null,null,null,null,null,null,null,null,null,null,null,null,null,null,null,null,null,null,null,null,null,null,null,null,null,null,null,null,null,null,null,null,null,null,null,null,null,null,null,null,null,null,null,null,null,null,null,null,null,null,null,null,null,null,null,null,null,null,null,null,null,null,null,null,null,null,null,null,null,null,null,null,null,null,null,null,null,null,null,null,null,null,null,null,null,null,null,null,null,null,null,null,null,null,null,null,null,null,null,{"$f":"C78","v":"HOTEND"}]
[null,null,null,"Bambu Lab","toolhead_hotend_bambulab.stl",{"$f":"SUM(N79:T79)","v":0},"A",null,0,0,8.32,null,{"$f":"IF(F79=0,IF(F79=\"\",0,1),0)","v":1},0,0,0,0,0,0,0,null,null,null,null,null,null,null,null,null,null,null,null,null,null,null,null,null,null,null,null,null,null,null,null,{"$f":"U79+V79+W79+AD79+AH79+AI79+AM79+AN79+AO79+AP79+AQ79","v":0},{"$f":"X79+Y79","v":0},{"$f":"Z79+AA79","v":0},{"$f":"AB79+AC79","v":0},{"$f":"AK79","v":0},{"$f":"AL79","v":0},{"$f":"AF79+AR79","v":0},{"$f":"AJ79","v":0},null,null,null,null,null,null,null,null,null,null,null,null,null,null,null,null,null,null,null,null,null,null,null,null,null,null,null,null,null,null,null,null,null,null,1]
[null,null,null,"Phaetus Dragonfly BMS","toolhead_hotend_dragonfly.stl",0,"A",null,0,0,8.1199999999999992,null,1,0,0,0,0,0,0,0,null,null,null,null,null,null,null,null,null,null,null,null,null,null,null,null,null,null,null,null,null,null,null,null,0,0,0,0,0,0,0,0,null,null,null,null,null,null,null,null,null,null,null,null,null,null,null,null,null,null,null,null,null,null,null,null,null,null,null,null,null,null,null,null,null,null,null,null,null,null,null,null,null,null,null,null,null,null,1]
[null,null,null,"Creality MK8 / CR10","toolhead_hotend_MK8.stl",0,"A",null,0,0,9.3000000000000007,null,1,0,0,0,0,0,0,0,null,null,null,null,null,null,null,null,null,null,null,null,null,null,null,null,null,null,null,null,null,null,null,null,0,0,0,0,0,0,0,0,null,null,null,null,null,null,null,null,null,null,null,null,null,null,null,null,null,null,null,null,null,null,null,null,null,null,null,null,null,null,null,null,null,null,null,1]
[null,null,null,"Phaetus Dragon 1","toolhead_hotend_dragon_1.stl",0,"A",null,0,0,9.49,null,1,0,0,0,0,0,0,0,null,null,null,null,null,null,null,null,null,null,null,null,null,null,null,null,null,null,null,null,null,null,null,null,0,0,0,0,0,0,0,0,null,null,null,null,null,null,null,null,null,null,null,null,null,null,null,null,null,null,null,null,null,null,null,null,null,null,null,null,null,null,null,null,null,null,null,null,null,null,1,null,null,null,null,null,null,null,null,1]
[null,null,null,"Creality Spider V3","toolhead_hotend_spiderV3.stl",0,"A",null,0,0,7.21,null,1,0,0,0,0,0,0,0,null,null,null,null,null,null,null,null,null,null,null,null,null,null,null,null,null,null,null,null,null,null,null,null,0,0,0,0,0,0,0,0,null,null,null,null,null,null,null,null,null,null,null,null,null,null,null,null,null,null,null,null,null,null,null,null,null,null,null,null,null,null,null,null,null,null,null,null,1]
[null,null,null,"E3D V6","toolhead_hotend_E3D_V6_a.stl",0,"A",null,0,0,7.65,null,1,0,0,0,0,0,0,0,null,null,null,null,null,null,null,null,null,null,null,null,null,null,null,null,null,null,null,null,null,null,null,null,0,0,0,0,0,0,0,0,null,null,null,null,null,null,null,null,null,null,null,null,null,null,null,null,null,null,null,null,null,null,null,null,null,null,null,null,null,null,null,null,null,null,null,null,null,null,null,null,1,null,1]
[null,null,null,null,"toolhead_hotend_E3D_V6_b.stl",0,"A",null,0,0,0.75,null,1,0,0,0,0,0,0,0,null,null,null,null,null,null,null,null,null,null,null,null,null,null,null,null,null,null,null,null,null,null,null,null,0,0,0,0,0,0,0,0,null,null,null,null,null,null,null,null,null,null,null,null,null,null,null,null,null,null,null,null,null,null,null,null,null,null,null,null,null,null,null,null,null,null,null,null,null,null,null,null,1,null,1]
[null,null,null,"Creality Spider V3 + Volcano","toolhead_hotend_spiderV3.stl",0,"A",null,0,0,8.18,null,1,0,0,0,0,0,0,0,null,null,null,null,null,null,null,null,null,null,null,null,null,null,null,null,null,null,null,null,null,null,null,null,0,0,0,0,0,0,0,0,null,null,null,null,null,null,null,null,null,null,null,null,null,null,null,null,null,null,null,null,null,null,null,null,null,null,null,null,null,null,null,null,null,null,null,null,null,1]
[null,null,null,"Trianglelabs Dragon ACE","toolhead_hotend_dragon_ace_HF.stl",0,"A",null,0,0,10.050000000000001,null,1,0,0,0,0,0,0,0,null,null,null,null,null,null,null,null,null,null,null,null,null,null,null,null,null,null,null,null,null,null,null,null,0,0,0,0,0,0,0,0,null,null,null,null,null,null,null,null,null,null,null,null,null,null,null,null,null,null,null,null,null,null,null,null,null,null,null,null,null,null,null,null,null,null,null,null,null,null,null,null,null,null,null,null,null,null,null,null,null,null,null,null,null,1]
[null,null,null,"Phaetus Dragon HF","toolhead_hotend_dragon_2_HF.stl",0,"A",null,0,0,9.39,null,1,0,0,0,0,0,0,0,null,null,null,null,null,null,null,null,null,null,null,null,null,null,null,null,null,null,null,null,null,null,null,null,0,0,0,0,0,0,0,0,null,null,null,null,null,null,null,null,null,null,null,null,null,null,null,null,null,null,null,null,null,null,null,null,null,null,null,null,null,null,null,null,null,null,null,null,null,null,null,1,null,null,null,null,null,null,null,null,1]
[null,null,null,"Phaetus Rapido HF","toolhead_hotend_rapido_HF.stl",0,"A",null,0,0,9.11,null,1,0,0,0,0,0,0,0,null,null,null,null,null,null,null,null,null,null,null,null,null,null,null,null,null,null,null,null,null,null,null,null,0,0,0,0,0,0,0,0,null,null,null,null,null,null,null,null,null,null,null,null,null,null,null,null,null,null,null,null,null,null,null,null,null,null,null,null,null,null,null,null,null,null,null,null,null,null,null,null,null,null,null,null,null,null,null,null,null,null,1]
[null,null,null,"E3D V6 Volcano","toolhead_hotend_E3D_V6_a.stl",0,"A",null,0,0,7.91,null,1,0,0,0,0,0,0,0,null,null,null,null,null,null,null,null,null,null,null,null,null,null,null,null,null,null,null,null,null,null,null,null,0,0,0,0,0,0,0,0,null,null,null,null,null,null,null,null,null,null,null,null,null,null,null,null,null,null,null,null,null,null,null,null,null,null,null,null,null,null,null,null,null,null,null,null,null,null,null,null,null,1,null,1]
[null,null,null,null,"toolhead_hotend_E3D_V6_b.stl",0,"A",null,0,0,0.77,null,1,0,0,0,0,0,0,0,null,null,null,null,null,null,null,null,null,null,null,null,null,null,null,null,null,null,null,null,null,null,null,null,0,0,0,0,0,0,0,0,null,null,null,null,null,null,null,null,null,null,null,null,null,null,null,null,null,null,null,null,null,null,null,null,null,null,null,null,null,null,null,null,null,null,null,null,null,null,null,null,null,1,null,1]
[null,null,null,"Trianglelabs Dragon ACE+","toolhead_hotend_dragon_ace_UHF.stl",0,"A",null,0,0,9.7100000000000009,null,1,0,0,0,0,0,0,0,null,null,null,null,null,null,null,null,null,null,null,null,null,null,null,null,null,null,null,null,null,null,null,null,0,0,0,0,0,0,0,0,null,null,null,null,null,null,null,null,null,null,null,null,null,null,null,null,null,null,null,null,null,null,null,null,null,null,null,null,null,null,null,null,null,null,null,null,null,null,null,null,null,null,null,null,null,null,null,null,null,null,null,null,null,null,1]
[null,null,null,"E3D Revo Voron","toolhead_hotend_revo_voron.stl",0,"A",null,0,0,9.35,null,1,0,0,0,{"$f":"BB$4*BB93+BC$4*BC93+BD$4*BD93","v":0},{"$f":"CI$4*CI93+CJ$4*CJ93+CK$4*CK93+CL$4*CL93+CM$4*CM93+CN$4*CN93+CO$4*CO93+CP$4*CP93+CQ$4*CQ93+CR$4*CR93+CS$4*CS93+CT$4*CT93+CU$4*CU93+CV$4*CV93+CW$4*CW93+CX$4*CX93+CY$4*CY93+CZ$4*CZ93+DA$4*DA93+DB$4*DB93+DC$4*DC93+DD$4*DD93+DE$4*DE93+DF$4*DF93+DG$4*DG93+DH$4*DH93+DI$4*DI93+DJ$4*DJ93+DK$4*DK93+DL$4*DL93+DM$4*DM93+DN$4*DN93+DO$4*DO93+DP$4*DP93+DQ$4*DQ93+DR$4*DR93+DS$4*DS93+DT$4*DT93+DU$4*DU93+DV$4*DV93+DW$4*DW93+DX$4*DX93+DY$4*DY93+DZ$4*DZ93+EA$4*EA93+EB$4*EB93+EC$4*EC93+ED$4*ED93+EE$4*EE93+EF$4*EF93+EG$4*EG93+EH$4*EH93+EI$4*EI93+EJ$4*EJ93+EK$4*EK93+EL$4*EL93+EM$4*EM93+EN$4*EN93+EO$4*EO93+EP$4*EP93+EQ$4*EQ93+ER$4*ER93","v":0},{"$f":"ES$4*ES93+ET$4*ET93+EU$4*EU93+EV$4*EV93+EW$4*EW93+EX$4*EX93+EY$4*EY93+EZ$4*EZ93+FA$4*FA93+FB$4*FB93+FC$4*FC93","v":0},{"$f":"BF$4*BF93","v":0},null,null,null,null,null,null,null,null,null,null,null,null,null,null,null,null,null,null,null,null,null,null,null,null,0,0,0,0,0,0,0,0,null,null,null,null,null,null,null,null,null,null,null,null,null,null,null,null,null,null,null,null,null,null,null,null,null,null,null,null,null,null,null,null,null,null,null,null,null,null,null,null,null,null,null,null,null,1]
[null,null,null,"Phaetus Dragon UHF","toolhead_hotend_dragon_2_UHF.stl",0,"A",null,0,0,8.75,null,1,0,0,0,0,0,0,0,null,null,null,null,null,null,null,null,null,null,null,null,null,null,null,null,null,null,null,null,null,null,null,null,0,0,0,0,0,0,0,0,null,null,null,null,null,null,null,null,null,null,null,null,null,null,null,null,null,null,null,null,null,null,null,null,null,null,null,null,null,null,null,null,null,null,null,null,null,null,null,null,null,null,null,null,null,null,null,null,null,1]
[null,null,null,"Phaetus Rapido UHF","toolhead_hotend_rapido_UHF.stl",1,"A",null,0,8.5399999999999991,8.5399999999999991,null,0,0,0,0,0,1,0,0,null,null,null,null,null,null,null,null,null,null,null,null,null,null,null,null,null,null,null,null,null,null,null,null,0,0,0,0,0,0,0,0,null,null,null,null,null,null,null,null,null,null,null,null,null,null,null,null,null,null,null,null,null,null,null,null,null,null,null,null,null,null,null,null,null,null,null,null,null,null,null,null,null,null,null,null,null,null,null,null,null,null,null,1]
[null,null,null,"Goliath","toolhead_hotend_goliath.stl",0,"A",null,0,0,7.52,null,1,0,0,0,0,0,0,0,null,null,null,null,null,null,null,null,null,null,null,null,null,null,null,null,null,null,null,null,null,null,null,null,0,0,0,0,0,0,0,0,null,null,null,null,null,null,null,null,null,null,null,null,null,null,null,null,null,null,null,null,null,null,null,null,null,null,null,null,null,null,null,null,null,null,null,null,null,null,null,null,null,null,null,null,1]
[null,null,"EXTRUDER",null,null,null,null,null,0,0,null,null,{"$f":"M98*M99*M100*M101*M102*M103*M104*M105*M106*M107*M108*M109*M110*M111*M112*M113*M114*M115*M116*M117*M118*M119*M120*M121*M122","v":0},0,0,0,0,0,0,0,null,null,null,null,null,null,null,null,null,null,null,null,null,null,null,null,null,null,null,null,null,null,null,null,0,0,0,0,0,0,0,0,null,null,null,null,null,null,null,null,null,null,null,null,null,null,null,null,null,null,null,null,null,null,null,null,null,null,null,null,null,null,null,null,null,null,null,null,null,null,null,null,null,null,null,null,null,null,null,null,null,null,null,null,null,null,null,null,null,null,null,null,null,null,null,null,null,null,null,null,null,null,null,null,null,null,null,null,null,null,null,null,null,null,null,null,null,null,null,null,null,null,null,null,null,null,null,null,null,null,null,null,null,null,null,null,null,null,null,null,null,{"$f":"C97","v":"EXTRUDER"}]
[null,null,null,"Sherpa micro","toolhead_extruder_sherpa_micro.stl",{"$f":"SUM(N98:T98)","v":0},"A",null,0,0,4.57,null,{"$f":"IF(F98=0,IF(F98=\"\",0,1),0)","v":1},0,0,0,0,0,0,0,null,null,null,null,null,null,null,null,null,null,null,null,null,null,null,null,null,null,null,null,null,null,null,null,{"$f":"U98+V98+W98+AD98+AH98+AI98+AM98+AN98+AO98+AP98+AQ98","v":0},{"$f":"X98+Y98","v":0},{"$f":"Z98+AA98","v":0},{"$f":"AB98+AC98","v":0},{"$f":"AK98","v":0},{"$f":"AL98","v":0},{"$f":"AF98+AR98","v":0},{"$f":"AJ98","v":0},null,null,null,null,null,null,null,null,null,null,null,null,null,null,null,null,null,null,null,null,null,null,null,null,null,null,null,null,null,null,null,null,null,null,null,null,null,null,null,null,null,null,null,null,null,null,null,null,null,null,null,null,null,null,null,null,null,1]
[null,null,null,"Sherpa mini","toolhead_extruder_sherpa_mini.stl",0,"A",null,0,0,4.51,null,1,0,0,0,0,0,0,0,null,null,null,null,null,null,null,null,null,null,null,null,null,null,null,null,null,null,null,null,null,null,null,null,0,0,0,0,0,0,0,0,null,null,null,null,null,null,null,null,null,null,null,null,null,null,null,null,null,null,null,null,null,null,null,null,null,null,null,null,null,null,null,null,null,null,null,null,null,null,null,null,null,null,null,null,null,null,null,null,null,null,null,null,null,null,null,1,null,null,null,null,null,null,null,null,null,null,null,1,null,1]
[null,null,null,"Orbiter 2.0","toolhead_extruder_orbiter_2.stl",0,"A",null,0,0,4.5599999999999996,null,1,0,0,0,0,0,0,0,null,null,null,null,null,null,null,null,null,null,null,null,null,null,null,null,null,null,null,null,null,null,null,null,0,0,0,0,0,0,0,0,null,null,null,null,null,null,null,null,null,null,null,null,null,null,null,null,null,null,null,null,null,null,null,null,null,null,null,null,null,null,null,null,null,null,null,null,null,null,null,null,null,null,null,null,null,null,null,null,null,null,null,null,null,null,null,null,null,null,null,null,null,null,null,1]
[null,null,null,"LGX","toolhead_extruder_LGX.stl",0,"A",null,0,0,4.46,null,1,0,0,0,0,0,0,0,null,null,null,null,null,null,null,null,null,null,null,null,null,null,null,null,null,null,null,null,null,null,null,null,0,0,0,0,0,0,0,0,null,null,null,null,null,null,null,null,null,null,null,null,null,null,null,null,null,null,null,null,null,null,null,null,null,null,null,null,null,null,null,null,null,null,null,null,null,null,null,null,null,null,null,null,null,null,null,null,null,null,null,null,null,null,null,null,null,null,null,1,1,null,null,null,1,null,null,null,null,null,null,1]
[null,null,null,"ProtoXtruder 1 integrated","toolhead_extruder_integr_ProtoXtruder_1_a.stl",0,"A",null,0,0,8.42,null,1,0,0,0,0,0,0,0,null,null,null,null,null,null,null,null,null,null,null,null,null,null,null,null,null,null,null,null,null,null,null,null,0,0,0,0,0,0,0,0,null,null,null,null,null,null,null,null,null,null,null,null,null,null,null,null,null,null,null,null,null,null,null,null,null,null,null,null,null,null,null,null,null,null,null,null,null,null,null,null,null,null,null,null,null,null,null,null,null,null,null,null,null,null,null,null,null,null,null,null,null,null,null,null,null,null,null,null,1]
[null,null,null,null,"toolhead_extruder_integr_ProtoXtruder_1_b.stl",0,"A",null,0,0,1.5,null,1,0,0,0,0,0,0,0,null,null,null,null,null,null,null,null,null,null,null,null,null,null,null,null,null,null,null,null,null,null,null,null,0,0,0,0,0,0,0,0,null,null,null,null,null,null,null,null,null,null,null,null,null,null,null,null,null,null,null,null,null,null,null,null,null,null,null,null,null,null,null,null,null,null,null,null,null,null,null,null,null,null,null,null,null,null,null,null,null,null,null,null,null,null,null,null,null,null,null,null,null,null,null,null,null,null,null,null,1]
[null,null,null,"ProtoXtruder 2 integrated","toolhead_extruder_integr_ProtoXtruder_2_a.stl",0,"A",null,0,0,8.6999999999999993,null,1,0,0,0,0,0,0,0,null,null,null,null,null,null,null,null,null,null,null,null,null,null,null,null,null,null,null,null,null,null,null,null,0,0,0,0,0,0,0,0,null,null,null,null,null,null,null,null,null,null,null,null,null,null,null,null,null,null,null,null,null,null,null,null,null,null,null,null,null,null,null,null,null,null,null,null,null,null,null,null,null,null,null,null,null,null,null,null,null,null,null,null,null,null,null,null,null,null,null,null,null,null,null,null,null,null,null,null,null,null,1]
[null,null,null,null,"toolhead_extruder_integr_ProtoXtruder_2_b.stl",0,"A",null,0,0,1.18,null,1,0,0,0,0,0,0,0,null,null,null,null,null,null,null,null,null,null,null,null,null,null,null,null,null,null,null,null,null,null,null,null,0,0,0,0,0,0,0,0,null,null,null,null,null,null,null,null,null,null,null,null,null,null,null,null,null,null,null,null,null,null,null,null,null,null,null,null,null,null,null,null,null,null,null,null,null,null,null,null,null,null,null,null,null,null,null,null,null,null,null,null,null,null,null,null,null,null,null,null,null,null,null,null,null,null,null,null,null,null,1]
[null,null,null,"Hummingbird integrated","toolhead_extruder_integr_Hummingbird_a.stl",0,"A",null,0,0,10.48,null,1,0,0,0,0,0,0,0,null,null,null,null,null,null,null,null,null,null,null,null,null,null,null,null,null,null,null,null,null,null,null,null,0,0,0,0,0,0,0,0,null,null,null,null,null,null,null,null,null,null,null,null,null,null,null,null,null,null,null,null,null,null,null,null,null,null,null,null,null,null,null,null,null,null,null,null,null,null,null,null,null,null,null,null,null,null,null,null,null,null,null,null,null,null,null,null,null,null,null,null,null,null,null,null,null,null,null,null,null,null,null,null,1]
[null,null,null,null,"toolhead_extruder_integr_Hummingbird_b.stl",0,"A",null,0,0,1.5,null,1,0,0,0,0,0,0,0,null,null,null,null,null,null,null,null,null,null,null,null,null,null,null,null,null,null,null,null,null,null,null,null,0,0,0,0,0,0,0,0,null,null,null,null,null,null,null,null,null,null,null,null,null,null,null,null,null,null,null,null,null,null,null,null,null,null,null,null,null,null,null,null,null,null,null,null,null,null,null,null,null,null,null,null,null,null,null,null,null,null,null,null,null,null,null,null,null,null,null,null,null,null,null,null,null,null,null,null,null,null,null,null,1]
[null,null,null,"Sherpa micro integrated","toolhead_extruder_integr_sherpa_micro_a.stl",1,"A",null,0,8.44,8.44,null,0,0,0,0,0,1,0,0,null,null,null,null,null,null,null,null,null,null,null,null,null,null,null,null,null,null,null,null,null,null,null,null,0,0,0,0,0,0,0,0,null,null,null,null,null,null,null,null,null,null,null,null,null,null,null,null,null,null,null,null,null,null,null,null,null,null,null,null,null,null,null,null,null,null,null,null,null,null,null,null,null,null,null,null,null,null,null,null,null,null,null,null,null,null,null,null,null,null,1]
[null,null,null,null,"toolhead_extruder_integr_sherpa_micro_b.stl",1,"A",null,0,1.05,1.05,null,0,0,0,0,0,1,0,0,null,null,null,null,null,null,null,null,null,null,null,null,null,null,null,null,null,null,null,null,null,null,null,null,0,0,0,0,0,0,0,0,null,null,null,null,null,null,null,null,null,null,null,null,null,null,null,null,null,null,null,null,null,null,null,null,null,null,null,null,null,null,null,null,null,null,null,null,null,null,null,null,null,null,null,null,null,null,null,null,null,null,null,null,null,null,null,null,null,null,1]
[null,null,null,"Sherpa mini integrated","toolhead_extruder_integr_sherpa_mini_a.stl",0,"A",null,0,0,9.24,null,1,0,0,0,0,0,0,0,null,null,null,null,null,null,null,null,null,null,null,null,null,null,null,null,null,null,null,null,null,null,null,null,0,0,0,0,0,0,0,0,null,null,null,null,null,null,null,null,null,null,null,null,null,null,null,null,null,null,null,null,null,null,null,null,null,null,null,null,null,null,null,null,null,null,null,null,null,null,null,null,null,null,null,null,null,null,null,null,null,null,null,null,null,null,null,null,1]
[null,null,null,null,"toolhead_extruder_integr_sherpa_mini_b.stl",0,"A",null,{"$f":"IF($G111=\"M\",$K111*$F111,0)","v":0},{"$f":"IF($G111=\"A\",$K111*$F111,0)","v":0},1.05,null,1,0,0,0,0,0,0,0,null,null,null,null,null,null,null,null,null,null,null,null,null,null,null,null,null,null,null,null,null,null,null,null,0,0,0,0,0,0,0,0,null,null,null,null,null,null,null,null,null,null,null,null,null,null,null,null,null,null,null,null,null,null,null,null,null,null,null,null,null,null,null,null,null,null,null,null,null,null,null,null,null,null,null,null,null,null,null,null,null,null,null,null,null,null,null,null,1]
[null,null,null,"VzHextrudort low integrated","toolhead_extruder_integr_vzhextrudort_low_a.stl",0,"A",null,0,0,10.02,null,1,0,0,0,0,0,0,0,null,null,null,null,null,null,null,null,null,null,null,null,null,null,null,null,null,null,null,null,null,null,null,null,0,0,0,0,0,0,0,0,null,null,null,null,null,null,null,null,null,null,null,null,null,null,null,null,null,null,null,null,null,null,null,null,null,null,null,null,null,null,null,null,null,null,null,null,null,null,null,null,null,null,null,null,null,null,null,null,null,null,null,null,null,null,null,null,null,null,null,null,null,null,null,null,null,1]
[null,null,null,null,"toolhead_extruder_integr_vzhextrudort_low_b.stl",0,"A",null,0,0,0.91,null,1,0,0,0,0,0,0,0,null,null,null,null,null,null,null,null,null,null,null,null,null,null,null,null,null,null,null,null,null,null,null,null,0,0,0,0,0,0,0,0,null,null,null,null,null,null,null,null,null,null,null,null,null,null,null,null,null,null,null,null,null,null,null,null,null,null,null,null,null,null,null,null,null,null,null,null,null,null,null,null,null,null,null,null,null,null,null,null,null,null,null,null,null,null,null,null,null,null,null,null,null,null,null,null,null,1]
[null,null,null,"VzHextrudort helical integrated","toolhead_extruder_integr_vzhextrudort_helical_a.stl",0,"A",null,0,0,9.1199999999999992,null,1,0,0,0,0,0,0,0,null,null,null,null,null,null,null,null,null,null,null,null,null,null,null,null,null,null,null,null,null,null,null,null,0,0,0,0,0,0,0,0,null,null,null,null,null,null,null,null,null,null,null,null,null,null,null,null,null,null,null,null,null,null,null,null,null,null,null,null,null,null,null,null,null,null,null,null,null,null,null,null,null,null,null,null,null,null,null,null,null,null,null,null,null,null,null,null,null,null,null,null,null,null,null,null,null,null,1]
[null,null,null,null,"toolhead_extruder_integr_vzhextrudort_helical_b.stl",0,"A",null,0,0,2.12,null,1,0,0,0,0,0,0,0,null,null,null,null,null,null,null,null,null,null,null,null,null,null,null,null,null,null,null,null,null,null,null,null,0,0,0,0,0,0,0,0,null,null,null,null,null,null,null,null,null,null,null,null,null,null,null,null,null,null,null,null,null,null,null,null,null,null,null,null,null,null,null,null,null,null,null,null,null,null,null,null,null,null,null,null,null,null,null,null,null,null,null,null,null,null,null,null,null,null,null,null,null,null,null,null,null,null,1]
[null,null,null,"Bowden setup – blank","toolhead_extruder_bowden_blank.stl",0,"A",null,0,0,4.46,null,1,0,0,0,0,0,0,0,null,null,null,null,null,null,null,null,null,null,null,null,null,null,null,null,null,null,null,null,null,null,null,null,0,0,0,0,0,0,0,0,null,null,null,null,null,null,null,null,null,null,null,null,null,null,null,null,null,null,null,null,null,null,null,null,null,null,null,null,null,null,null,null,null,null,null,null,null,null,null,null,null,null,null,null,null,null,null,null,null,null,null,null,null,null,null,null,null,null,null,null,null,null,null,null,null,null,null,null,null,null,null,null,null,null,1]
[null,null,null,"Bowden extruder – 1/8‘ thread","toolhead_extruder_bowden_1_8.stl",0,"A",null,0,0,5.22,null,1,0,0,0,0,0,0,0,null,null,null,null,null,null,null,null,null,null,null,null,null,null,null,null,null,null,null,null,null,null,null,null,0,0,0,0,0,0,0,0,null,null,null,null,null,null,null,null,null,null,null,null,null,null,null,null,null,null,null,null,null,null,null,null,null,null,null,null,null,null,null,null,null,null,null,null,null,null,null,null,null,null,null,null,null,null,null,null,null,null,null,null,null,null,null,null,null,null,null,null,null,null,null,null,null,null,null,null,null,null,null,null,null,null,1]
[null,null,null,"Bowden extruder – M6 thread","toolhead_extruder_bowden_M6.stl",0,"A",null,0,0,5.12,null,1,0,0,0,0,0,0,0,null,null,null,null,null,null,null,null,null,null,null,null,null,null,null,null,null,null,null,null,null,null,null,null,0,0,0,0,0,0,0,0,null,null,null,null,null,null,null,null,null,null,null,null,null,null,null,null,null,null,null,null,null,null,null,null,null,null,null,null,null,null,null,null,null,null,null,null,null,null,null,null,null,null,null,null,null,null,null,null,null,null,null,null,null,null,null,null,null,null,null,null,null,null,null,null,null,null,null,null,null,null,null,null,null,null,1]
[null,null,null,"Bowden extruder – spider V3","toolhead_extruder_bowden_spiderV3.stl",0,"A",null,0,0,5.74,null,1,0,0,0,0,0,0,0,null,null,null,null,null,null,null,null,null,null,null,null,null,null,null,null,null,null,null,null,null,null,null,null,0,0,0,0,0,0,0,0,null,null,null,null,null,null,null,null,null,null,null,null,null,null,null,null,null,null,null,null,null,null,null,null,null,null,null,null,null,null,null,null,null,null,null,null,null,null,null,null,null,null,null,null,null,null,null,null,null,null,null,null,null,null,null,null,null,null,null,null,null,null,null,null,null,null,null,null,null,null,null,null,null,null,1]
[null,null,null,"Bowden extruder – phaetus","toolhead_extruder_bowden_phaetus.stl",0,"A",null,0,0,5.59,null,1,0,0,0,0,0,0,0,null,null,null,null,null,null,null,null,null,null,null,null,null,null,null,null,null,null,null,null,null,null,null,null,0,0,0,0,0,0,0,0,null,null,null,null,null,null,null,null,null,null,null,null,null,null,null,null,null,null,null,null,null,null,null,null,null,null,null,null,null,null,null,null,null,null,null,null,null,null,null,null,null,null,null,null,null,null,null,null,null,null,null,null,null,null,null,null,null,null,null,null,null,null,null,null,null,null,null,null,null,null,null,null,null,null,1]
[null,null,null,"Bowden extruder – ECAS04","toolhead_extruder_bowden_ECAS04.stl",0,"A",null,0,0,5.6,null,1,0,0,0,0,0,0,0,null,null,null,null,null,null,null,null,null,null,null,null,null,null,null,null,null,null,null,null,null,null,null,null,0,0,0,0,0,0,0,0,null,null,null,null,null,null,null,null,null,null,null,null,null,null,null,null,null,null,null,null,null,null,null,null,null,null,null,null,null,null,null,null,null,null,null,null,null,null,null,null,null,null,null,null,null,null,null,null,null,null,null,null,null,null,null,null,null,null,null,null,null,null,null,null,null,null,null,null,null,null,null,null,null,null,1]
[null,null,null,"Bowden extruder – clip","toolhead_extruder_bowden_clip.stl",0,"A",null,0,0,5.33,null,1,0,0,0,0,0,0,0,null,null,null,null,null,null,null,null,null,null,null,null,null,null,null,null,null,null,null,null,null,null,null,null,0,0,0,0,0,0,0,0,null,null,null,null,null,null,null,null,null,null,null,null,null,null,null,null,null,null,null,null,null,null,null,null,null,null,null,null,null,null,null,null,null,null,null,null,null,null,null,null,null,null,null,null,null,null,null,null,null,null,null,null,null,null,null,null,null,null,null,null,null,null,null,null,null,null,null,null,null,null,null,null,null,null,1]
[null,null,"COOLING",null,null,null,null,null,0,0,null,null,{"$f":"M124*M125*M126*M127*M128*M129*M130*M131*M132*M133*M134*M135*M136","v":0},0,0,0,0,0,0,0,null,null,null,null,null,null,null,null,null,null,null,null,null,null,null,null,null,null,null,null,null,null,null,null,0,0,0,0,0,0,0,0,null,null,null,null,null,null,null,null,null,null,null,null,null,null,null,null,null,null,null,null,null,null,null,null,null,null,null,null,null,null,null,null,null,null,null,null,null,null,null,null,null,null,null,null,null,null,null,null,null,null,null,null,null,null,null,null,null,null,null,null,null,null,null,null,null,null,null,null,null,null,null,null,null,null,null,null,null,null,null,null,null,null,null,null,null,null,null,null,null,null,null,null,null,null,null,null,null,null,null,null,null,null,null,null,null,null,null,null,null,{"$f":"C123","v":"COOLING"}]
[null,null,null,"2x 4010 S","toolhead_fanduct_4010_S.stl",{"$f":"SUM(N124:T124)","v":0},"A",null,0,0,14.64,null,{"$f":"IF(F124=0,IF(F124=\"\",0,1),0)","v":1},0,0,0,0,0,0,0,null,null,null,null,null,null,null,null,null,null,null,null,null,null,null,null,null,null,null,null,null,null,null,null,{"$f":"U124+V124+W124+AD124+AH124+AI124+AM124+AN124+AO124+AP124+AQ124","v":0},{"$f":"X124+Y124","v":0},{"$f":"Z124+AA124","v":0},{"$f":"AB124+AC124","v":0},{"$f":"AK124","v":0},{"$f":"AL124","v":0},{"$f":"AF124+AR124","v":0},{"$f":"AJ124","v":0},null,null,null,null,null,null,null,null,null,null,null,null,null,null,null,null,null,null,null,null,null,null,null,null,null,null,null,null,null,null,null,null,null,null,null,null,null,null,null,null,null,null,null,null,null,null,null,null,null,null,null,null,null,null,null,null,null,null,null,null,null,null,null,null,null,null,null,null,null,null,null,null,null,null,null,{"$f":"IF($R$5=1,1,0)","v":0}]
[null,null,null,"2x 4010 M","toolhead_fanduct_4010_M.stl",0,"A",null,0,0,17.55,null,1,0,0,0,0,0,0,0,null,null,null,null,null,null,null,null,null,null,null,null,null,null,null,null,null,null,null,null,null,null,null,null,0,0,0,0,0,0,0,0,null,null,null,null,null,null,null,null,null,null,null,null,null,null,null,null,null,null,null,null,null,null,null,null,null,null,null,null,null,null,null,null,null,null,null,null,null,null,null,null,null,null,null,null,null,null,null,null,null,null,null,null,null,null,null,null,null,null,null,null,null,null,null,null,null,null,null,null,null,null,null,null,null,null,null,{"$f":"IF($R$5=2,1,0)","v":0}]
[null,null,null,"2x 4010 L","toolhead_fanduct_4010_L.stl",1,"A",null,0,19.850000000000001,19.850000000000001,null,0,0,0,0,0,1,0,0,null,null,null,null,null,null,null,null,null,null,null,null,null,null,null,null,null,null,null,null,null,null,null,null,0,0,0,0,0,0,0,0,null,null,null,null,null,null,null,null,null,null,null,null,null,null,null,null,null,null,null,null,null,null,null,null,null,null,null,null,null,null,null,null,null,null,null,null,null,null,null,null,null,null,null,null,null,null,null,null,null,null,null,null,null,null,null,null,null,null,null,null,null,null,null,null,null,null,null,null,null,null,null,null,null,null,null,{"$f":"IF($R$5=3,1,0)","v":1}]
[null,null,null,"2x 4020 S","toolhead_fanduct_4020_S.stl",0,"A",null,0,0,16.22,null,1,0,0,0,0,0,0,0,null,null,null,null,null,null,null,null,null,null,null,null,null,null,null,null,null,null,null,null,null,null,null,null,0,0,0,0,0,0,0,0,null,null,null,null,null,null,null,null,null,null,null,null,null,null,null,null,null,null,null,null,null,null,null,null,null,null,null,null,null,null,null,null,null,null,null,null,null,null,null,null,null,null,null,null,null,null,null,null,null,null,null,null,null,null,null,null,null,null,null,null,null,null,null,null,null,null,null,null,null,null,null,null,null,null,null,null,{"$f":"IF($R$5=1,1,0)","v":0}]
[null,null,null,"2x 4020 M","toolhead_fanduct_4020_M.stl",0,"A",null,0,0,20.28,null,1,0,0,0,0,0,0,0,null,null,null,null,null,null,null,null,null,null,null,null,null,null,null,null,null,null,null,null,null,null,null,null,0,0,0,0,0,0,0,0,null,null,null,null,null,null,null,null,null,null,null,null,null,null,null,null,null,null,null,null,null,null,null,null,null,null,null,null,null,null,null,null,null,null,null,null,null,null,null,null,null,null,null,null,null,null,null,null,null,null,null,null,null,null,null,null,null,null,null,null,null,null,null,null,null,null,null,null,null,null,null,null,null,null,null,null,{"$f":"IF($R$5=2,1,0)","v":0}]
[null,null,null,"2x 4020 L","toolhead_fanduct_4020_L.stl",0,"A",null,0,0,22.07,null,1,0,0,0,0,0,0,0,null,null,null,null,null,null,null,null,null,null,null,null,null,null,null,null,null,null,null,null,null,null,null,null,0,0,0,0,0,0,0,0,null,null,null,null,null,null,null,null,null,null,null,null,null,null,null,null,null,null,null,null,null,null,null,null,null,null,null,null,null,null,null,null,null,null,null,null,null,null,null,null,null,null,null,null,null,null,null,null,null,null,null,null,null,null,null,null,null,null,null,null,null,null,null,null,null,null,null,null,null,null,null,null,null,null,null,null,{"$f":"IF($R$5=3,1,0)","v":1}]
[null,null,null,"2x 5015 S","toolhead_fanduct_5015_S.stl",0,"A",null,0,0,29.23,null,1,0,0,0,0,0,0,0,null,null,null,null,null,null,null,null,null,null,null,null,null,null,null,null,null,null,null,null,null,null,null,null,0,0,0,0,0,0,0,0,null,null,null,null,null,null,null,null,null,null,null,null,null,null,null,null,null,null,null,null,null,null,null,null,null,null,null,null,null,null,null,null,null,null,null,null,null,null,null,null,null,null,null,null,null,null,null,null,null,null,null,null,null,null,null,null,null,null,null,null,null,null,null,null,null,null,null,null,null,null,null,null,null,null,null,null,null,{"$f":"IF($R$5=1,1,0)","v":0}]
[null,null,null,"2x 5015 M","toolhead_fanduct_5015_M.stl",0,"A",null,0,0,32.159999999999997,null,1,0,0,0,0,0,0,0,null,null,null,null,null,null,null,null,null,null,null,null,null,null,null,null,null,null,null,null,null,null,null,null,0,0,0,0,0,0,0,0,null,null,null,null,null,null,null,null,null,null,null,null,null,null,null,null,null,null,null,null,null,null,null,null,null,null,null,null,null,null,null,null,null,null,null,null,null,null,null,null,null,null,null,null,null,null,null,null,null,null,null,null,null,null,null,null,null,null,null,null,null,null,null,null,null,null,null,null,null,null,null,null,null,null,null,null,null,{"$f":"IF($R$5=2,1,0)","v":0}]
[null,null,null,"2x 5015 L","toolhead_fanduct_5015_L.stl",0,"A",null,0,0,34.51,null,1,0,0,0,0,0,0,0,null,null,null,null,null,null,null,null,null,null,null,null,null,null,null,null,null,null,null,null,null,null,null,null,0,0,0,0,0,0,0,0,null,null,null,null,null,null,null,null,null,null,null,null,null,null,null,null,null,null,null,null,null,null,null,null,null,null,null,null,null,null,null,null,null,null,null,null,null,null,null,null,null,null,null,null,null,null,null,null,null,null,null,null,null,null,null,null,null,null,null,null,null,null,null,null,null,null,null,null,null,null,null,null,null,null,null,null,null,{"$f":"IF($R$5=3,1,0)","v":1}]
[null,null,null,"CPAP S","toolhead_fanduct_CPAP_S.stl",0,"A",null,0,0,19.5,null,1,0,0,0,0,0,0,0,null,null,null,null,null,null,null,null,null,null,null,null,null,null,null,null,null,null,null,null,null,null,null,null,0,0,0,0,0,0,0,0,null,null,null,null,null,null,null,null,null,null,null,null,null,null,null,null,null,null,null,null,null,null,null,null,null,null,null,null,null,null,null,null,null,null,null,null,null,null,null,null,null,null,null,null,null,null,null,null,null,null,null,null,null,null,null,null,null,null,null,null,null,null,null,null,null,null,null,null,null,null,null,null,null,null,null,null,null,null,{"$f":"IF($R$5=1,1,0)","v":0}]
[null,null,null,"CPAP M","toolhead_fanduct_CPAP_M.stl",0,"A",null,0,0,20.64,null,1,0,0,0,0,0,0,0,null,null,null,null,null,null,null,null,null,null,null,null,null,null,null,null,null,null,null,null,null,null,null,null,0,0,0,0,0,0,0,0,null,null,null,null,null,null,null,null,null,null,null,null,null,null,null,null,null,null,null,null,null,null,null,null,null,null,null,null,null,null,null,null,null,null,null,null,null,null,null,null,null,null,null,null,null,null,null,null,null,null,null,null,null,null,null,null,null,null,null,null,null,null,null,null,null,null,null,null,null,null,null,null,null,null,null,null,null,null,{"$f":"IF($R$5=2,1,0)","v":0}]
[null,null,null,"CPAP L","toolhead_fanduct_CPAP_L.stl",0,"A",null,0,0,22.47,null,1,{"$f":"AS$4*AS135+AT$4*AT135+AU$4*AU135+AV$4*AV135+AW$4*AW135+AX$4*AX135+AY$4*AY135+AZ$4*AZ135+BA$4*BA135","v":0},{"$f":"BG$4*BG135+BH$4*BH135+BI$4*BI135+BJ$4*BJ135+BK$4*BK135+BL$4*BL135+BM$4*BM135+BN$4*BN135+BO$4*BO135+BP$4*BP135+BQ$4*BQ135+BR$4*BR135","v":0},{"$f":"BS$4*BS135+BT$4*BT135+BU$4*BU135+BV$4*BV135+BW$4*BW135+BX$4*BX135+BY$4*BY135+BZ$4*BZ135+CA$4*CA135+CB$4*CB135+CC$4*CC135+CD$4*CD135+CE$4*CE135+CF$4*CF135+CG$4*CG135+CH$4*CH135","v":0},{"$f":"BB$4*BB135+BC$4*BC135+BD$4*BD135","v":0},0,{"$f":"ES$4*ES135+ET$4*ET135+EU$4*EU135+EV$4*EV135+EW$4*EW135+EX$4*EX135+EY$4*EY135+EZ$4*EZ135+FA$4*FA135+FB$4*FB135+FC$4*FC135","v":0},{"$f":"BF$4*BF135","v":0},null,null,null,null,null,null,null,null,null,null,null,null,null,null,null,null,null,null,null,null,null,null,null,null,0,0,0,0,0,0,0,0,null,null,null,null,null,null,null,null,null,null,null,null,null,null,null,null,null,null,null,null,null,null,null,null,null,null,null,null,null,null,null,null,null,null,null,null,null,null,null,null,null,null,null,null,null,null,null,null,null,null,null,null,null,null,null,null,null,null,null,null,null,null,null,null,null,null,null,null,null,null,null,null,null,null,null,null,null,null,{"$f":"IF($R$5=3,1,0)","v":1}]
[null,null,null,"CPAP hose adapter","toolhead_fanduct_CPAP_adapter.stl",0,"A",null,0,0,1.43,null,1,0,0,0,0,0,0,0,null,null,null,null,null,null,null,null,null,null,null,null,null,null,null,null,null,null,null,null,null,null,null,null,0,0,0,0,0,0,0,0,null,null,null,null,null,null,null,null,null,null,null,null,null,null,null,null,null,null,null,null,null,null,null,null,null,null,null,null,null,null,null,null,null,null,null,null,null,null,null,null,null,null,null,null,null,null,null,null,null,null,null,null,null,null,null,null,null,null,null,null,null,null,null,null,null,null,null,null,null,null,null,null,null,null,null,null,null,null,1]
[null,null,"PROBE",null,null,null,null,null,0,0,null,null,{"$f":"M138*M139*M140*M141*M142*M143*M144*M145*M146*M147*M148*M149*M150*M151*M152","v":0},0,0,0,0,0,0,0,null,null,null,null,null,null,null,null,null,null,null,null,null,null,null,null,null,null,null,null,null,null,null,null,0,0,0,0,0,0,0,0,null,null,null,null,null,null,null,null,null,null,null,null,null,null,null,null,null,null,null,null,null,null,null,null,null,null,null,null,null,null,null,null,null,null,null,null,null,null,null,null,null,null,null,null,null,null,null,null,null,null,null,null,null,null,null,null,null,null,null,null,null,null,null,null,null,null,null,null,null,null,null,null,null,null,null,null,null,null,null,null,null,null,null,null,null,null,null,null,null,null,null,null,null,null,null,null,null,null,null,null,null,null,null,null,null,null,null,null,null,{"$f":"C137","v":"PROBE"}]
[null,null,null,"Klicky","toolhead_probe_klicky.stl",{"$f":"SUM(N138:T138)","v":0},"A",null,0,0,2.77,null,{"$f":"IF(F138=0,IF(F138=\"\",0,1),0)","v":1},0,0,0,0,0,0,0,null,null,null,null,null,null,null,null,null,null,null,null,null,null,null,null,null,null,null,null,null,null,null,null,{"$f":"U138+V138+W138+AD138+AH138+AI138+AM138+AN138+AO138+AP138+AQ138","v":0},{"$f":"X138+Y138","v":0},{"$f":"Z138+AA138","v":0},{"$f":"AB138+AC138","v":0},{"$f":"AK138","v":0},{"$f":"AL138","v":0},{"$f":"AF138+AR138","v":0},{"$f":"AJ138","v":0},null,null,null,null,null,null,null,null,null,null,null,null,null,null,null,null,null,null,null,null,null,null,null,null,null,null,null,null,null,null,null,null,null,null,null,null,null,null,null,null,null,null,null,null,null,null,null,null,null,null,null,null,null,null,null,null,null,null,null,null,null,null,null,null,null,null,null,null,null,null,null,null,null,null,null,null,null,null,null,null,1]
[null,null,null,"KlickyPCB S+M","toolhead_probe_klicky_PCB_S_M.stl",0,"A",null,0,0,2.5499999999999998,null,1,0,0,0,0,0,0,0,null,null,null,null,null,null,null,null,null,null,null,null,null,null,null,null,null,null,null,null,null,null,null,null,0,0,0,0,0,0,0,0,null,null,null,null,null,null,null,null,null,null,null,null,null,null,null,null,null,null,null,null,null,null,null,null,null,null,null,null,null,null,null,null,null,null,null,null,null,null,null,null,null,null,null,null,null,null,null,null,null,null,null,null,null,null,null,null,null,null,null,null,null,null,null,null,null,null,null,null,null,null,null,null,null,null,null,null,null,null,null,null,null,{"$f":"IF($R$5<>3,1,0)","v":0}]
[null,null,null,"KlickyPCB L","toolhead_probe_klicky_PCB_L.stl",0,"A",null,0,0,3.59,null,1,0,0,0,0,0,0,0,null,null,null,null,null,null,null,null,null,null,null,null,null,null,null,null,null,null,null,null,null,null,null,null,0,0,0,0,0,0,0,0,null,null,null,null,null,null,null,null,null,null,null,null,null,null,null,null,null,null,null,null,null,null,null,null,null,null,null,null,null,null,null,null,null,null,null,null,null,null,null,null,null,null,null,null,null,null,null,null,null,null,null,null,null,null,null,null,null,null,null,null,null,null,null,null,null,null,null,null,null,null,null,null,null,null,null,null,null,null,null,null,null,{"$f":"IF($R$5=3,1,0)","v":1}]
[null,null,null,"Beacon scanner S","toolhead_probe_beacon_S.stl",0,"A",null,0,0,3.28,null,1,0,0,0,0,{"$f":"CI$4*CI141+CJ$4*CJ141+CK$4*CK141+CL$4*CL141+CM$4*CM141+CN$4*CN141+CO$4*CO141+CP$4*CP141+CQ$4*CQ141+CR$4*CR141+CS$4*CS141+CT$4*CT141+CU$4*CU141+CV$4*CV141+CW$4*CW141+CX$4*CX141+CY$4*CY141+CZ$4*CZ141+DA$4*DA141+DB$4*DB141+DC$4*DC141+DD$4*DD141+DE$4*DE141+DF$4*DF141+DG$4*DG141+DH$4*DH141+DI$4*DI141+DJ$4*DJ141+DK$4*DK141+DL$4*DL141+DM$4*DM141+DN$4*DN141+DO$4*DO141+DP$4*DP141+DQ$4*DQ141+DR$4*DR141+DS$4*DS141+DT$4*DT141+DU$4*DU141+DV$4*DV141+DW$4*DW141+DX$4*DX141+DY$4*DY141+DZ$4*DZ141+EA$4*EA141+EB$4*EB141+EC$4*EC141+ED$4*ED141+EE$4*EE141+EF$4*EF141+EG$4*EG141+EH$4*EH141+EI$4*EI141+EJ$4*EJ141+EK$4*EK141+EL$4*EL141+EM$4*EM141+EN$4*EN141+EO$4*EO141+EP$4*EP141+EQ$4*EQ141+ER$4*ER141","v":0},0,0,null,null,null,null,null,null,null,null,null,null,null,null,null,null,null,null,null,null,null,null,null,null,null,null,0,0,0,0,0,0,0,0,null,null,null,null,null,null,null,null,null,null,null,null,null,null,null,null,null,null,null,null,null,null,null,null,null,null,null,null,null,null,null,null,null,null,null,null,null,null,null,null,null,null,null,null,null,null,null,null,null,null,null,null,null,null,null,null,null,null,null,null,null,null,null,null,null,null,null,null,null,null,null,null,null,null,null,null,null,null,null,null,null,null,1]
[null,null,null,"Beacon scanner M","toolhead_probe_beacon_M.stl",0,"A",null,0,0,2.16,null,1,0,0,0,0,0,0,0,null,null,null,null,null,null,null,null,null,null,null,null,null,null,null,null,null,null,null,null,null,null,null,null,0,0,0,0,0,0,0,0,null,null,null,null,null,null,null,null,null,null,null,null,null,null,null,null,null,null,null,null,null,null,null,null,null,null,null,null,null,null,null,null,null,null,null,null,null,null,null,null,null,null,null,null,null,null,null,null,null,null,null,null,null,null,null,null,null,null,null,null,null,null,null,null,null,null,null,null,null,null,null,null,null,null,null,null,null,null,null,null,null,null,{"$f":"IF($R$5=2,1,0)","v":0}]
[null,null,null,"Beacon scanner L","toolhead_probe_beacon_L.stl",0,"A",null,{"$f":"IF($G143=\"M\",$K143*$F143,0)","v":0},{"$f":"IF($G143=\"A\",$K143*$F143,0)","v":0},3.26,null,1,0,0,0,0,0,0,0,null,null,null,null,null,null,null,null,null,null,null,null,null,null,null,null,null,null,null,null,null,null,null,null,0,0,0,0,0,0,0,0,null,null,null,null,null,null,null,null,null,null,null,null,null,null,null,null,null,null,null,null,null,null,null,null,null,null,null,null,null,null,null,null,null,null,null,null,null,null,null,null,null,null,null,null,null,null,null,null,null,null,null,null,null,null,null,null,null,null,null,null,null,null,null,null,null,null,null,null,null,null,null,null,null,null,null,null,null,null,null,null,null,null,{"$f":"IF($R$5=3,1,0)","v":1}]
[null,null,null,"BDSensor S","toolhead_probe_bdsensor_S.stl",0,"A",null,0,0,1.93,null,1,0,0,0,0,0,0,0,null,null,null,null,null,null,null,null,null,null,null,null,null,null,null,null,null,null,null,null,null,null,null,null,0,0,0,0,0,0,0,0,null,null,null,null,null,null,null,null,null,null,null,null,null,null,null,null,null,null,null,null,null,null,null,null,null,null,null,null,null,null,null,null,null,null,null,null,null,null,null,null,null,null,null,null,null,null,null,null,null,null,null,null,null,null,null,null,null,null,null,null,null,null,null,null,null,null,null,null,null,null,null,null,null,null,null,null,null,null,null,null,null,null,null,{"$f":"IF($R$5=1,1,0)","v":0}]
[null,null,null,"BDSensor M","toolhead_probe_bdsensor_M.stl",0,"A",null,0,0,2.5,null,1,0,0,0,0,0,0,0,null,null,null,null,null,null,null,null,null,null,null,null,null,null,null,null,null,null,null,null,null,null,null,null,0,0,0,0,0,0,0,0,null,null,null,null,null,null,null,null,null,null,null,null,null,null,null,null,null,null,null,null,null,null,null,null,null,null,null,null,null,null,null,null,null,null,null,null,null,null,null,null,null,null,null,null,null,null,null,null,null,null,null,null,null,null,null,null,null,null,null,null,null,null,null,null,null,null,null,null,null,null,null,null,null,null,null,null,null,null,null,null,null,null,null,{"$f":"IF($R$5=2,1,0)","v":0}]
[null,null,null,"BDSensor L","toolhead_probe_bdsensor_L.stl",1,"A",null,0,2.81,2.81,null,0,0,0,0,0,1,0,0,null,null,null,null,null,null,null,null,null,null,null,null,null,null,null,null,null,null,null,null,null,null,null,null,0,0,0,0,0,0,0,0,null,null,null,null,null,null,null,null,null,null,null,null,null,null,null,null,null,null,null,null,null,null,null,null,null,null,null,null,null,null,null,null,null,null,null,null,null,null,null,null,null,null,null,null,null,null,null,null,null,null,null,null,null,null,null,null,null,null,null,null,null,null,null,null,null,null,null,null,null,null,null,null,null,null,null,null,null,null,null,null,null,null,null,{"$f":"IF($R$5=3,1,0)","v":1}]
[null,null,null,"BTT Eddy S","toolhead_probe_btt_eddy_S.stl",0,"A",null,0,0,2.14,null,1,0,0,0,0,0,{"$f":"ES$4*ES147+ET$4*ET147+EU$4*EU147+EV$4*EV147+EW$4*EW147+EX$4*EX147+EY$4*EY147+EZ$4*EZ147+FA$4*FA147+FB$4*FB147+FC$4*FC147","v":0},{"$f":"BF$4*BF147","v":0},null,null,null,null,null,null,null,null,null,null,null,null,null,null,null,null,null,null,null,null,null,null,null,null,0,0,0,0,0,0,0,0,null,null,null,null,null,null,null,null,null,null,null,null,null,null,null,null,null,null,null,null,null,null,null,null,null,null,null,null,null,null,null,null,null,null,null,null,null,null,null,null,null,null,null,null,null,null,null,null,null,null,null,null,null,null,null,null,null,null,null,null,null,null,null,null,null,null,null,null,null,null,null,null,null,null,null,null,null,null,null,null,null,null,null,null,null,null,null,null,{"$f":"IF($R$5=1,1,0)","v":0}]
[null,null,null,"BTT Eddy M+L","toolhead_probe_btt_eddy_M_L.stl",0,"A",null,0,0,1.92,null,1,0,0,0,0,0,0,0,null,null,null,null,null,null,null,null,null,null,null,null,null,null,null,null,null,null,null,null,null,null,null,null,0,0,0,0,0,0,0,0,null,null,null,null,null,null,null,null,null,null,null,null,null,null,null,null,null,null,null,null,null,null,null,null,null,null,null,null,null,null,null,null,null,null,null,null,null,null,null,null,null,null,null,null,null,null,null,null,null,null,null,null,null,null,null,null,null,null,null,null,null,null,null,null,null,null,null,null,null,null,null,null,null,null,null,null,null,null,null,null,null,null,null,null,null,null,null,null,{"$f":"IF($R$5<>1,1,0)","v":1}]
[null,null,null,"Biqu microprobe","toolhead_probe_biqu_micro.stl",0,"A",null,0,0,1.66,null,1,0,0,0,0,0,0,0,null,null,null,null,null,null,null,null,null,null,null,null,null,null,null,null,null,null,null,null,null,null,null,null,0,0,0,0,0,0,0,0,null,null,null,null,null,null,null,null,null,null,null,null,null,null,null,null,null,null,null,null,null,null,null,null,null,null,null,null,null,null,null,null,null,null,null,null,null,null,null,null,null,null,null,null,null,null,null,null,null,null,null,null,null,null,null,null,null,null,null,null,null,null,null,null,null,null,null,null,null,null,null,null,null,null,null,null,null,null,null,null,null,null,null,null,null,null,1]
[null,null,null,"BLTouch","toolhead_probe_bltouch.stl",0,"A",null,0,0,2.36,null,1,0,0,0,0,0,0,0,null,null,null,null,null,null,null,null,null,null,null,null,null,null,null,null,null,null,null,null,null,null,null,null,0,0,0,0,0,0,0,0,null,null,null,null,null,null,null,null,null,null,null,null,null,null,null,null,null,null,null,null,null,null,null,null,null,null,null,null,null,null,null,null,null,null,null,null,null,null,null,null,null,null,null,null,null,null,null,null,null,null,null,null,null,null,null,null,null,null,null,null,null,null,null,null,null,null,null,null,null,null,null,null,null,null,null,null,null,null,null,null,null,null,null,null,1,1]
[null,null,null,"CR touch","toolhead_probe_bltouch.stl",0,"A",null,0,0,2.36,null,1,0,0,0,0,0,0,0,null,null,null,null,null,null,null,null,null,null,null,null,null,null,null,null,null,null,null,null,null,null,null,null,0,0,0,0,0,0,0,0]
[null,null,null,"P.I.N.D.A. / SuperPINDA","toolhead_probe_pinda.stl",0,"A",null,0,0,4.68,null,1,0,0,0,0,0,0,0,null,null,null,null,null,null,null,null,null,null,null,null,null,null,null,null,null,null,null,null,null,null,null,null,0,0,0,0,0,0,0,0,null,null,null,null,null,null,null,null,null,null,null,null,null,null,null,null,null,null,null,null,null,null,null,null,null,null,null,null,null,null,null,null,null,null,null,null,null,null,null,null,null,null,null,null,null,null,null,null,null,null,null,null,null,null,null,null,null,null,null,null,null,null,null,null,null,null,null,null,null,null,null,null,null,null,null,null,null,null,null,null,null,null,null,null,null,null,null,1]
[null,null,"ACCESSORIES",null,null,null,null,null,0,0,null,null,{"$f":"M154*M155*M156","v":0},0,0,0,0,0,0,0,null,null,null,null,null,null,null,null,null,null,null,null,null,null,null,null,null,null,null,null,null,null,null,null,0,0,0,0,0,0,0,0,null,null,null,null,null,null,null,null,null,null,null,null,null,null,null,null,null,null,null,null,null,null,null,null,null,null,null,null,null,null,null,null,null,null,null,null,null,null,null,null,null,null,null,null,null,null,null,null,null,null,null,null,null,null,null,null,null,null,null,null,null,null,null,null,null,null,null,null,null,null,null,null,null,null,null,null,null,null,null,null,null,null,null,null,null,null,null,null,null,null,null,null,null,null,null,null,null,null,null,null,null,null,null,null,null,null,null,null,null,{"$f":"C153","v":"ACCESSORIES"}]
[null,null,null,"Breakout","toolhead_accessories_breakout.stl",{"$f":"SUM(N154:T154)","v":0},"A",null,0,0,1.59,null,{"$f":"IF(F154=0,IF(F154=\"\",0,1),0)","v":1},0,0,0,0,0,0,0,null,null,null,null,null,null,null,null,null,null,null,null,null,null,null,null,null,null,null,null,null,null,null,null,0,0,0,0,0,0,0,0,null,null,null,null,null,null,null,null,null,null,null,null,null,null,null,null,null,null,null,null,null,null,null,null,null,null,null,null,null,null,null,null,null,null,null,null,null,null,null,null,null,null,null,null,null,null,null,null,null,null,null,null,null,null,null,null,null,null,null,null,null,null,null,null,null,null,null,null,null,null,null,null,null,null,null,null,null,null,null,null,null,null,null,null,null,null,null,null,null,null,1,null,1]
[null,null,null,"Accelerometer","toolhead_accessories_accelerometer.stl",{"$f":"SUM(N155:T155)","v":1},"A",null,0,1.74,1.74,null,{"$f":"IF(F155=0,IF(F155=\"\",0,1),0)","v":0},{"$f":"AS$4*AS155+AT$4*AT155+AU$4*AU155+AV$4*AV155+AW$4*AW155+AX$4*AX155+AY$4*AY155+AZ$4*AZ155+BA$4*BA155","v":0},{"$f":"BG$4*BG155+BH$4*BH155+BI$4*BI155+BJ$4*BJ155+BK$4*BK155+BL$4*BL155+BM$4*BM155+BN$4*BN155+BO$4*BO155+BP$4*BP155+BQ$4*BQ155+BR$4*BR155","v":0},{"$f":"BS$4*BS155+BT$4*BT155+BU$4*BU155+BV$4*BV155+BW$4*BW155+BX$4*BX155+BY$4*BY155+BZ$4*BZ155+CA$4*CA155+CB$4*CB155+CC$4*CC155+CD$4*CD155+CE$4*CE155+CF$4*CF155+CG$4*CG155+CH$4*CH155","v":0},{"$f":"BB$4*BB155+BC$4*BC155+BD$4*BD155","v":0},1,{"$f":"ES$4*ES155+ET$4*ET155+EU$4*EU155+EV$4*EV155+EW$4*EW155+EX$4*EX155+EY$4*EY155+EZ$4*EZ155+FA$4*FA155+FB$4*FB155+FC$4*FC155","v":0},{"$f":"BF$4*BF155","v":0},null,null,null,null,null,null,null,null,null,null,null,null,null,null,null,null,null,null,null,null,null,null,null,null,0,0,0,0,0,0,0,0,null,null,null,null,null,null,null,null,null,null,null,null,null,null,null,null,null,null,null,null,null,null,null,null,null,null,null,null,null,null,null,null,null,null,null,null,null,null,null,null,null,null,null,null,null,null,null,null,null,null,null,null,null,null,null,null,null,null,null,null,null,null,null,null,null,null,null,null,null,null,null,null,null,null,null,null,null,null,null,null,null,null,null,null,null,null,null,null,null,null,null,1,null,1]
[null,null,null,"Cable holder","toolhead_accessories_cable.stl",{"$f":"SUM(N156:T156)","v":1},"M",null,3.22,0,3.22,null,{"$f":"IF(F156=0,IF(F156=\"\",0,1),0)","v":0},0,0,0,0,1,0,0,null,null,null,null,null,null,null,null,null,null,null,null,null,null,null,null,null,null,null,null,null,null,null,null,0,0,0,0,0,0,0,0,null,null,null,null,null,null,null,null,null,null,null,null,null,null,null,null,null,null,null,null,null,null,null,null,null,null,null,null,null,null,null,null,null,null,null,null,null,null,null,null,null,null,null,null,null,null,null,null,null,null,null,null,null,null,null,null,null,null,null,null,null,null,null,null,null,null,null,null,null,null,null,null,null,null,null,null,null,null,null,null,null,null,null,null,null,null,null,null,null,null,null,null,1,1,1]
[null,null,"BACKPACK + ELECTRONICS",null,null,null,null,null,{"$f":"SUM(I158:I202)","v":288.18},{"$f":"SUM(J158:J202)","v":413.05},null,null,{"$f":"M158*M159*M160*M161*M162*M163*M164*M165*M166*M167*M168*M169*M170*M171*M172*M173*M174*M175*M176*M177*M178*M179*M180*M181*M182*M183*M184*M185*M186*M187*M188*M189*M190*M191*M192*M193*M194*M195*M196*M197*M198*M199*M200*M201*M202","v":0},0,0,0,0,0,0,0,null,null,null,null,null,null,null,null,null,null,null,null,null,null,null,null,null,null,null,null,null,null,null,null,0,0,0,0,0,0,0,0,null,null,null,null,null,null,null,null,null,null,null,null,null,null,null,null,null,null,null,null,null,null,null,null,null,null,null,null,null,null,null,null,null,null,null,null,null,null,null,null,null,null,null,null,null,null,null,null,null,null,null,null,null,null,null,null,null,null,null,null,null,null,null,null,null,null,null,null,null,null,null,null,null,null,null,null,null,null,null,null,null,null,null,null,null,null,null,null,null,null,null,null,null,null,null,null,null,null,null,null,null,null,null,null,null,null,null,null,null,{"$f":"C157","v":"BACKPACK + ELECTRONICS"}]
[null,null,null,"Panel left top","electronics_panel_upper_left.stl",{"$f":"SUM(N158:T158)","v":1},"M",null,{"$f":"IF($G158=\"M\",$K158*$F158,0)","v":59.37},{"$f":"IF($G158=\"A\",$K158*$F158,0)","v":0},59.37,null,{"$f":"IF(F158=0,IF(F158=\"\",0,1),0)","v":0},0,0,1,0,0,0,0,null,null,null,null,null,null,null,null,null,null,null,null,null,null,null,null,null,null,null,null,null,null,null,null,{"$f":"U158+V158+W158+AD158+AH158+AI158+AM158+AN158+AO158+AP158+AQ158","v":0},{"$f":"X158+Y158","v":0},{"$f":"Z158+AA158","v":0},{"$f":"AB158+AC158","v":0},{"$f":"AK158","v":0},{"$f":"AL158","v":0},{"$f":"AF158+AR158","v":0},{"$f":"AJ158","v":0},null,null,null,null,null,null,null,null,null,null,null,null,null,null,null,null,null,null,1]
[null,null,null,"Panel left bottom","electronics_panel_lower_left.stl",1,"M",null,61.4,0,61.4,null,0,0,0,1,0,0,0,0,null,null,null,null,null,null,null,null,null,null,null,null,null,null,null,null,null,null,null,null,null,null,null,null,0,0,0,0,0,0,0,0,null,null,null,null,null,null,null,null,null,null,null,null,null,null,null,null,null,null,1]
[null,null,null,"Panel right top","electronics_panel_upper_right.stl",1,"M",null,59.69,0,59.69,null,0,0,0,1,0,0,0,0,null,null,null,null,null,null,null,null,null,null,null,null,null,null,null,null,null,null,null,null,null,null,null,null,0,0,0,0,0,0,0,0,null,null,null,null,null,null,null,null,null,null,null,null,null,null,null,null,null,null,1]
[null,null,null,"Panel right bottom","electronics_panel_lower_right.stl",1,"M",null,60.9,0,60.9,null,0,0,0,1,0,0,0,0,null,null,null,null,null,null,null,null,null,null,null,null,null,null,null,null,null,null,null,null,null,null,null,null,0,0,0,0,0,0,0,0,null,null,null,null,null,null,null,null,null,null,null,null,null,null,null,null,null,null,1]
[null,null,null,"Panel glue strip middle top","electronics_panel_glue_strip_upper.stl",1,"M",null,4.78,0,4.78,null,0,0,0,1,0,0,0,0,null,null,null,null,null,null,null,null,null,null,null,null,null,null,null,null,null,null,null,null,null,null,null,null,0,0,0,0,0,0,0,0,null,null,null,null,null,null,null,null,null,null,null,null,null,null,null,null,null,null,1]
[null,null,null,"Panel glue strip middle bottom","electronics_panel_glue_strip_lower.stl",1,"M",null,3.49,0,3.49,null,0,0,0,1,0,0,0,0,null,null,null,null,null,null,null,null,null,null,null,null,null,null,null,null,null,null,null,null,null,null,null,null,0,0,0,0,0,0,0,0,null,null,null,null,null,null,null,null,null,null,null,null,null,null,null,null,null,null,1]
[null,null,null,"Panel glue strip sides","electronics_panel_glue_strip_middle.stl",2,"M",null,11.68,0,5.84,null,0,0,0,2,0,0,0,0,null,null,null,null,null,null,null,null,null,null,null,null,null,null,null,null,null,null,null,null,null,null,null,null,0,0,0,0,0,0,0,0,null,null,null,null,null,null,null,null,null,null,null,null,null,null,null,null,null,null,2]
[null,null,null,"Top cover left","electronics_top_B.stl",0,"A",null,0,0,47.05,null,1,0,0,0,0,0,0,0,null,null,null,null,null,null,null,null,null,null,null,null,null,null,null,null,null,null,null,null,null,null,1,-1,1,0,0,0,0,0,-1,0]
[null,null,null,"Top cover left – rod support","electronics_top_B_triple.stl",1,"A",null,0,76.67,76.67,null,0,1,0,0,0,0,0,0,null,null,null,null,null,null,null,null,null,null,null,null,null,null,null,null,null,null,null,null,null,null,null,1,0,0,0,0,0,0,1,0]
[null,null,null,"Top cover right","electronics_top_A.stl",1,"A",null,0,44.77,44.77,null,0,1,0,0,0,0,0,0,null,null,null,null,null,null,null,null,null,null,null,null,null,null,null,null,null,null,null,null,null,null,1,0,1,0,0,0,0,0,0,0]
[null,null,null,"Y endstop mount","electronics_Y_endstop.stl",1,"M",null,2.59,0,2.59,null,0,0,0,1,0,0,0,0,null,null,null,null,null,null,null,null,null,null,null,null,null,null,null,null,null,null,null,null,null,null,null,null,0,0,0,0,0,0,0,0,null,null,null,null,null,null,null,null,null,null,null,null,null,null,null,null,null,null,null,null,null,1]
[null,null,null,"Bed cable cover","electronics_panel_cable_bed.stl",1,"M",null,2.91,0,2.91,null,0,0,0,1,0,0,0,0,null,null,null,null,null,null,null,null,null,null,null,null,null,null,null,null,null,null,null,null,null,null,null,null,0,0,0,0,0,0,0,0,null,null,null,null,null,null,null,null,null,null,null,null,null,null,null,null,null,null,1]
[null,null,null,"Z stepper cable cover left","electronics_panel_cable_cover_left.stl",0,"A",null,0,0,1.0900000000000001,null,1,0,0,0,0,0,0,0,null,null,null,null,null,null,null,null,null,null,null,null,null,null,null,1,null,null,null,null,null,null,null,null,0,0,0,0,0,0,0,1,null,null,null,null,null,null,null,null,null,null,null,null,null,null,null,null,null,null,0]
[null,null,null,"Z stepper cable cover right","electronics_panel_cable_cover_right.stl",1,"A",null,0,1.0900000000000001,1.0900000000000001,null,0,0,0,1,0,0,0,0,null,null,null,null,null,null,null,null,null,null,null,null,null,null,null,null,null,null,null,null,null,null,null,null,0,0,0,0,0,0,0,0,null,null,null,null,null,null,null,null,null,null,null,null,null,null,null,null,null,null,1]
[null,null,null,"Z stepper cable cover right backer","electronics_panel_cable_cover_backer.stl",1,"A",null,0,0.32,0.32,null,0,0,0,1,0,0,0,0,null,null,null,null,null,null,null,null,null,null,null,null,null,null,null,1,null,null,null,null,null,null,null,null,0,0,0,0,0,0,0,1,null,null,null,null,null,null,null,null,null,null,null,null,null,null,null,null,null,null,1]
[null,null,null,"3 rods – top mount","electronics_panel_rod_mount.stl",1,"M",null,7.93,0,7.93,null,0,1,0,0,0,0,0,0,null,null,null,null,null,null,null,null,null,null,null,null,null,null,null,null,null,null,null,null,null,null,null,null,0,0,0,0,0,0,1,0]
[null,null,null,"Klicky probe dock","electronics_panel_klicky_dock.stl",0,"M",null,0,0,10.55,null,1,0,0,0,0,0,0,0,null,null,null,null,null,null,null,null,null,null,null,null,null,null,null,null,null,null,null,null,null,null,null,null,0,0,0,0,0,0,{"$f":"AF174+AR174","v":0},0,null,null,null,null,null,null,null,null,null,null,null,null,null,null,null,null,null,null,null,null,null,null,null,null,null,null,null,null,null,null,null,null,null,null,null,null,null,null,null,null,null,null,null,null,null,null,null,null,null,null,null,null,null,null,null,null,null,null,null,null,null,null,null,null,null,null,null,null,null,null,null,null,null,null,null,null,null,null,null,null,1]
[null,null,null,"KlickyPCB probe dock","electronics_panel_klicky_PCB_dock.stl",0,"M",null,0,0,9.2100000000000009,null,1,0,0,0,0,0,0,0,null,null,null,null,null,null,null,null,null,null,null,null,null,null,null,null,null,null,null,null,null,null,null,null,0,0,0,0,0,0,0,0,null,null,null,null,null,null,null,null,null,null,null,null,null,null,null,null,null,null,null,null,null,null,null,null,null,null,null,null,null,null,null,null,null,null,null,null,null,null,null,null,null,null,null,null,null,null,null,null,null,null,null,null,null,null,null,null,null,null,null,null,null,null,null,null,null,null,null,null,null,null,null,null,null,null,null,null,null,null,null,null,null,1]
[null,null,null,"Side vents B top","electronics_vent_B_upper.stl",1,"A",null,0,13.63,13.63,null,0,0,0,1,0,0,0,0,null,null,null,null,null,null,null,null,null,null,null,null,null,null,null,null,null,null,null,null,null,null,null,null,0,0,0,0,0,0,0,0,null,null,null,null,null,null,null,null,null,null,null,null,null,null,null,null,null,null,null,null,1]
[null,null,null,"Side vents B bottom","electronics_vent_B_lower.stl",1,"A",null,0,17.57,17.57,null,0,0,0,1,0,0,0,0,null,null,null,null,null,null,null,null,null,null,null,null,null,null,null,null,null,null,null,null,null,null,null,null,0,0,0,0,0,0,0,0,null,null,null,null,null,null,null,null,null,null,null,null,null,null,null,null,null,null,null,null,1]
[null,null,null,"Side vents A top","electronics_vent_A_upper.stl",1,"A",null,0,12.11,12.11,null,0,0,0,1,0,0,0,0,null,null,null,null,null,null,null,null,null,null,null,null,null,null,null,null,null,null,null,null,null,null,null,null,0,0,0,0,0,0,0,0,null,null,null,null,null,null,null,null,null,null,null,null,null,null,null,null,null,null,null,null,1]
[null,null,null,"Side vents A bottom","electronics_vent_A_lower.stl",1,"A",null,0,17.59,17.59,null,0,0,0,1,0,0,0,0,null,null,null,null,null,null,null,null,null,null,null,null,null,null,null,null,null,null,null,null,null,null,null,null,0,0,0,0,0,0,0,0,null,null,null,null,null,null,null,null,null,null,null,null,null,null,null,null,null,null,null,null,1]
[null,null,null,"Side vents bottom left","electronics_vent_bottom_left.stl",1,"A",null,0,17.23,17.23,null,0,0,0,1,0,0,0,0,null,null,null,null,null,null,null,null,null,null,null,null,null,null,null,null,null,null,null,null,null,null,null,null,0,0,0,0,0,0,0,0,null,null,null,null,null,null,null,null,null,null,null,null,null,null,null,null,null,null,null,null,1]
[null,null,null,"Side vents bottom right","electronics_vent_bottom_right.stl",1,"A",null,0,17.52,17.52,null,0,0,0,1,0,0,0,0,null,null,null,null,null,null,null,null,null,null,null,null,null,null,null,null,null,null,null,null,null,null,null,null,0,0,0,0,0,0,0,0,null,null,null,null,null,null,null,null,null,null,null,null,null,null,null,null,null,null,null,null,1]
[null,null,null,"Side vents – panel latch","electronics_vent_panel_latch.stl",6,"A",null,0,37.5,6.25,null,0,0,0,6,0,0,0,0,null,null,null,null,null,null,null,null,null,null,null,null,null,null,null,null,null,null,null,null,null,null,null,null,0,0,0,0,0,0,0,0,null,null,null,null,null,null,null,null,null,null,null,null,null,null,null,null,null,null,null,null,6]
[null,null,null,"Electronics plug mount","electronics_power_switch_front.stl",1,"M",null,4.42,0,4.42,null,0,0,0,1,0,0,0,0,null,null,null,null,null,null,null,null,null,null,null,null,null,null,null,null,null,null,null,null,null,null,null,null,0,0,0,0,0,0,0,0,null,null,null,null,null,null,null,null,null,null,null,null,null,null,null,null,null,null,null,null,{"$f":"IF($AX$4=0,1,0)","v":1}]
[null,null,null,"Electronics plug mount backer","electronics_power_switch_backer.stl",1,"M",null,9.02,0,9.02,null,0,0,0,1,0,0,0,0,null,null,null,null,null,null,null,null,null,null,null,null,null,null,null,null,null,null,null,null,null,null,null,null,0,0,0,0,0,0,0,0,null,null,null,null,null,null,null,null,null,null,null,null,null,null,null,null,null,null,null,null,{"$f":"IF($AX$4=0,1,0)","v":1}]
[null,null,null,"Electronics plug mount - E3 V2","electronics_power_switch_e3v2_front.stl",0,"M",null,0,0,4.72,null,{"$f":"IF(F185=0,IF(F185=\"\",0,1),0)","v":1},{"$f":"AS$4*AS185+AT$4*AT185+AU$4*AU185+AV$4*AV185+AW$4*AW185+AX$4*AX185+AY$4*AY185+AZ$4*AZ185+BA$4*BA185","v":0},{"$f":"BG$4*BG185+BH$4*BH185+BI$4*BI185+BJ$4*BJ185+BK$4*BK185+BL$4*BL185+BM$4*BM185+BN$4*BN185+BO$4*BO185+BP$4*BP185+BQ$4*BQ185+BR$4*BR185","v":0},{"$f":"BS$4*BS185+BT$4*BT185+BU$4*BU185+BV$4*BV185+BW$4*BW185+BX$4*BX185+BY$4*BY185+BZ$4*BZ185+CA$4*CA185+CB$4*CB185+CC$4*CC185+CD$4*CD185+CE$4*CE185+CF$4*CF185+CG$4*CG185+CH$4*CH185","v":0},{"$f":"BB$4*BB185+BC$4*BC185+BD$4*BD185","v":0},{"$f":"CI$4*CI185+CJ$4*CJ185+CK$4*CK185+CL$4*CL185+CM$4*CM185+CN$4*CN185+CO$4*CO185+CP$4*CP185+CQ$4*CQ185+CR$4*CR185+CS$4*CS185+CT$4*CT185+CU$4*CU185+CV$4*CV185+CW$4*CW185+CX$4*CX185+CY$4*CY185+CZ$4*CZ185+DA$4*DA185+DB$4*DB185+DC$4*DC185+DD$4*DD185+DE$4*DE185+DF$4*DF185+DG$4*DG185+DH$4*DH185+DI$4*DI185+DJ$4*DJ185+DK$4*DK185+DL$4*DL185+DM$4*DM185+DN$4*DN185+DO$4*DO185+DP$4*DP185+DQ$4*DQ185+DR$4*DR185+DS$4*DS185+DT$4*DT185+DU$4*DU185+DV$4*DV185+DW$4*DW185+DX$4*DX185+DY$4*DY185+DZ$4*DZ185+EA$4*EA185+EB$4*EB185+EC$4*EC185+ED$4*ED185+EE$4*EE185+EF$4*EF185+EG$4*EG185+EH$4*EH185+EI$4*EI185+EJ$4*EJ185+EK$4*EK185+EL$4*EL185+EM$4*EM185+EN$4*EN185+EO$4*EO185+EP$4*EP185+EQ$4*EQ185+ER$4*ER185","v":0},{"$f":"ES$4*ES185+ET$4*ET185+EU$4*EU185+EV$4*EV185+EW$4*EW185+EX$4*EX185+EY$4*EY185+EZ$4*EZ185+FA$4*FA185+FB$4*FB185+FC$4*FC185","v":0},{"$f":"BF$4*BF185","v":0},null,null,null,null,null,null,null,null,null,null,null,null,null,null,null,null,null,null,null,null,null,null,null,null,null,null,null,null,null,null,null,null,null,null,null,null,null,null,null,null,null,null,null,null,null,null,null,null,null,null,null,null,{"$f":"IF($AX$4=1,1,0)","v":0}]
[null,null,null,"Electronics plug mount backer - E3 V2","electronics_power_switch_e3v2_backer.stl",0,"M",null,0,0,9.06,null,1,0,0,0,0,0,0,0,null,null,null,null,null,null,null,null,null,null,null,null,null,null,null,null,null,null,null,null,null,null,null,null,null,null,null,null,null,null,null,null,null,null,null,null,null,null,null,null,null,null,null,null,null,null,null,null,null,null,null,null,{"$f":"IF($AX$4=1,1,0)","v":0}]
[null,null,null,"N17 stepper cooling B","optional_stepper_cooling_B_body.stl",1,"A",null,0,14.22,14.22,null,0,0,0,1,0,0,0,0,null,null,null,null,null,null,null,null,null,null,null,null,null,null,null,null,null,null,null,null,null,null,null,null,0,0,0,0,0,0,0,0,null,null,null,null,null,null,null,null,null,null,null,null,null,null,null,null,null,null,null,1]
[null,null,null,"N17 stepper cooling A","optional_stepper_cooling_A_body.stl",1,"A",null,0,14.37,14.37,null,0,0,0,1,0,0,0,0,null,null,null,null,null,null,null,null,null,null,null,null,null,null,null,null,null,null,null,null,null,null,null,null,0,0,0,0,0,0,0,0,null,null,null,null,null,null,null,null,null,null,null,null,null,null,null,null,null,null,null,1]
[null,null,null,"N17 stepper cooling transition","optional_stepper_cooling_AB_transition.stl",2,"A",null,0,15.66,7.83,null,0,0,0,2,0,0,0,0,null,null,null,null,null,null,null,null,null,null,null,null,null,null,null,null,null,null,null,null,null,null,null,null,0,0,0,0,0,0,0,0,null,null,null,null,null,null,null,null,null,null,null,null,null,null,null,null,null,null,null,2]
[null,null,null,"N17 stepper cooling 4020","optional_stepper_cooling_AB_4020.stl",2,"A",null,0,38.06,19.03,null,0,0,0,2,0,0,0,0,null,null,null,null,null,null,null,null,null,null,null,null,null,null,null,null,null,null,null,null,null,null,null,null,0,0,0,0,0,0,0,0,null,null,null,null,null,null,null,null,null,null,null,null,null,null,null,null,null,null,null,2]
[null,null,null,"N17 stepper cooling wires cover","optional_stepper_cooling_wires.stl",2,"A",null,0,1.36,0.68,null,0,0,0,2,0,0,0,0,null,null,null,null,null,null,null,null,null,null,null,null,null,null,null,null,null,null,null,null,null,null,null,null,0,0,0,0,0,0,0,0,null,null,null,null,null,null,null,null,null,null,null,null,null,null,null,null,null,null,null,2]
[null,null,null,"DIN rail washer","electronics_DIN_rail_mounts.stl",18,"A",null,0,13.14,0.73,null,0,0,0,18,0,0,0,0,null,null,null,null,null,null,null,null,null,null,null,null,null,null,null,null,null,null,null,null,null,null,null,null,0,0,0,0,0,0,0,0,null,null,null,null,null,null,null,null,null,null,null,null,null,null,null,null,null,null,18]
[null,null,null,"30 mm PSU - fan shroud","electronics_DIN_rail_PSU_shroud.stl",1,"A",null,0,9.69,9.69,null,0,0,0,1,0,0,0,0,null,null,null,null,null,null,null,null,null,null,null,null,null,null,null,null,null,null,null,null,null,null,null,null,0,0,0,0,0,0,0,0,null,null,null,null,null,null,null,null,null,null,null,null,null,null,null,null,null,null,null,null,null,null,1]
[null,null,null,"DIN rail mount – PSU","electronics_DIN_rail_PSU_24V.stl",2,"A",null,0,3.64,1.82,null,0,0,0,2,0,0,0,0,null,null,null,null,null,null,null,null,null,null,null,null,null,null,null,null,null,null,null,null,null,null,null,null,0,0,0,0,0,0,0,0,null,null,null,null,null,null,null,null,null,null,null,null,null,null,null,null,null,null,null,null,null,null,2,2]
[null,null,null,"DIN rail mount generic","electronics_DIN_rail_generic_mount.stl",3,"A",null,0,6.93,2.31,null,0,0,0,3,0,0,0,0,null,null,null,null,null,null,null,null,null,null,null,null,null,null,null,null,null,null,null,null,null,null,null,null,0,0,0,0,0,0,0,0,null,null,null,null,null,null,null,null,null,null,null,null,null,null,null,null,null,null,null,null,null,null,null,null,null,2,null,3,2]
[null,null,null,"BTT SKR3EZ mount","electronics_DIN_BTT_SKR3EZ_mount.stl",0,"A",null,0,0,17.489999999999998,null,1,0,0,0,0,0,0,0,null,null,null,null,null,null,null,null,null,null,null,null,null,null,null,null,null,null,null,null,null,null,null,null,0,0,0,0,0,0,0,0,null,null,null,null,null,null,null,null,null,null,null,null,null,null,null,null,null,null,null,null,null,null,null,null,null,1]
[null,null,null,"BTT SKR3EZ cooling","electronics_DIN_BTT_SKR3EZ_cooling.stl",{"$f":"SUM(N197:T197)","v":0},"A",null,0,0,14.83,null,{"$f":"IF(F197=0,IF(F197=\"\",0,1),0)","v":1},{"$f":"AS$4*AS197+AT$4*AT197+AU$4*AU197+AV$4*AV197+AW$4*AW197+AX$4*AX197+AY$4*AY197+AZ$4*AZ197+BA$4*BA197","v":0},{"$f":"BG$4*BG197+BH$4*BH197+BI$4*BI197+BJ$4*BJ197+BK$4*BK197+BL$4*BL197+BM$4*BM197+BN$4*BN197+BO$4*BO197+BP$4*BP197+BQ$4*BQ197+BR$4*BR197","v":0},{"$f":"BS$4*BS197+BT$4*BT197+BU$4*BU197+BV$4*BV197+BW$4*BW197+BX$4*BX197+BY$4*BY197+BZ$4*BZ197+CA$4*CA197+CB$4*CB197+CC$4*CC197+CD$4*CD197+CE$4*CE197+CF$4*CF197+CG$4*CG197+CH$4*CH197","v":0},{"$f":"BB$4*BB197+BC$4*BC197+BD$4*BD197","v":0},0,{"$f":"ES$4*ES197+ET$4*ET197+EU$4*EU197+EV$4*EV197+EW$4*EW197+EX$4*EX197+EY$4*EY197+EZ$4*EZ197+FA$4*FA197+FB$4*FB197+FC$4*FC197","v":0},{"$f":"BF$4*BF197","v":0},null,null,null,null,null,null,null,null,null,null,null,null,null,null,null,null,null,null,null,null,null,null,null,null,0,0,0,0,0,0,0,0,null,null,null,null,null,null,null,null,null,null,null,null,null,null,null,null,null,null,null,null,null,null,null,null,null,1]
[null,null,null,"BTT SKR mini E3 v2 mount","electronics_DIN_BTT_SKRminiE3_mount.stl",0,"A",null,0,0,16.39,null,{"$f":"IF(F198=0,IF(F198=\"\",0,1),0)","v":1},{"$f":"AS$4*AS198+AT$4*AT198+AU$4*AU198+AV$4*AV198+AW$4*AW198+AX$4*AX198+AY$4*AY198+AZ$4*AZ198+BA$4*BA198","v":0},{"$f":"BG$4*BG198+BH$4*BH198+BI$4*BI198+BJ$4*BJ198+BK$4*BK198+BL$4*BL198+BM$4*BM198+BN$4*BN198+BO$4*BO198+BP$4*BP198+BQ$4*BQ198+BR$4*BR198","v":0},{"$f":"BS$4*BS198+BT$4*BT198+BU$4*BU198+BV$4*BV198+BW$4*BW198+BX$4*BX198+BY$4*BY198+BZ$4*BZ198+CA$4*CA198+CB$4*CB198+CC$4*CC198+CD$4*CD198+CE$4*CE198+CF$4*CF198+CG$4*CG198+CH$4*CH198","v":0},{"$f":"BB$4*BB198+BC$4*BC198+BD$4*BD198","v":0},0,{"$f":"ES$4*ES198+ET$4*ET198+EU$4*EU198+EV$4*EV198+EW$4*EW198+EX$4*EX198+EY$4*EY198+EZ$4*EZ198+FA$4*FA198+FB$4*FB198+FC$4*FC198","v":0},{"$f":"BF$4*BF198","v":0},null,null,null,null,null,null,null,null,null,null,null,null,null,null,null,null,null,null,null,null,null,null,null,null,0,0,0,0,0,0,0,0,null,null,null,null,null,null,null,null,null,null,null,null,null,null,null,null,null,null,null,null,null,null,null,null,null,null,null,null,1]
[null,null,null,"BTT Octopus v1.1 mount","electronics_DIN_BTT_octopus_11_mount.stl",1,"A",null,0,23.68,23.68,null,0,0,0,1,0,0,0,0,null,null,null,null,null,null,null,null,null,null,null,null,null,null,null,null,null,null,null,null,null,null,null,null,0,0,0,0,0,0,0,0,null,null,null,null,null,null,null,null,null,null,null,null,null,null,null,null,null,null,null,null,null,null,null,null,null,null,null,1]
[null,null,null,"BTT Octopus v1.1 cooling","electronics_DIN_BTT_octopus_11_cooling.stl",1,"A",null,0,16.3,16.3,null,0,0,0,1,0,0,0,0,null,null,null,null,null,null,null,null,null,null,null,null,null,null,null,null,null,null,null,null,null,null,null,null,0,0,0,0,0,0,0,0,null,null,null,null,null,null,null,null,null,null,null,null,null,null,null,null,null,null,null,null,null,null,null,null,null,null,null,1]
[null,null,null,"Electronics cooling - front cover","electronics_cooling_6015_a.stl",0,"A",null,0,0,25.31,null,1,{"$f":"AS$4*AS201+AT$4*AT201+AU$4*AU201+AV$4*AV201+AW$4*AW201+AX$4*AX201+AY$4*AY201+AZ$4*AZ201+BA$4*BA201","v":0},{"$f":"BG$4*BG201+BH$4*BH201+BI$4*BI201+BJ$4*BJ201+BK$4*BK201+BL$4*BL201+BM$4*BM201+BN$4*BN201+BO$4*BO201+BP$4*BP201+BQ$4*BQ201+BR$4*BR201","v":0},{"$f":"BS$4*BS201+BT$4*BT201+BU$4*BU201+BV$4*BV201+BW$4*BW201+BX$4*BX201+BY$4*BY201+BZ$4*BZ201+CA$4*CA201+CB$4*CB201+CC$4*CC201+CD$4*CD201+CE$4*CE201+CF$4*CF201+CG$4*CG201+CH$4*CH201","v":0},{"$f":"BB$4*BB201+BC$4*BC201+BD$4*BD201","v":0},{"$f":"CI$4*CI201+CJ$4*CJ201+CK$4*CK201+CL$4*CL201+CM$4*CM201+CN$4*CN201+CO$4*CO201+CP$4*CP201+CQ$4*CQ201+CR$4*CR201+CS$4*CS201+CT$4*CT201+CU$4*CU201+CV$4*CV201+CW$4*CW201+CX$4*CX201+CY$4*CY201+CZ$4*CZ201+DA$4*DA201+DB$4*DB201+DC$4*DC201+DD$4*DD201+DE$4*DE201+DF$4*DF201+DG$4*DG201+DH$4*DH201+DI$4*DI201+DJ$4*DJ201+DK$4*DK201+DL$4*DL201+DM$4*DM201+DN$4*DN201+DO$4*DO201+DP$4*DP201+DQ$4*DQ201+DR$4*DR201+DS$4*DS201+DT$4*DT201+DU$4*DU201+DV$4*DV201+DW$4*DW201+DX$4*DX201+DY$4*DY201+DZ$4*DZ201+EA$4*EA201+EB$4*EB201+EC$4*EC201+ED$4*ED201+EE$4*EE201+EF$4*EF201+EG$4*EG201+EH$4*EH201+EI$4*EI201+EJ$4*EJ201+EK$4*EK201+EL$4*EL201+EM$4*EM201+EN$4*EN201+EO$4*EO201+EP$4*EP201+EQ$4*EQ201+ER$4*ER201","v":0},{"$f":"ES$4*ES201+ET$4*ET201+EU$4*EU201+EV$4*EV201+EW$4*EW201+EX$4*EX201+EY$4*EY201+EZ$4*EZ201+FA$4*FA201+FB$4*FB201+FC$4*FC201","v":0},{"$f":"BF$4*BF201","v":0},null,null,null,null,null,null,null,null,null,null,null,null,null,null,null,null,null,null,null,null,null,null,null,null,0,0,0,0,0,0,0,0]
[null,null,null,"Electronics cooling - backer","electronics_cooling_6015_b.stl",0,"A",null,0,0,20,null,1,0,0,0,0,0,0,0,null,null,null,null,null,null,null,null,null,null,null,null,null,null,null,null,null,null,null,null,null,null,null,null,0,0,0,0,0,0,0,0]
[null,null,"ENCLOSURE V2",null,null,null,null,null,{"$f":"SUM(I204:I234)","v":0},{"$f":"SUM(J204:J234)","v":0},null,null,{"$f":"M204*M205*M206*M207*M208*M209*M210*M211*M212*M213*M214*M215*M216*M217*M218*M219*M220*M221*M222*M223*M224*M225*M226*M227*M228*M229*M230*M231*M232*M233*M234","v":1},0,0,0,0,0,0,0,null,null,null,null,null,null,null,null,null,null,null,null,null,null,null,null,null,null,null,null,null,null,null,null,{"$f":"U203+V203+W203+AD203+AH203+AI203+AM203+AN203+AO203+AP203+AQ203","v":0},{"$f":"X203+Y203","v":0},{"$f":"Z203+AA203","v":0},{"$f":"AB203+AC203","v":0},{"$f":"AK203","v":0},{"$f":"AL203","v":0},{"$f":"AF203+AR203","v":0},{"$f":"AJ203","v":0},null,null,null,null,null,null,null,null,null,null,null,null,null,null,null,null,null,null,null,null,null,null,null,null,null,null,null,null,null,null,null,null,null,null,null,null,null,null,null,null,null,null,null,null,null,null,null,null,null,null,null,null,null,null,null,null,null,null,null,null,null,null,null,null,null,null,null,null,null,null,null,null,null,null,null,null,null,null,null,null,null,null,null,null,null,null,null,null,null,null,null,null,null,null,null,null,null,null,null,null,null,null,null,null,null,null,null,null,null,{"$f":"C203","v":"ENCLOSURE V2"}]
[null,null,null,"Top rear corner - left","enclosure_v2_lid_corner_left.stl",{"$f":"SUM(N204:T204)","v":0},"M",null,{"$f":"IF($G204=\"M\",$K204*$F204,0)","v":0},{"$f":"IF($G204=\"A\",$K204*$F204,0)","v":0},27.85,null,{"$f":"IF(F204=0,IF(F204=\"\",0,1),0)","v":1},{"$f":"AS$4*AS204+AT$4*AT204+AU$4*AU204+AV$4*AV204+AW$4*AW204+AX$4*AX204+AY$4*AY204+AZ$4*AZ204+BA$4*BA204","v":0},{"$f":"BG$4*BG204+BH$4*BH204+BI$4*BI204+BJ$4*BJ204+BK$4*BK204+BL$4*BL204+BM$4*BM204+BN$4*BN204+BO$4*BO204+BP$4*BP204+BQ$4*BQ204+BR$4*BR204","v":0},{"$f":"BS$4*BS204+BT$4*BT204+BU$4*BU204+BV$4*BV204+BW$4*BW204+BX$4*BX204+BY$4*BY204+BZ$4*BZ204+CA$4*CA204+CB$4*CB204+CC$4*CC204+CD$4*CD204+CE$4*CE204+CF$4*CF204+CG$4*CG204+CH$4*CH204","v":0},{"$f":"BB$4*BB204+BC$4*BC204+BD$4*BD204","v":0},{"$f":"CI$4*CI204+CJ$4*CJ204+CK$4*CK204+CL$4*CL204+CM$4*CM204+CN$4*CN204+CO$4*CO204+CP$4*CP204+CQ$4*CQ204+CR$4*CR204+CS$4*CS204+CT$4*CT204+CU$4*CU204+CV$4*CV204+CW$4*CW204+CX$4*CX204+CY$4*CY204+CZ$4*CZ204+DA$4*DA204+DB$4*DB204+DC$4*DC204+DD$4*DD204+DE$4*DE204+DF$4*DF204+DG$4*DG204+DH$4*DH204+DI$4*DI204+DJ$4*DJ204+DK$4*DK204+DL$4*DL204+DM$4*DM204+DN$4*DN204+DO$4*DO204+DP$4*DP204+DQ$4*DQ204+DR$4*DR204+DS$4*DS204+DT$4*DT204+DU$4*DU204+DV$4*DV204+DW$4*DW204+DX$4*DX204+DY$4*DY204+DZ$4*DZ204+EA$4*EA204+EB$4*EB204+EC$4*EC204+ED$4*ED204+EE$4*EE204+EF$4*EF204+EG$4*EG204+EH$4*EH204+EI$4*EI204+EJ$4*EJ204+EK$4*EK204+EL$4*EL204+EM$4*EM204+EN$4*EN204+EO$4*EO204+EP$4*EP204+EQ$4*EQ204+ER$4*ER204","v":0},{"$f":"ES$4*ES204+ET$4*ET204+EU$4*EU204+EV$4*EV204+EW$4*EW204+EX$4*EX204+EY$4*EY204+EZ$4*EZ204+FA$4*FA204+FB$4*FB204+FC$4*FC204","v":0},{"$f":"BF$4*BF204","v":0},null,null,null,null,null,null,null,null,null,null,null,null,null,null,null,null,null,null,null,null,null,null,null,null,{"$f":"U204+V204+W204+AD204+AH204+AI204+AM204+AN204+AO204+AP204+AQ204","v":0},{"$f":"X204+Y204","v":0},{"$f":"Z204+AA204","v":0},{"$f":"AB204+AC204","v":0},{"$f":"AK204","v":0},{"$f":"AL204","v":0},{"$f":"AF204+AR204","v":0},{"$f":"AJ204","v":0},null,null,null,null,null,1]
[null,null,null,"Top rear corner - right","enclosure_v2_lid_corner_right.stl",0,"M",null,0,0,27.82,null,1,0,0,0,0,0,0,0,null,null,null,null,null,null,null,null,null,null,null,null,null,null,null,null,null,null,null,null,null,null,null,null,0,0,0,0,0,0,0,0,null,null,null,null,null,1]
[null,null,null,"Panel mount - small","enclosure_v2_panel_mount_S.stl",0,"M",null,0,0,1.89,null,1,0,0,0,0,0,0,0,null,null,null,null,null,null,null,null,null,null,null,null,null,null,null,null,null,null,null,null,null,null,null,null,0,0,0,0,0,0,0,0,null,null,null,null,null,32]
[null,null,null,"Panel mount - large","enclosure_v2_panel_mount_L.stl",0,"M",null,0,0,2.1800000000000002,null,1,0,0,0,0,0,0,0,null,null,null,null,null,null,null,null,null,null,null,null,null,null,null,null,null,null,null,null,null,null,null,null,0,0,0,0,0,0,0,0,null,null,null,null,null,4]
[null,null,null,"Panel mount - springy","enclosure_v2_panel_mount_spring.stl",0,"M",null,0,0,2.96,null,1,0,0,0,0,0,0,0,null,null,null,null,null,null,null,null,null,null,null,null,null,null,null,null,null,null,null,null,null,null,null,null,0,0,0,0,0,0,0,0,null,null,null,null,null,3]
[null,null,null,"Lid rim rear - right","enclosure_v2_lid_rear_right.stl",0,"M",null,0,0,18.190000000000001,null,1,0,0,0,0,0,0,0,null,null,null,null,null,null,null,null,null,null,null,null,null,null,null,null,null,null,null,null,null,null,null,null,0,0,0,0,0,0,0,0,null,null,null,null,null,1]
[null,null,null,"Lid rim rear - left","enclosure_v2_lid_rear_left.stl",0,"M",null,0,0,17.920000000000002,null,1,0,0,0,0,0,0,0,null,null,null,null,null,null,null,null,null,null,null,null,null,null,null,null,null,null,null,null,null,null,null,null,0,0,0,0,0,0,0,0,null,null,null,null,null,1]
[null,null,null,"Lid rim right - front","enclosure_v2_lid_right_front.stl",0,"M",null,0,0,21.31,null,1,0,0,0,0,0,0,0,null,null,null,null,null,null,null,null,null,null,null,null,null,null,null,null,null,null,null,null,null,null,null,null,0,0,0,0,0,0,0,0,null,null,null,null,null,1]
[null,null,null,"Lid rim right - rear","enclosure_v2_lid_right_rear.stl",0,"M",null,0,0,21.57,null,1,0,0,0,0,0,0,0,null,null,null,null,null,null,null,null,null,null,null,null,null,null,null,null,null,null,null,null,null,null,null,null,0,0,0,0,0,0,0,0,null,null,null,null,null,1]
[null,null,null,"Lid rim left - front","enclosure_v2_lid_left_front.stl",0,"M",null,0,0,21.31,null,1,0,0,0,0,0,0,0,null,null,null,null,null,null,null,null,null,null,null,null,null,null,null,null,null,null,null,null,null,null,null,null,0,0,0,0,0,0,0,0,null,null,null,null,null,1]
[null,null,null,"Lid rim left - rear","enclosure_v2_lid_left_rear.stl",0,"M",null,0,0,21.59,null,1,0,0,0,0,0,0,0,null,null,null,null,null,null,null,null,null,null,null,null,null,null,null,null,null,null,null,null,null,null,null,null,0,0,0,0,0,0,0,0,null,null,null,null,null,1]
[null,null,null,"Lid handle","enclosure_v2_lid_handle.stl",0,"M",null,0,0,21.86,null,1,0,0,0,0,0,0,0,null,null,null,null,null,null,null,null,null,null,null,null,null,null,null,null,null,null,null,null,null,null,null,null,0,0,0,0,0,0,0,0,null,null,null,null,null,1]
[null,null,null,"Door hinde - base","enclosure_v2_hinge_base.stl",0,"M",null,0,0,10.77,null,1,0,0,0,0,0,0,0,null,null,null,null,null,null,null,null,null,null,null,null,null,null,null,null,null,null,null,null,null,null,null,null,0,0,0,0,0,0,0,0,null,null,null,null,null,2]
[null,null,null,"Door hinge - arm","enclosure_v2_hinge_arm.stl",0,"M",null,0,0,9.93,null,1,0,0,0,0,0,0,0,null,null,null,null,null,null,null,null,null,null,null,null,null,null,null,null,null,null,null,null,null,null,null,null,0,0,0,0,0,0,0,0,null,null,null,null,null,2]
[null,null,null,"Door hinge - panel mount","enclosure_v2_hinge_panel_mount.stl",0,"A",null,0,0,1.7,null,1,0,0,0,0,0,0,0,null,null,null,null,null,null,null,null,null,null,null,null,null,null,null,null,null,null,null,null,null,null,null,null,0,0,0,0,0,0,0,0,null,null,null,null,null,6]
[null,null,null,"Door latch - base","enclosure_v2_latch_base.stl",0,"M",null,0,0,7.81,null,1,0,0,0,0,0,0,0,null,null,null,null,null,null,null,null,null,null,null,null,null,null,null,null,null,null,null,null,null,null,null,null,0,0,0,0,0,0,0,0,null,null,null,null,null,2]
[null,null,null,"Door latch - arm","enclosure_v2_latch_arm.stl",0,"M",null,0,0,9.94,null,1,0,0,0,0,0,0,0,null,null,null,null,null,null,null,null,null,null,null,null,null,null,null,null,null,null,null,null,null,null,null,null,0,0,0,0,0,0,0,0,null,null,null,null,null,2]
[null,null,null,"Door latch - handle","enclosure_v2_latch_handle.stl",0,"M",null,0,0,10.37,null,1,0,0,0,0,0,0,0,null,null,null,null,null,null,null,null,null,null,null,null,null,null,null,null,null,null,null,null,null,null,null,null,0,0,0,0,0,0,0,0,null,null,null,null,null,2]
[null,null,null,"Door latch - lever","enclosure_v2_latch_lever.stl",0,"A",null,0,0,3.03,null,1,0,0,0,0,0,0,0,null,null,null,null,null,null,null,null,null,null,null,null,null,null,null,null,null,null,null,null,null,null,null,null,0,0,0,0,0,0,0,0,null,null,null,null,null,2]
[null,null,null,"Lid hinge - base","enclosure_v2_hinge_lid_base.stl",0,"M",null,0,0,8.0500000000000007,null,1,0,0,0,0,0,0,0,null,null,null,null,null,null,null,null,null,null,null,null,null,null,null,null,null,null,null,null,null,null,null,null,0,0,0,0,0,0,0,0,null,null,null,null,null,2]
[null,null,null,"Lid hinge - arm","enclosure_v2_hinge_lid_arm.stl",0,"M",null,0,0,13.19,null,1,0,0,0,0,0,0,0,null,null,null,null,null,null,null,null,null,null,null,null,null,null,null,null,null,null,null,null,null,null,null,null,0,0,0,0,0,0,0,0,null,null,null,null,null,2]
[null,null,null,"Magnetic lock - middle A","enclosure_v2_maglock_mid_a.stl",0,"M",null,0,0,4.4800000000000004,null,1,0,0,0,0,0,0,0,null,null,null,null,null,null,null,null,null,null,null,null,null,null,null,null,null,null,null,null,null,null,null,null,0,0,0,0,0,0,0,0,null,null,null,null,null,1]
[null,null,null,"Magnetic lock - middle B","enclosure_v2_maglock_mid_b.stl",0,"M",null,0,0,3.84,null,1,0,0,0,0,0,0,0,null,null,null,null,null,null,null,null,null,null,null,null,null,null,null,null,null,null,null,null,null,null,null,null,0,0,0,0,0,0,0,0,null,null,null,null,null,2]
[null,null,null,"Magnetic lock - left lid A","enclosure_v2_maglock_left_lid_a.stl",0,"M",null,0,0,2.89,null,1,0,0,0,0,0,0,0,null,null,null,null,null,null,null,null,null,null,null,null,null,null,null,null,null,null,null,null,null,null,null,null,0,0,0,0,0,0,0,0,null,null,null,null,null,1]
[null,null,null,"Magnetic lock - left lid B","enclosure_v2_maglock_left_lid_b.stl",0,"M",null,0,0,4.4800000000000004,null,1,0,0,0,0,0,0,0,null,null,null,null,null,null,null,null,null,null,null,null,null,null,null,null,null,null,null,null,null,null,null,null,0,0,0,0,0,0,0,0,null,null,null,null,null,1]
[null,null,null,"Magnetic lock - left door A","enclosure_v2_maglock_left_door_a.stl",0,"M",null,0,0,3.15,null,1,0,0,0,0,0,0,0,null,null,null,null,null,null,null,null,null,null,null,null,null,null,null,null,null,null,null,null,null,null,null,null,0,0,0,0,0,0,0,0,null,null,null,null,null,1]
[null,null,null,"Magnetic lock - left door B","enclosure_v2_maglock_left_door_b.stl",0,"M",null,0,0,3.32,null,1,0,0,0,0,0,0,0,null,null,null,null,null,null,null,null,null,null,null,null,null,null,null,null,null,null,null,null,null,null,null,null,0,0,0,0,0,0,0,0,null,null,null,null,null,1]
[null,null,null,"Magnetic lock - right lid A","enclosure_v2_maglock_right_lid_a.stl",0,"M",null,0,0,2.89,null,1,0,0,0,0,0,0,0,null,null,null,null,null,null,null,null,null,null,null,null,null,null,null,null,null,null,null,null,null,null,null,null,0,0,0,0,0,0,0,0,null,null,null,null,null,1]
[null,null,null,"Magnetic lock - right lid B","enclosure_v2_maglock_right_lid_b.stl",0,"M",null,0,0,4.47,null,1,0,0,0,0,0,0,0,null,null,null,null,null,null,null,null,null,null,null,null,null,null,null,null,null,null,null,null,null,null,null,null,0,0,0,0,0,0,0,0,null,null,null,null,null,1]
[null,null,null,"Magnetic lock - right door A","enclosure_v2_maglock_right_door_a.stl",0,"M",null,0,0,3.14,null,1,0,0,0,0,0,0,0,null,null,null,null,null,null,null,null,null,null,null,null,null,null,null,null,null,null,null,null,null,null,null,null,0,0,0,0,0,0,0,0,null,null,null,null,null,1]
[null,null,null,"Magnetic lock - right door B","enclosure_v2_maglock_right_door_b.stl",0,"M",null,0,0,3.32,null,1,0,0,0,0,0,0,0,null,null,null,null,null,null,null,null,null,null,null,null,null,null,null,null,null,null,null,null,null,null,null,null,0,0,0,0,0,0,0,0,null,null,null,null,null,1]
[null,null,"MODS",null,null,null,null,null,{"$f":"SUM(I236:I245)","v":111.96000000000001},{"$f":"SUM(J236:J245)","v":0},null,null,{"$f":"M236*M237*M238*M239*M240*M241*M242*M243*M244*M245","v":0},0,0,0,0,0,0,0,null,null,null,null,null,null,null,null,null,null,null,null,null,null,null,null,null,null,null,null,null,null,null,null,0,0,0,0,0,0,0,0,null,null,null,null,null,null,null,null,null,null,null,null,null,null,null,null,null,null,null,null,null,null,null,null,null,null,null,null,null,null,null,null,null,null,null,null,null,null,null,null,null,null,null,null,null,null,null,null,null,null,null,null,null,null,null,null,null,null,null,null,null,null,null,null,null,null,null,null,null,null,null,null,null,null,null,null,null,null,null,null,null,null,null,null,null,null,null,null,null,null,null,null,null,null,null,null,null,null,null,null,null,null,null,null,null,null,null,null,null,{"$f":"C235","v":"MODS"}]
[null,null,null,"Auxiliary fan – duct","optional_aux_fan_duct.stl",{"$f":"SUM(N236:T236)","v":0},"A",null,{"$f":"IF($G236=\"M\",$K236*$F236,0)","v":0},{"$f":"IF($G236=\"A\",$K236*$F236,0)","v":0},143.13999999999999,null,{"$f":"IF(F236=0,IF(F236=\"\",0,1),0)","v":1},0,0,0,0,0,0,0,null,null,null,null,null,null,null,null,null,null,null,null,null,null,null,null,null,null,null,null,null,null,null,null,{"$f":"U236+V236+W236+AD236+AH236+AI236+AM236+AN236+AO236+AP236+AQ236","v":0},{"$f":"X236+Y236","v":0},{"$f":"Z236+AA236","v":0},{"$f":"AB236+AC236","v":0},{"$f":"AK236","v":0},{"$f":"AL236","v":0},{"$f":"AF236+AR236","v":0},{"$f":"AJ236","v":0},null,null,null,null,null,null,null,null,null,null,null,null,null,null,null,null,null,null,null,null,null,null,null,null,null,null,null,null,null,null,null,null,null,null,null,null,null,null,null,null,null,null,null,null,null,null,null,null,null,null,null,null,null,null,null,null,null,null,null,null,null,null,null,null,null,null,null,null,null,null,null,null,null,null,null,null,null,null,null,null,null,null,null,null,null,null,null,null,null,null,null,null,null,null,null,null,null,null,null,null,null,null,null,null,null,null,2]
[null,null,null,"Auxiliary fan – housing","optional_aux_fan_housing.stl",0,"A",null,0,0,71.06,null,1,0,0,0,0,0,0,0,null,null,null,null,null,null,null,null,null,null,null,null,null,null,null,null,null,null,null,null,null,null,null,null,0,0,0,0,0,0,0,0,null,null,null,null,null,null,null,null,null,null,null,null,null,null,null,null,null,null,null,null,null,null,null,null,null,null,null,null,null,null,null,null,null,null,null,null,null,null,null,null,null,null,null,null,null,null,null,null,null,null,null,null,null,null,null,null,null,null,null,null,null,null,null,null,null,null,null,null,null,null,null,null,null,null,null,null,null,null,null,null,null,null,null,null,null,null,null,null,null,null,null,null,null,null,null,null,null,null,null,null,null,null,null,null,null,null,2]
[null,null,null,"Auxiliary fan – feet M","optional_aux_fan_feet_M.stl",0,"M",null,0,0,5.41,null,1,0,0,0,0,0,0,0,null,null,null,null,null,null,null,null,null,null,null,null,null,null,null,null,null,null,null,null,null,null,null,null,0,0,0,0,0,0,0,0,null,null,null,null,null,null,null,null,null,null,null,null,null,null,null,null,null,null,null,null,null,null,null,null,null,null,null,null,null,null,null,null,null,null,null,null,null,null,null,null,null,null,null,null,null,null,null,null,null,null,null,null,null,null,null,null,null,null,null,null,null,null,null,null,null,null,null,null,null,null,null,null,null,null,null,null,null,null,null,null,null,null,null,null,null,null,null,null,null,null,null,null,null,null,null,null,null,null,null,null,null,null,null,null,null,null,{"$f":"IF($R$5=2,4,0)","v":0}]
[null,null,null,"Auxiliary fan – feet S","optional_aux_fan_feet_S.stl",0,"M",null,0,0,9.51,null,1,0,0,0,0,0,0,0,null,null,null,null,null,null,null,null,null,null,null,null,null,null,null,null,null,null,null,null,null,null,null,null,0,0,0,0,0,0,0,0,null,null,null,null,null,null,null,null,null,null,null,null,null,null,null,null,null,null,null,null,null,null,null,null,null,null,null,null,null,null,null,null,null,null,null,null,null,null,null,null,null,null,null,null,null,null,null,null,null,null,null,null,null,null,null,null,null,null,null,null,null,null,null,null,null,null,null,null,null,null,null,null,null,null,null,null,null,null,null,null,null,null,null,null,null,null,null,null,null,null,null,null,null,null,null,null,null,null,null,null,null,null,null,null,null,null,{"$f":"IF($R$5=1,4,0)","v":0}]
[null,null,null,"Handle","optional_frame_handle.stl",2,"M",null,67.22,0,33.61,null,0,0,0,0,0,0,2,0,null,null,null,null,null,null,null,null,null,null,null,null,null,null,null,null,null,null,null,null,null,null,null,null,0,0,0,0,0,0,0,0,null,null,null,null,null,{"$f":"IF(CONFIGURATOR!$E$29=\"Yes\",0,2)","v":0},null,null,null,null,null,null,null,null,null,null,null,null,null,null,null,null,null,null,null,null,null,null,null,null,null,null,null,null,null,null,null,null,null,null,null,null,null,null,null,null,null,null,null,null,null,null,null,null,null,null,null,null,null,null,null,null,null,null,null,null,null,null,null,null,null,null,null,null,null,null,null,null,null,null,null,null,null,null,null,null,null,null,null,null,null,null,null,null,null,null,null,null,2]
[null,null,null,"Handle spacer","optional_frame_handle_spacer.stl",{"$f":"SUM(N241:T241)","v":4},"M",null,null,0,1.53,null,{"$f":"IF(F241=0,IF(F241=\"\",0,1),0)","v":0},{"$f":"AS$4*AS241+AT$4*AT241+AU$4*AU241+AV$4*AV241+AW$4*AW241+AX$4*AX241+AY$4*AY241+AZ$4*AZ241+BA$4*BA241","v":0},{"$f":"BG$4*BG241+BH$4*BH241+BI$4*BI241+BJ$4*BJ241+BK$4*BK241+BL$4*BL241+BM$4*BM241+BN$4*BN241+BO$4*BO241+BP$4*BP241+BQ$4*BQ241+BR$4*BR241","v":0},{"$f":"BS$4*BS241+BT$4*BT241+BU$4*BU241+BV$4*BV241+BW$4*BW241+BX$4*BX241+BY$4*BY241+BZ$4*BZ241+CA$4*CA241+CB$4*CB241+CC$4*CC241+CD$4*CD241+CE$4*CE241+CF$4*CF241+CG$4*CG241+CH$4*CH241","v":0},{"$f":"BB$4*BB241+BC$4*BC241+BD$4*BD241","v":0},{"$f":"CI$4*CI241+CJ$4*CJ241+CK$4*CK241+CL$4*CL241+CM$4*CM241+CN$4*CN241+CO$4*CO241+CP$4*CP241+CQ$4*CQ241+CR$4*CR241+CS$4*CS241+CT$4*CT241+CU$4*CU241+CV$4*CV241+CW$4*CW241+CX$4*CX241+CY$4*CY241+CZ$4*CZ241+DA$4*DA241+DB$4*DB241+DC$4*DC241+DD$4*DD241+DE$4*DE241+DF$4*DF241+DG$4*DG241+DH$4*DH241+DI$4*DI241+DJ$4*DJ241+DK$4*DK241+DL$4*DL241+DM$4*DM241+DN$4*DN241+DO$4*DO241+DP$4*DP241+DQ$4*DQ241+DR$4*DR241+DS$4*DS241+DT$4*DT241+DU$4*DU241+DV$4*DV241+DW$4*DW241+DX$4*DX241+DY$4*DY241+DZ$4*DZ241+EA$4*EA241+EB$4*EB241+EC$4*EC241+ED$4*ED241+EE$4*EE241+EF$4*EF241+EG$4*EG241+EH$4*EH241+EI$4*EI241+EJ$4*EJ241+EK$4*EK241+EL$4*EL241+EM$4*EM241+EN$4*EN241+EO$4*EO241+EP$4*EP241+EQ$4*EQ241+ER$4*ER241","v":0},{"$f":"ES$4*ES241+ET$4*ET241+EU$4*EU241+EV$4*EV241+EW$4*EW241+EX$4*EX241+EY$4*EY241+EZ$4*EZ241+FA$4*FA241+FB$4*FB241+FC$4*FC241","v":4},{"$f":"BF$4*BF241","v":0},null,null,null,null,null,null,null,null,null,null,null,null,null,null,null,null,null,null,null,null,null,null,null,null,{"$f":"U241+V241+W241+AD241+AH241+AI241+AM241+AN241+AO241+AP241+AQ241","v":0},{"$f":"X241+Y241","v":0},{"$f":"Z241+AA241","v":0},{"$f":"AB241+AC241","v":0},{"$f":"AK241","v":0},{"$f":"AL241","v":0},{"$f":"AF241+AR241","v":0},{"$f":"AJ241","v":0},null,null,null,null,null,{"$f":"IF(CONFIGURATOR!$E$29=\"Yes\",0,2)","v":0},null,null,null,null,null,null,null,null,null,null,null,null,null,null,null,null,null,null,null,null,null,null,null,null,null,null,null,null,null,null,null,null,null,null,null,null,null,null,null,null,null,null,null,null,null,null,null,null,null,null,null,null,null,null,null,null,null,null,null,null,null,null,null,null,null,null,null,null,null,null,null,null,null,null,null,null,null,null,null,null,null,null,null,null,null,null,null,null,null,null,null,null,{"$f":"IF(BF4=0,4,0)","v":4}]
[null,null,null,"LED - frame mount","optional_LED_frame.stl",2,"M",null,44.74,0,22.37,null,0,0,0,0,0,0,2,0,null,null,null,null,null,null,null,null,null,null,null,null,null,null,null,null,null,null,null,null,null,null,null,null,0,0,0,0,0,0,0,0,null,null,null,null,null,null,null,null,null,null,null,null,null,null,null,null,null,null,null,null,null,null,null,null,null,null,null,null,null,null,null,null,null,null,null,null,null,null,null,null,null,null,null,null,null,null,null,null,null,null,null,null,null,null,null,null,null,null,null,null,null,null,null,null,null,null,null,null,null,null,null,null,null,null,null,null,null,null,null,null,null,null,null,null,null,null,null,null,null,null,null,null,null,null,null,null,null,null,null,2,null,2]
[null,null,null,"LED - 111 mm diffuser","optional_LED_diffuser_111mm.stl",4,null,"Print in clear filament",0,0,2.78,null,0,0,0,0,0,0,4,0,null,null,null,null,null,null,null,null,null,null,null,null,null,null,null,null,null,null,null,null,null,null,null,null,0,0,0,0,0,0,0,0,null,null,null,null,null,{"$f":"IF(CONFIGURATOR!$E$30=\"Enclosure LED\",9,IF(CONFIGURATOR!$E$30=\"Both LEDs\",9,0))","v":0},null,null,null,null,null,null,null,null,null,null,null,null,null,null,null,null,null,null,null,null,null,null,null,null,null,null,null,null,null,null,null,null,null,null,null,null,null,null,null,null,null,null,null,null,null,null,null,null,null,null,null,null,null,null,null,null,null,null,null,null,null,null,null,null,null,null,null,null,null,null,null,null,null,null,null,null,null,null,null,null,null,null,null,null,null,null,null,null,null,null,null,null,null,4,null,4]
[null,null,null,"LED - 44 mm diffuser","optional_LED_diffuser_44mm.stl",0,null,"Print in clear filament",0,0,1.1499999999999999,null,1,0,0,0,0,0,0,0,null,null,null,null,null,null,null,null,null,null,null,null,null,null,null,null,null,null,null,null,null,null,null,null,0,0,0,0,0,0,0,0,null,null,null,null,null,{"$f":"IF(CONFIGURATOR!$E$30=\"Enclosure LED\",2,IF(CONFIGURATOR!$E$30=\"Both LEDs\",2,0))","v":0}]
[null,null,null,"LED - enclosure cable cover","optional_LED_cable_cover.stl",0,"A",null,0,0,3.42,null,1,0,0,0,0,0,0,0,null,null,null,null,null,null,null,null,null,null,null,null,null,null,null,null,null,null,null,null,null,null,null,null,0,0,0,0,0,0,0,0,null,null,null,null,null,{"$f":"IF(CONFIGURATOR!$E$30=\"Enclosure LED\",1,IF(CONFIGURATOR!$E$30=\"Both LEDs\",1,0))","v":0}]
[]
[]
[]
[null,null,"EXTRAS"]
[null,null,null,"USB/HDMI MOUNT","electronics_ext_USB_HDMI.stl",null,null,null,null,null,6.26]
[null,null,null,"USB/HDMI SPACER","electronics_ext_USB_HDMI_spacer.stl",null,null,null,null,null,4.3099999999999996]
[null,null,null,"RPI MOUNT","electronics_DIN_RPi_mount.stl",null,null,null,null,null,10.050000000000001]
[null,null,null,"RPI COOLING","electronics_DIN_RPi_cooling.stl",null,null,null,null,null,2.89]
[null,null,null,"DIN_SSR_25DA","electronics_DIN_rail_SSR_25DA.stl",null,null,null,null,null,2.87]
[null,null,null,"DIN_PSU_RS15","electronics_DIN_rail_PSU_RS15.stl",null,null,null,null,null,3.59]
[null,null,null,"DIN MOSFET","electronics_DIN_rail_mosfet.stl",null,null,null,null,null,3.91]
[null,null,null,"DIN_LT623","electronics_DIN_rail_Wago_LT623.stl",null,null,null,null,null,2.61]
[null,null,null,"DIN_LT933","electronics_DIN_rail_Wago_LT933.stl",null,null,null,null,null,3.07]
[null,null,null,"EXP MOT MOUNT","electronics_DIN_rail_BTT_EXP_MOT.stl"]
[null,null,null,"CABLE GLAND","electronics_cable_gland_1.stl + *_gland_2.stl"]

{"sheet":"VERIFIED KITS","index":3,"n_rows":57,"n_cols":10,"rows_kept":57,"cut":false,"hidden":false,"merged":[[1,2,1,9],[2,2,2,9],[4,2,4,4],[54,2,54,4],[61,2,61,4],[20,2,20,4],[28,2,28,4],[46,2,46,4],[14,3,14,9],[16,3,16,9],[17,3,17,9],[15,3,15,9]]}
[null,null,"2024/10/25 – RH3D"]
[null,null,"WE ARE WORKING ON KITS FOR THE PROJECT AND NOT ALL OF THEM ARE AVAILABLE AT THE MOMENT."]
[null,null,"KEEP WATCHING FOR UPDATES AND AS MORE INFO WILL BE ADDED LATER"]
[null,null,"KIT","OPTION",null,"PACKAGE INCLUDES",null,"NOTE","LINK","PRICE"]
[null,null,"FUSHI bearing"]
[null,null,"ENDER 3 NG LINEAR MOTION SHAFTS AND BEARINGS PACK"]
[null,null,null,"Shafts Pack",null,"4pcs 8x350 mm / 2pcs 12x350mm / 1pc 12x320mm linear shafts",null,"Linear shafts from hardened bearing steel (no chrome plating) with g6 tolerance, precision ground surface.","[ AliExpress ]",65.48]
[]
[null,null,null,"Basic Bearing Pack A",null,"4pcs LM8LUU / 3pcs LM12UU / 50pcs F695-2RS / 10pcs 608-2RS",null,"Bearings in the pack are great and consistent quality with minimum ABEC 5.","[ AliExpress ]",49.05]
[null,null,null,null,null,null,null,"LM8LUU - ABEC 5 / LM12UU - ABEC 5 / F695-2RS - ABEC 9 / 608-2RS - ABEC 9"]
[null,null,null,"Upgrade Bearings Pack B",null,"4pcs LM8LUU+ / 3pcs LM12UU / 50pcs F695-2RS / 10pcs 608-2RS",null,"Same as the basic bearing pack, but the black chromium on LM8LUUs brings more wear resistance","[ AliExpress ]",51.84]
[null,null,null,null,null,null,null,"and they have lower tolerance."]
[]
[null,null,"NOTE:"]
[null,null,null,"Fushi bearing and shaft kit has been created in cooperation with RH3D and tested by RH3D as well, it shows great quality and is highly recommended over other generic linear bearings and shafts."]
[null,null,null,"Linear shafts made by Fushi are hardened steel without chroming and with precission grinding to tolerance g6, this is superior to other common chrome plated shafts but it also means that all the rods need to be cut after receiving orders to avoid"]
[null,null,null,"unnecessarily long storage. As a result the shipping will be arranged within few days or max in a week."]
[null,null,null,"Hardened steel without chroming has better wear resistance but can also rust under certain conditions. Doing common maintenance and having the linear bearings lubricated is enough to keep them from rusting."]
[]
[]
[null,null,"FABREEKO"]
[null,null,"PRINTER BUILD KIT"]
[null,null,null,"kit",null,"things",null,"fabreeko",null,0]
[]
[]
[]
[]
[]
[null,null,"FUNSSOR"]
[null,null,"HARDWARE KIT"]
[null,null,null,"Hardware kit",null,"Screws, nuts, t-nuts, washers, heat set inserts",null,"Stainless steel hardware.","[ AliExpress ]",35.89]
[]
[null,null,"MOTION AND ELECTRONICS KIT"]
[null,null,null,"Motion kit",null,"Linear rods and bearings, F695 + 608 bearings, 40T 8mm pulleys, 20T 5mm pulleys,",null,"NSK ABEC-5 bearings (LM8LUU, LM12UU, F695), 3m Gates belt, linear rods h6 tolerance.","[ AliExpress ]",177.99]
[null,null,null,null,null,"3m GT2 belt, 1140 mm GT2 belt, T8/8 leadscrews, nuts, rubber feet, PTFE tube, 350 mm 2040 extrusion"]
[null,null,null,"Electronics and Motion kit",null,"Everything in motion kit + DIN rails, 4010 blower fans, 3010 + 4020 + 6015 axial fans,",null,"Dual ball bearing fans, 4010 fan = 10K RPM, 3010 fan = 15K RPM","[ AliExpress ]",199.85]
[null,null,null,null,null,"D2f-L microswitch"]
[null,null,"ENCLOSURE KIT"]
[null,null,null,"Hardware pack",null,"Screws, washers, heat set inserts, F695 bearings, 6015 fan",null,null,"[ AliExpress ]",19.850000000000001]
[]
[null,null,null,"Full enclosure kit",null,"Polycarbonate panels 4 mm - bottom, rear black, other clear.",null,"CNC cut PC panels, chamfered holes where needed.","[ AliExpress ]",159.99]
[null,null,null,null,null,"and everything in the hardware pack."]
[null,null,null,"Panel kit",null,"Only Polycarbonate panels without the electronics cover.",null,null,"[ AliExpress ]",135]
[]
[]
[]
[null,null,"OTHER"]
[null,null,"KIT"]
[null,null,null,"VERSION A",null,"included",null,"Note",null,0]
[null,null,null,"VERSION B"]
[]
[]
[]
[]
[null,null,"OTHER 2"]
[]
[null,null,null,null,null,null,null,null,null,0]

{"sheet":"FUNSSOR","index":4,"n_rows":105,"n_cols":7,"rows_kept":105,"cut":false,"hidden":true,"merged":[[64,1,64,4],[50,1,50,2],[1,1,1,4],[3,1,3,4],[5,1,5,4],[13,1,13,4],[16,1,16,4],[21,1,21,4],[24,1,24,4],[26,1,26,4],[28,1,28,4],[30,1,30,4],[33,1,33,4],[2,1,2,2],[38,1,38,4],[45,1,45,4],[40,1,40,4],[60,1,60,2],[61,1,61,2],[51,1,51,2],[52,1,52,2],[53,1,53,2],[54,1,54,2],[55,1,55,2],[46,1,46,2],[47,1,47,2],[48,1,48,2],[49,1,49,4],[41,1,41,2],[42,1,42,2],[43,1,43,2],[44,1,44,2],[72,1,72,2],[73,1,73,2],[74,1,74,2],[77,1,77,4],[39,1,39,2],[65,1,65,2],[59,1,59,2],[66,1,66,4],[71,1,71,4],[67,1,67,2],[68,1,68,2],[69,1,69,2],[70,1,70,2],[56,1,56,4],[57,1,57,2],[58,1,58,2],[84,1,84,2],[85,1,85,4],[86,1,86,2],[78,1,78,2],[79,1,79,4],[80,1,80,2],[81,1,81,2],[83,1,83,2],[82,1,82,2],[98,1,98,4],[100,1,100,4],[102,1,102,4],[87,1,87,2],[94,1,94,4],[88,1,88,2],[89,1,89,4],[96,1,96,4]]}
[]
[null,"HARDWARE KIT"]
[null,"PART",null,"SPECS","QTY"]
[null,"M2 SOCKET HEAD SCREWS"]
[null,null,"M2 x 10","stainless steel",4]
[null,"M3 SOCKET HEAD SCREWS"]
[null,null,"M3 x 6","stainless steel",62]
[null,null,"M3 x 8","stainless steel",44]
[null,null,"M3 x 10","stainless steel",32]
[null,null,"M3 x 16","stainless steel",4]
[null,null,"M3 x 20","stainless steel",15]
[null,null,"M3 x 25","stainless steel",12]
[null,null,"M3 x 35","stainless steel",19]
[null,"M4 SOCKET HEAD SCREWS"]
[null,null,"M4 x 8","stainless steel",32]
[null,null,"M4 x 10","stainless steel",11]
[null,"M5 SOCKET HEAD SCREWS"]
[null,null,"M5 x 12","stainless steel",24]
[null,null,"M5 x 20","stainless steel",4]
[null,null,"M5 x 25","stainless steel",10]
[null,null,"M5 x 35","stainless steel",4]
[null,"M5 BUTTON HEAD SCREWS"]
[null,null,"M5 x 10","stainless steel",4]
[null,null,"M5 x 20","stainless steel",12]
[null,"M3 SETSCREWS"]
[null,null,"M3 x 5","flatpoint, hex socket, stainless steel",8]
[null,"WASHERS"]
[null,null,"M5","5,3 x 10 x 1 mm (ID x OD x TH) - stainless or brass",52]
[null,"NUTS"]
[null,null,"M3","stainless steel",5]
[null,"T-NUTS"]
[null,null,"M3","T-nut for 2020 V-slot extrusion",39]
[null,null,"M4","T-nut for 2020 V-slot extrusion",30]
[null,"HEAT INSERTS"]
[null,null,"M3","M3 x 4 x 4,5 mm (ID x L x OD)",99]
[null,null,"M5","M5 x 5 x 7 mm (ID x L x OD)",18]
[]
[]
[null,"MOTION/FRAME KIT"]
[null,"PART",null,"SPECS","QTY"]
[null,"BEARINGS"]
[null,"LM8LUU",null,"ABEC - 5",4]
[null,"LM12UU",null,"ABEC - 5",3]
[null,"F695-2RS",null,"ABEC - 5 / NSK",32]
[null,"608-2RS",null,"China brand",6]
[null,"LINEAR SHAFT"]
[null,"8x350mm linear shaft",null,"h6 diameter tolerance - hardened steel",4]
[null,"12x350mm linear shaft",null,"h6 diameter tolerance - hardened steel",2]
[null,"12x320mm linear shaft",null,"h6 diameter tolerance - hardened steel",1]
[null,"OTHER - MOTION"]
[null,"GT2 6mm x 1140mm closed loop belt",null,"Gates",1]
[null,"GT2 6mm 3m open belt",null,"China brand",1]
[null,"40T GT2 8mm pulley",null,"for 6mm belt - total width 17mm",3]
[null,"20T GT2 5mm pulley",null,"for 6mm belt",3]
[null,"T8/8 x 300mm leadscrew",null,null,3]
[null,"T8/8 leadscrew nut",null,null,3]
[null,"OTHER"]
[null,"2040 x 350 mm extrusion",null,"V-slot - black surface finish",2]
[null,"Electronics panel",null,"polycarbonate - 3mm",1,null,"E3NG_electronics_panel.dxf"]
[null,"PTFE 4/2mm tube",null,"1 meter",1]
[null,"Rubber feet",null,"19mm height - hole for M5 screw",4]
[null,"Bed silicone spacer",null,null,4]
[]
[]
[null,"ELECTRONICS KIT"]
[null,"PART",null,"SPECS","QTY"]
[null,"FANS"]
[null,"3010 axial fan",null,"24V - dual ball bearing - 15k RPM",1]
[null,"4010 radial fan",null,"24V - dual ball bearing - 10k RPM",2]
[null,"4020 axial fan",null,"24V - dual ball bearing",2]
[null,"6015 axial fan",null,"24V - dual ball bearing",2]
[null,"OTHER"]
[null,"DIN rail 350mm",null,null,2]
[null,"DIN rail 200mm",null,null,1]
[null,"microswitch",null,"Omron D2F-L",3]
[]
[]
[null,"ENCLOSURE KIT"]
[null,"PART",null,"SPECS","QTY"]
[null,"POLYCARBONATE PANELS"]
[null,"Door panel",null,"polycarbonate - 5 mm / 4mm",1,null,"E3NG_enclosure_panel_door.dxf"]
[null,"Side panel",null,"polycarbonate - 4mm / 3mm",2,null,"E3NG_enclosure_panel_side.dxf"]
[null,"Bottom panel",null,"polycarbonate - 4mm / 3mm",1,null,"E3NG_enclosure_panel_bottom.dxf"]
[null,"Top panel",null,"polycarbonate - 4mm / 3mm",1,null,"E3NG_enclosure_panel_top.dxf"]
[null,"Rear panel",null,"polycarbonate - 4mm / 3mm",1,null,"E3NG_enclosure_panel_rear.dxf"]
[null,"HARDWARE"]
[null,"F695-2RS",null,"China brand",12]
[null,"6015 axial fan",null,"24V - dual ball bearing",1]
[null,"MAGNET 6 x 3 mm",null,"Neodymium magnet",20]
[null,"M3 SOCKET HEAD SCREWS"]
[null,null,"M3 x 6","stainless steel",2]
[null,null,"M3 x 10","stainless steel",50]
[null,null,"M3 x 14","stainless steel",17]
[null,null,"M3 x 35","stainless steel",2]
[null,"M3 FLAT HEAD COUNTERSUNK SCREW"]
[null,null,"M3 x 12","stainless steel",12]
[null,"M5 SOCKET HEAD SCREWS"]
[null,null,"M5 x 12","stainless steel",12]
[null,"WASHERS"]
[null,null,"M5","5,3 x 10 x 1 mm (ID x OD x TH) - stainless or brass",12]
[null,"T-NUTS"]
[null,null,"M3","T-nut for 2020 V-slot extrusion",38]
[null,"HEAT INSERTS"]
[null,null,"M3","M3 x 4 x 4,5 mm (ID x L x OD)",44]
[null,null,"M5","M5 x 5 x 7 mm (ID x L x OD)",12]

{"sheet":"FABREEKO","index":5,"n_rows":105,"n_cols":7,"rows_kept":105,"cut":false,"hidden":true,"merged":[[33,1,33,4],[1,1,1,4],[2,1,2,2],[3,1,3,4],[5,1,5,4],[13,1,13,4],[16,1,16,4],[21,1,21,4],[24,1,24,4],[26,1,26,4],[28,1,28,4],[30,1,30,4],[49,1,49,4],[38,1,38,4],[39,1,39,2],[40,1,40,4],[41,1,41,2],[42,1,42,2],[43,1,43,2],[44,1,44,2],[45,1,45,4],[46,1,46,2],[47,1,47,2],[48,1,48,2],[61,1,61,2],[50,1,50,2],[51,1,51,2],[52,1,52,2],[53,1,53,2],[54,1,54,2],[55,1,55,2],[56,1,56,4],[57,1,57,2],[58,1,58,2],[59,1,59,2],[60,1,60,2],[77,1,77,4],[64,1,64,4],[65,1,65,2],[66,1,66,4],[67,1,67,2],[68,1,68,2],[69,1,69,2],[70,1,70,2],[71,1,71,4],[72,1,72,2],[73,1,73,2],[74,1,74,2],[89,1,89,4],[78,1,78,2],[79,1,79,4],[80,1,80,2],[81,1,81,2],[82,1,82,2],[83,1,83,2],[84,1,84,2],[85,1,85,4],[86,1,86,2],[87,1,87,2],[88,1,88,2],[94,1,94,4],[96,1,96,4],[98,1,98,4],[100,1,100,4],[102,1,102,4]]}
[]
[null,"HARDWARE KIT"]
[null,"PART",null,"SPECS","QTY"]
[null,"M2 SOCKET HEAD SCREWS"]
[null,null,"M2 x 10","stainless steel",4]
[null,"M3 SOCKET HEAD SCREWS"]
[null,null,"M3 x 6","stainless steel",62]
[null,null,"M3 x 8","stainless steel",44]
[null,null,"M3 x 10","stainless steel",32]
[null,null,"M3 x 16","stainless steel",4]
[null,null,"M3 x 20","stainless steel",15]
[null,null,"M3 x 25","stainless steel",12]
[null,null,"M3 x 35","stainless steel",19]
[null,"M4 SOCKET HEAD SCREWS"]
[null,null,"M4 x 8","stainless steel",32]
[null,null,"M4 x 10","stainless steel",11]
[null,"M5 SOCKET HEAD SCREWS"]
[null,null,"M5 x 12","stainless steel",24]
[null,null,"M5 x 20","stainless steel",4]
[null,null,"M5 x 25","stainless steel",10]
[null,null,"M5 x 35","stainless steel",4]
[null,"M5 BUTTON HEAD SCREWS"]
[null,null,"M5 x 10","stainless steel",4]
[null,null,"M5 x 20","stainless steel",12]
[null,"M3 SETSCREWS"]
[null,null,"M3 x 5","flatpoint, hex socket, stainless steel",8]
[null,"WASHERS"]
[null,null,"M5","5,3 x 10 x 1 mm (ID x OD x TH) - stainless or brass",52]
[null,"NUTS"]
[null,null,"M3","stainless steel",5]
[null,"T-NUTS"]
[null,null,"M3","T-nut for 2020 V-slot extrusion",39]
[null,null,"M4","T-nut for 2020 V-slot extrusion",30]
[null,"HEAT INSERTS"]
[null,null,"M3","M3 x 4 x 4,5 mm (ID x L x OD)",99]
[null,null,"M5","M5 x 5 x 7 mm (ID x L x OD)",18]
[]
[]
[null,"MOTION/FRAME KIT"]
[null,"PART",null,"SPECS","QTY"]
[null,"BEARINGS"]
[null,"LM8LUU",null,"ABEC - 5",4]
[null,"LM12UU",null,"ABEC - 5",3]
[null,"F695-2RS",null,"ABEC - 5 / NSK",32]
[null,"608-2RS",null,"China brand",6]
[null,"LINEAR SHAFT"]
[null,"8x350mm linear shaft",null,"h6 diameter tolerance - hardened steel",4]
[null,"12x350mm linear shaft",null,"h6 diameter tolerance - hardened steel",2]
[null,"12x320mm linear shaft",null,"h6 diameter tolerance - hardened steel",1]
[null,"OTHER - MOTION"]
[null,"GT2 6mm x 1140mm closed loop belt",null,"Gates",1]
[null,"GT2 6mm 3m open belt",null,"China brand",1]
[null,"40T GT2 8mm pulley",null,"for 6mm belt - total width 17mm",3]
[null,"20T GT2 5mm pulley",null,"for 6mm belt",3]
[null,"T8/8 x 300mm leadscrew",null,null,3]
[null,"T8/8 leadscrew nut",null,null,3]
[null,"OTHER"]
[null,"2040 x 350 mm extrusion",null,"V-slot - black surface finish",2]
[null,"Electronics panel",null,"polycarbonate - 3mm",1,null,"E3NG_electronics_panel.dxf"]
[null,"PTFE 4/2mm tube",null,"1 meter",1]
[null,"Rubber feet",null,"19mm height - hole for M5 screw",4]
[null,"Bed silicone spacer",null,null,4]
[]
[]
[null,"ELECTRONICS KIT"]
[null,"PART",null,"SPECS","QTY"]
[null,"FANS"]
[null,"3010 axial fan",null,"24V - dual ball bearing - 15k RPM",1]
[null,"4010 radial fan",null,"24V - dual ball bearing - 10k RPM",2]
[null,"4020 axial fan",null,"24V - dual ball bearing",2]
[null,"6015 axial fan",null,"24V - dual ball bearing",2]
[null,"OTHER"]
[null,"DIN rail 350mm",null,null,2]
[null,"DIN rail 200mm",null,null,1]
[null,"microswitch",null,"Omron D2F-L",3]
[]
[]
[null,"ENCLOSURE KIT"]
[null,"PART",null,"SPECS","QTY"]
[null,"POLYCARBONATE PANELS"]
[null,"Door panel",null,"polycarbonate - 5 mm / 4mm",1,null,"E3NG_enclosure_panel_door.dxf"]
[null,"Side panel",null,"polycarbonate - 4mm / 3mm",2,null,"E3NG_enclosure_panel_side.dxf"]
[null,"Bottom panel",null,"polycarbonate - 4mm / 3mm",1,null,"E3NG_enclosure_panel_bottom.dxf"]
[null,"Top panel",null,"polycarbonate - 4mm / 3mm",1,null,"E3NG_enclosure_panel_top.dxf"]
[null,"Rear panel",null,"polycarbonate - 4mm / 3mm",1,null,"E3NG_enclosure_panel_rear.dxf"]
[null,"HARDWARE"]
[null,"F695-2RS",null,"China brand",12]
[null,"6015 axial fan",null,"24V - dual ball bearing",1]
[null,"MAGNET 6 x 3 mm",null,"Neodymium magnet",20]
[null,"M3 SOCKET HEAD SCREWS"]
[null,null,"M3 x 6","stainless steel",2]
[null,null,"M3 x 10","stainless steel",50]
[null,null,"M3 x 14","stainless steel",17]
[null,null,"M3 x 35","stainless steel",2]
[null,"M3 FLAT HEAD COUNTERSUNK SCREW"]
[null,null,"M3 x 12","stainless steel",12]
[null,"M5 SOCKET HEAD SCREWS"]
[null,null,"M5 x 12","stainless steel",12]
[null,"WASHERS"]
[null,null,"M5","5,3 x 10 x 1 mm (ID x OD x TH) - stainless or brass",12]
[null,"T-NUTS"]
[null,null,"M3","T-nut for 2020 V-slot extrusion",38]
[null,"HEAT INSERTS"]
[null,null,"M3","M3 x 4 x 4,5 mm (ID x L x OD)",44]
[null,null,"M5","M5 x 5 x 7 mm (ID x L x OD)",12]

{"sheet":"FUSHI","index":6,"n_rows":105,"n_cols":7,"rows_kept":105,"cut":false,"hidden":true,"merged":[[33,1,33,4],[1,1,1,4],[2,1,2,2],[3,1,3,4],[5,1,5,4],[13,1,13,4],[16,1,16,4],[21,1,21,4],[24,1,24,4],[26,1,26,4],[28,1,28,4],[30,1,30,4],[49,1,49,4],[38,1,38,4],[39,1,39,2],[40,1,40,4],[41,1,41,2],[42,1,42,2],[43,1,43,2],[44,1,44,2],[45,1,45,4],[46,1,46,2],[47,1,47,2],[48,1,48,2],[61,1,61,2],[50,1,50,2],[51,1,51,2],[52,1,52,2],[53,1,53,2],[54,1,54,2],[55,1,55,2],[56,1,56,4],[57,1,57,2],[58,1,58,2],[59,1,59,2],[60,1,60,2],[77,1,77,4],[64,1,64,4],[65,1,65,2],[66,1,66,4],[67,1,67,2],[68,1,68,2],[69,1,69,2],[70,1,70,2],[71,1,71,4],[72,1,72,2],[73,1,73,2],[74,1,74,2],[89,1,89,4],[78,1,78,2],[79,1,79,4],[80,1,80,2],[81,1,81,2],[82,1,82,2],[83,1,83,2],[84,1,84,2],[85,1,85,4],[86,1,86,2],[87,1,87,2],[88,1,88,2],[94,1,94,4],[96,1,96,4],[98,1,98,4],[100,1,100,4],[102,1,102,4]]}
[]
[null,"HARDWARE KIT"]
[null,"PART",null,"SPECS","QTY"]
[null,"M2 SOCKET HEAD SCREWS"]
[null,null,"M2 x 10","stainless steel",4]
[null,"M3 SOCKET HEAD SCREWS"]
[null,null,"M3 x 6","stainless steel",62]
[null,null,"M3 x 8","stainless steel",44]
[null,null,"M3 x 10","stainless steel",32]
[null,null,"M3 x 16","stainless steel",4]
[null,null,"M3 x 20","stainless steel",15]
[null,null,"M3 x 25","stainless steel",12]
[null,null,"M3 x 35","stainless steel",19]
[null,"M4 SOCKET HEAD SCREWS"]
[null,null,"M4 x 8","stainless steel",32]
[null,null,"M4 x 10","stainless steel",11]
[null,"M5 SOCKET HEAD SCREWS"]
[null,null,"M5 x 12","stainless steel",24]
[null,null,"M5 x 20","stainless steel",4]
[null,null,"M5 x 25","stainless steel",10]
[null,null,"M5 x 35","stainless steel",4]
[null,"M5 BUTTON HEAD SCREWS"]
[null,null,"M5 x 10","stainless steel",4]
[null,null,"M5 x 20","stainless steel",12]
[null,"M3 SETSCREWS"]
[null,null,"M3 x 5","flatpoint, hex socket, stainless steel",8]
[null,"WASHERS"]
[null,null,"M5","5,3 x 10 x 1 mm (ID x OD x TH) - stainless or brass",52]
[null,"NUTS"]
[null,null,"M3","stainless steel",5]
[null,"T-NUTS"]
[null,null,"M3","T-nut for 2020 V-slot extrusion",39]
[null,null,"M4","T-nut for 2020 V-slot extrusion",30]
[null,"HEAT INSERTS"]
[null,null,"M3","M3 x 4 x 4,5 mm (ID x L x OD)",99]
[null,null,"M5","M5 x 5 x 7 mm (ID x L x OD)",18]
[]
[]
[null,"MOTION/FRAME KIT"]
[null,"PART",null,"SPECS","QTY"]
[null,"BEARINGS"]
[null,"LM8LUU",null,"ABEC - 5",4]
[null,"LM12UU",null,"ABEC - 5",3]
[null,"F695-2RS",null,"ABEC - 5 / NSK",32]
[null,"608-2RS",null,"China brand",6]
[null,"LINEAR SHAFT"]
[null,"8x350mm linear shaft",null,"h6 diameter tolerance - hardened steel",4]
[null,"12x350mm linear shaft",null,"h6 diameter tolerance - hardened steel",2]
[null,"12x320mm linear shaft",null,"h6 diameter tolerance - hardened steel",1]
[null,"OTHER - MOTION"]
[null,"GT2 6mm x 1140mm closed loop belt",null,"Gates",1]
[null,"GT2 6mm 3m open belt",null,"China brand",1]
[null,"40T GT2 8mm pulley",null,"for 6mm belt - total width 17mm",3]
[null,"20T GT2 5mm pulley",null,"for 6mm belt",3]
[null,"T8/8 x 300mm leadscrew",null,null,3]
[null,"T8/8 leadscrew nut",null,null,3]
[null,"OTHER"]
[null,"2040 x 350 mm extrusion",null,"V-slot - black surface finish",2]
[null,"Electronics panel",null,"polycarbonate - 3mm",1,null,"E3NG_electronics_panel.dxf"]
[null,"PTFE 4/2mm tube",null,"1 meter",1]
[null,"Rubber feet",null,"19mm height - hole for M5 screw",4]
[null,"Bed silicone spacer",null,null,4]
[]
[]
[null,"ELECTRONICS KIT"]
[null,"PART",null,"SPECS","QTY"]
[null,"FANS"]
[null,"3010 axial fan",null,"24V - dual ball bearing - 15k RPM",1]
[null,"4010 radial fan",null,"24V - dual ball bearing - 10k RPM",2]
[null,"4020 axial fan",null,"24V - dual ball bearing",2]
[null,"6015 axial fan",null,"24V - dual ball bearing",2]
[null,"OTHER"]
[null,"DIN rail 350mm",null,null,2]
[null,"DIN rail 200mm",null,null,1]
[null,"microswitch",null,"Omron D2F-L",3]
[]
[]
[null,"ENCLOSURE KIT"]
[null,"PART",null,"SPECS","QTY"]
[null,"POLYCARBONATE PANELS"]
[null,"Door panel",null,"polycarbonate - 5 mm / 4mm",1,null,"E3NG_enclosure_panel_door.dxf"]
[null,"Side panel",null,"polycarbonate - 4mm / 3mm",2,null,"E3NG_enclosure_panel_side.dxf"]
[null,"Bottom panel",null,"polycarbonate - 4mm / 3mm",1,null,"E3NG_enclosure_panel_bottom.dxf"]
[null,"Top panel",null,"polycarbonate - 4mm / 3mm",1,null,"E3NG_enclosure_panel_top.dxf"]
[null,"Rear panel",null,"polycarbonate - 4mm / 3mm",1,null,"E3NG_enclosure_panel_rear.dxf"]
[null,"HARDWARE"]
[null,"F695-2RS",null,"China brand",12]
[null,"6015 axial fan",null,"24V - dual ball bearing",1]
[null,"MAGNET 6 x 3 mm",null,"Neodymium magnet",20]
[null,"M3 SOCKET HEAD SCREWS"]
[null,null,"M3 x 6","stainless steel",2]
[null,null,"M3 x 10","stainless steel",50]
[null,null,"M3 x 14","stainless steel",17]
[null,null,"M3 x 35","stainless steel",2]
[null,"M3 FLAT HEAD COUNTERSUNK SCREW"]
[null,null,"M3 x 12","stainless steel",12]
[null,"M5 SOCKET HEAD SCREWS"]
[null,null,"M5 x 12","stainless steel",12]
[null,"WASHERS"]
[null,null,"M5","5,3 x 10 x 1 mm (ID x OD x TH) - stainless or brass",12]
[null,"T-NUTS"]
[null,null,"M3","T-nut for 2020 V-slot extrusion",38]
[null,"HEAT INSERTS"]
[null,null,"M3","M3 x 4 x 4,5 mm (ID x L x OD)",44]
[null,null,"M5","M5 x 5 x 7 mm (ID x L x OD)",12]